Body Name,Body,Supplier,Transaction Number,Payment Date,Amount,Directorate,Organisational Unit,Cost Centre/Detail Code,Cost Centre Description,Detail Code Description
Ashfield District Council,37UB,Gatenby Sanderson Limited,V0967241,24/06/2021,11915.00,R & B Transformation 2,Employee Expenses,A40000/A310,Chief Executive,Recruitment Advertising
Ashfield District Council,37UB,Mazars LLP,V0968125,10/06/2021,12984.00,R & B Transformation 2,Supplies & Services,A01003/D201008,Democratic Core,Audit Fees
Ashfield District Council,37UB,Brownz Building & Roofing services,V0968899,24/06/2021,20069.90,Housing & Assets 2,Supplies & Services,G00002001/D200008,Capital Corporate,Payments to Contractors External
Ashfield District Council,37UB,D Cresswell & Son (Electricians) Ltd,V0969124,17/06/2021,3791.50,Housing & Assets 2,Supplies & Services,G00002001/D200008,Capital Corporate,Payments to Contractors External
Ashfield District Council,37UB,D Cresswell & Son (Electricians) Ltd,V0969134,17/06/2021,2618.00,Housing & Assets 2,Supplies & Services,G00002001/D200008,Capital Corporate,Payments to Contractors External
Ashfield District Council,37UB,D Cresswell & Son (Electricians) Ltd,V0969140,17/06/2021,3933.00,Housing & Assets 2,Supplies & Services,G00002002/D200008,Capital Corporate,Payments to Contractors External
Ashfield District Council,37UB,D Cresswell & Son (Electricians) Ltd,V0969143,17/06/2021,170.00,Housing & Assets 2,Supplies & Services,G00002002/D200008,Capital Corporate,Payments to Contractors External
Ashfield District Council,37UB,Eclipse Access Solutions Ltd,V0968997,17/06/2021,3811.00,Housing & Assets 2,Supplies & Services,G00002001/D200008,Capital Corporate,Payments to Contractors External
Ashfield District Council,37UB,KC Designs,V0968364,10/06/2021,980.00,Housing & Assets 2,Supplies & Services,G00002001/D200008,Capital Corporate,Payments to Contractors External
Ashfield District Council,37UB,KC Designs,V0968593,10/06/2021,144.00,Housing & Assets 2,Supplies & Services,G00002001/D200008,Capital Corporate,Payments to Contractors External
Ashfield District Council,37UB,Neil Shacklock Contractors Ltd,V0968095,10/06/2021,3390.00,Housing & Assets 2,Supplies & Services,G00002002/D200008,Capital Corporate,Payments to Contractors External
Ashfield District Council,37UB,Neil Shacklock Contractors Ltd,V0969181,24/06/2021,2890.00,Housing & Assets 2,Supplies & Services,G00002002/D200008,Capital Corporate,Payments to Contractors External
Ashfield District Council,37UB,Obam Lift Services Ltd,V0968074,10/06/2021,3725.00,Housing & Assets 2,Supplies & Services,G00002001/D200008,Capital Corporate,Payments to Contractors External
Ashfield District Council,37UB,PB Property Developments,V0968940,17/06/2021,1288.70,Housing & Assets 2,Supplies & Services,G00002001/D200008,Capital Corporate,Payments to Contractors External
Ashfield District Council,37UB,PB Property Developments,V0968969,17/06/2021,2354.04,Housing & Assets 2,Supplies & Services,G00002001/D200008,Capital Corporate,Payments to Contractors External
Ashfield District Council,37UB,PB Property Developments,V0969145,17/06/2021,7382.40,Housing & Assets 2,Supplies & Services,G00002001/D200008,Capital Corporate,Payments to Contractors External
Ashfield District Council,37UB,Gleeds Advisory Ltd,V0968089,10/06/2021,7875.00,Place & Communities 2,Supplies & Services,C00255/D200008,Capital Corporate,Payments to Contractors External
Ashfield District Council,37UB,Greenacre Recruitment Limited,V0967679,03/06/2021,375.00,Place & Communities 2,Supplies & Services,C00255/D200008,Capital Corporate,Payments to Contractors External
Ashfield District Council,37UB,Greenacre Recruitment Limited,V0967071,10/06/2021,656.25,Place & Communities 2,Supplies & Services,C00255/D200008,Capital Corporate,Payments to Contractors External
Ashfield District Council,37UB,Greenacre Recruitment Limited,V0969162,24/06/2021,750.00,Place & Communities 2,Supplies & Services,C00255/D200008,Capital Corporate,Payments to Contractors External
Ashfield District Council,37UB,SLM,V0967846,03/06/2021,174984.02,Place & Communities 2,Supplies & Services,C00260/D200008,Capital Corporate,Payments to Contractors External
Ashfield District Council,37UB,Sports & Leisure Management Ltd,V0967737,03/06/2021,10401.00,Place & Communities 2,Supplies & Services,C00260/D200008,Capital Corporate,Payments to Contractors External
Ashfield District Council,37UB,SYSTRA Limited,V0968943,17/06/2021,4315.85,Place & Communities 2,Supplies & Services,C00255/D200008,Capital Corporate,Payments to Contractors External
Ashfield District Council,37UB,Kingsfield Computer Products Ltd,V0968010,10/06/2021,1799.25,R & B Transformation 2,Supplies & Services,C00244/D200008,Capital Corporate,Payments to Contractors External
Ashfield District Council,37UB,Industrial Contracting Services Ltd,V0969233,24/06/2021,31080.47,Place & Communities 2,Supplies & Services,C00243/D200008,Area Consultative Group Scheme,Payments to Contractors External
Ashfield District Council,37UB,Land Restoration Services Ltd,V0968981,17/06/2021,726.85,Place & Communities 2,Supplies & Services,D00231/D200008,Area Consultative Group Scheme,Payments to Contractors External
Ashfield District Council,37UB,Ashfield Voluntary Action,V0968996,17/06/2021,2495.00,R & B Transformation 2,Supplies & Services,C00199/D200008,Area Consultative Group Scheme,Payments to Contractors External
Ashfield District Council,37UB,REDACTED,V0969234,24/06/2021,2500.00,R & B Transformation 2,Supplies & Services,C00199/D200008,Area Consultative Group Scheme,Payments to Contractors External
Ashfield District Council,37UB,Faithful & Gould Ltd,V0968013,10/06/2021,8484.74,Place & Communities 2,Supplies & Services,C00235/D200008,Capital Economy,Payments to Contractors External
Ashfield District Council,37UB,Kier Construction - North and Scotland,V0968088,10/06/2021,315596.82,Place & Communities 2,Supplies & Services,C00235/D200008,Capital Economy,Payments to Contractors External
Ashfield District Council,37UB,Ackroyd Electrical Services Ltd,V0969202,24/06/2021,2847.10,Place & Communities 2,Supplies & Services,C00125001/D200008,Capital Environment,Payments to Contractors External
Ashfield District Council,37UB,Parkin Contractors Limited,V0968151,17/06/2021,129177.07,Place & Communities 2,Supplies & Services,C00125001/D200008,Capital Environment,Payments to Contractors External
Ashfield District Council,37UB,Bransons,V0969156,17/06/2021,598.34,Housing & Assets 2,Supplies & Services,G00450003/D200033,Capital Housing Revenue,Decoration Vouchers
Ashfield District Council,37UB,Michael Dyson Associates,V0961994,03/06/2021,2394.98,Housing & Assets 2,Supplies & Services,G00480001/D201010,Capital Housing Revenue,Professional and Consultancy Services
Ashfield District Council,37UB,Perfect Circle JV Ltd,V0966099,24/06/2021,1120.00,Housing & Assets 2,Supplies & Services,G00450009/D200008,Capital Housing Revenue,Payments to Contractors External
Ashfield District Council,37UB,Persimmon Homes Ltd Nottingham,V0967733,03/06/2021,6196.44,Housing & Assets 2,Supplies & Services,C00236/D200008,Capital Housing Revenue,Payments to Contractors External
Ashfield District Council,37UB,Rider Levett Bucknall UK Ltd,V0967175,03/06/2021,-3500.00,Housing & Assets 2,Supplies & Services,G00932/D200008,Capital Housing Revenue,Payments to Contractors External
Ashfield District Council,37UB,Rider Levett Bucknall UK Ltd,V0967784,03/06/2021,3000.00,Housing & Assets 2,Supplies & Services,G00932/D200008,Capital Housing Revenue,Payments to Contractors External
Ashfield District Council,37UB,Rider Levett Bucknall UK Ltd,V0967785,03/06/2021,1500.00,Housing & Assets 2,Supplies & Services,G00931/D200008,Capital Housing Revenue,Payments to Contractors External
Ashfield District Council,37UB,Rider Levett Bucknall UK Ltd,V0967726,24/06/2021,3500.00,Housing & Assets 2,Supplies & Services,G00932/D200008,Capital Housing Revenue,Payments to Contractors External
Ashfield District Council,37UB,Wilko Retail Limited,V0969321,24/06/2021,58.33,Housing & Assets 2,Supplies & Services,G00450003/D200033,Capital Housing Revenue,Decoration Vouchers
Ashfield District Council,37UB,Kingsfield Computer Products Ltd,V0968010,10/06/2021,599.75,R & B Transformation 2,Supplies & Services,G00930/D200008,Capital Housing Revenue,Payments to Contractors External
Ashfield District Council,37UB,AGS Tech Ltd,V0968009,10/06/2021,2069.58,Housing & Assets 2,Supplies & Services,G51013/D301006,Housing OP and SN,Alarm Lines
Ashfield District Council,37UB,Hoot Fire & Security Ltd,V0968908,17/06/2021,1605.00,Housing & Assets 2,Premises Expenses,G51013/B003011,Housing OP and SN,Fire Alarms
Ashfield District Council,37UB,Morris Vermaport Ltd,V0969141,24/06/2021,132.00,Housing & Assets 2,Premises Expenses,G51015/B003006,Housing OP and SN,Lift
Ashfield District Council,37UB,Morris Vermaport Ltd,V0969141,24/06/2021,66.00,Housing & Assets 2,Premises Expenses,G51022/B003006,Housing OP and SN,Lift
Ashfield District Council,37UB,Morris Vermaport Ltd,V0969141,24/06/2021,66.00,Housing & Assets 2,Premises Expenses,G51023/B003006,Housing OP and SN,Lift
Ashfield District Council,37UB,Morris Vermaport Ltd,V0969141,24/06/2021,66.00,Housing & Assets 2,Premises Expenses,G51030/B003006,Housing OP and SN,Lift
Ashfield District Council,37UB,Morris Vermaport Ltd,V0969141,24/06/2021,132.00,Housing & Assets 2,Premises Expenses,G51013/B003006,Housing OP and SN,Lift
Ashfield District Council,37UB,Morris Vermaport Ltd,V0969141,24/06/2021,66.00,Housing & Assets 2,Premises Expenses,G51021/B003006,Housing OP and SN,Lift
Ashfield District Council,37UB,Morris Vermaport Ltd,V0969141,24/06/2021,66.00,Housing & Assets 2,Premises Expenses,G51026/B003006,Housing OP and SN,Lift
Ashfield District Council,37UB,Morris Vermaport Ltd,V0969141,24/06/2021,66.00,Housing & Assets 2,Premises Expenses,G51027/B003006,Housing OP and SN,Lift
Ashfield District Council,37UB,Morris Vermaport Ltd,V0969141,24/06/2021,66.00,Housing & Assets 2,Premises Expenses,G51028/B003006,Housing OP and SN,Lift
Ashfield District Council,37UB,Morris Vermaport Ltd,V0969141,24/06/2021,66.00,Housing & Assets 2,Premises Expenses,G51007/B003006,Housing OP and SN,Lift
Ashfield District Council,37UB,British Gas Business,V0969028,24/06/2021,86.42,R & B Transformation 2,Premises Expenses,G51013/B102,Housing OP and SN,Electricity
Ashfield District Council,37UB,British Gas Business,V0969030,24/06/2021,108.21,R & B Transformation 2,Premises Expenses,G51013/B102,Housing OP and SN,Electricity
Ashfield District Council,37UB,Castle Water Ltd,V0969237,24/06/2021,10.27,R & B Transformation 2,Premises Expenses,G51021/B401,Housing OP and SN,Water rates
Ashfield District Council,37UB,Castle Water Ltd,V0969237,24/06/2021,93.19,R & B Transformation 2,Premises Expenses,G51023/B401,Housing OP and SN,Water rates
Ashfield District Council,37UB,Castle Water Ltd,V0969237,24/06/2021,1.48,R & B Transformation 2,Premises Expenses,G51015/B401,Housing OP and SN,Water rates
Ashfield District Council,37UB,Castle Water Ltd,V0969237,24/06/2021,1.17,R & B Transformation 2,Premises Expenses,G51015/B401,Housing OP and SN,Water rates
Ashfield District Council,37UB,Castle Water Ltd,V0969237,24/06/2021,1.17,R & B Transformation 2,Premises Expenses,G51015/B401,Housing OP and SN,Water rates
Ashfield District Council,37UB,Castle Water Ltd,V0969237,24/06/2021,23.44,R & B Transformation 2,Premises Expenses,G51020/B401,Housing OP and SN,Water rates
Ashfield District Council,37UB,Castle Water Ltd,V0969237,24/06/2021,41.16,R & B Transformation 2,Premises Expenses,G51015/B401,Housing OP and SN,Water rates
Ashfield District Council,37UB,Castle Water Ltd,V0969237,24/06/2021,7.08,R & B Transformation 2,Premises Expenses,G51022/B401,Housing OP and SN,Water rates
Ashfield District Council,37UB,Castle Water Ltd,V0969237,24/06/2021,24.28,R & B Transformation 2,Premises Expenses,G51028/B401,Housing OP and SN,Water rates
Ashfield District Council,37UB,Castle Water Ltd,V0969237,24/06/2021,-28.61,R & B Transformation 2,Premises Expenses,G51022/B401,Housing OP and SN,Water rates
Ashfield District Council,37UB,Castle Water Ltd,V0969237,24/06/2021,113.84,R & B Transformation 2,Premises Expenses,G51009/B401,Housing OP and SN,Water rates
Ashfield District Council,37UB,Castle Water Ltd,V0969237,24/06/2021,4.00,R & B Transformation 2,Premises Expenses,G51022/B401,Housing OP and SN,Water rates
Ashfield District Council,37UB,Castle Water Ltd,V0969237,24/06/2021,2.04,R & B Transformation 2,Premises Expenses,G51015/B401,Housing OP and SN,Water rates
Ashfield District Council,37UB,Castle Water Ltd,V0969237,24/06/2021,4.68,R & B Transformation 2,Premises Expenses,G51015/B401,Housing OP and SN,Water rates
Ashfield District Council,37UB,Castle Water Ltd,V0969237,24/06/2021,8.76,R & B Transformation 2,Premises Expenses,G51015/B401,Housing OP and SN,Water rates
Ashfield District Council,37UB,Castle Water Ltd,V0969237,24/06/2021,21.37,R & B Transformation 2,Premises Expenses,G51015/B401,Housing OP and SN,Water rates
Ashfield District Council,37UB,Castle Water Ltd,V0969237,24/06/2021,1.17,R & B Transformation 2,Premises Expenses,G51015/B401,Housing OP and SN,Water rates
Ashfield District Council,37UB,Castle Water Ltd,V0969237,24/06/2021,29.86,R & B Transformation 2,Premises Expenses,G51022/B401,Housing OP and SN,Water rates
Ashfield District Council,37UB,Castle Water Ltd,V0969237,24/06/2021,79.65,R & B Transformation 2,Premises Expenses,G51008/B401,Housing OP and SN,Water rates
Ashfield District Council,37UB,Castle Water Ltd,V0969237,24/06/2021,6.97,R & B Transformation 2,Premises Expenses,G51022/B401,Housing OP and SN,Water rates
Ashfield District Council,37UB,Castle Water Ltd,V0969237,24/06/2021,-14.12,R & B Transformation 2,Premises Expenses,G51022/B401,Housing OP and SN,Water rates
Ashfield District Council,37UB,Castle Water Ltd,V0969237,24/06/2021,28.86,R & B Transformation 2,Premises Expenses,G51026/B401,Housing OP and SN,Water rates
Ashfield District Council,37UB,Castle Water Ltd,V0969237,24/06/2021,30.33,R & B Transformation 2,Premises Expenses,G51022/B401,Housing OP and SN,Water rates
Ashfield District Council,37UB,Castle Water Ltd,V0969237,24/06/2021,76.77,R & B Transformation 2,Premises Expenses,G51027/B401,Housing OP and SN,Water rates
Ashfield District Council,37UB,Castle Water Ltd,V0969237,24/06/2021,-29.99,R & B Transformation 2,Premises Expenses,G51022/B401,Housing OP and SN,Water rates
Ashfield District Council,37UB,Castle Water Ltd,V0969237,24/06/2021,3.87,R & B Transformation 2,Premises Expenses,G51022/B401,Housing OP and SN,Water rates
Ashfield District Council,37UB,Castle Water Ltd,V0969237,24/06/2021,6.26,R & B Transformation 2,Premises Expenses,G51028/B401,Housing OP and SN,Water rates
Ashfield District Council,37UB,Castle Water Ltd,V0969237,24/06/2021,-13.03,R & B Transformation 2,Premises Expenses,G51022/B401,Housing OP and SN,Water rates
Ashfield District Council,37UB,Castle Water Ltd,V0969237,24/06/2021,4.93,R & B Transformation 2,Premises Expenses,G51022/B401,Housing OP and SN,Water rates
Ashfield District Council,37UB,Castle Water Ltd,V0969237,24/06/2021,1.17,R & B Transformation 2,Premises Expenses,G51015/B401,Housing OP and SN,Water rates
Ashfield District Council,37UB,Castle Water Ltd,V0969237,24/06/2021,-6.39,R & B Transformation 2,Premises Expenses,G51022/B401,Housing OP and SN,Water rates
Ashfield District Council,37UB,Castle Water Ltd,V0969237,24/06/2021,7.20,R & B Transformation 2,Premises Expenses,G51022/B401,Housing OP and SN,Water rates
Ashfield District Council,37UB,Castle Water Ltd,V0969237,24/06/2021,-6.06,R & B Transformation 2,Premises Expenses,G51022/B401,Housing OP and SN,Water rates
Ashfield District Council,37UB,Castle Water Ltd,V0969237,24/06/2021,1.50,R & B Transformation 2,Premises Expenses,G51015/B401,Housing OP and SN,Water rates
Ashfield District Council,37UB,Castle Water Ltd,V0969237,24/06/2021,29.36,R & B Transformation 2,Premises Expenses,G51022/B401,Housing OP and SN,Water rates
Ashfield District Council,37UB,Daisy Telecoms Ltd,V0966352,03/06/2021,31.84,R & B Transformation 2,Supplies & Services,G51027/D301006,Housing OP and SN,Alarm Lines
Ashfield District Council,37UB,Daisy Telecoms Ltd,V0966352,03/06/2021,13.52,R & B Transformation 2,Premises Expenses,G51009/B003011,Housing OP and SN,Fire Alarms
Ashfield District Council,37UB,Daisy Telecoms Ltd,V0966352,03/06/2021,24.03,R & B Transformation 2,Supplies & Services,G51015/D301002,Housing OP and SN,Telephones
Ashfield District Council,37UB,Daisy Telecoms Ltd,V0966352,03/06/2021,72.14,R & B Transformation 2,Supplies & Services,G51022/D301006,Housing OP and SN,Alarm Lines
Ashfield District Council,37UB,Daisy Telecoms Ltd,V0966352,03/06/2021,13.52,R & B Transformation 2,Supplies & Services,G51022/D301002,Housing OP and SN,Telephones
Ashfield District Council,37UB,Daisy Telecoms Ltd,V0966352,03/06/2021,13.52,R & B Transformation 2,Premises Expenses,G51030/B004006,Housing OP and SN,General; Building Repairs & Courts
Ashfield District Council,37UB,Daisy Telecoms Ltd,V0966352,03/06/2021,27.29,R & B Transformation 2,Supplies & Services,G51028/D301006,Housing OP and SN,Alarm Lines
Ashfield District Council,37UB,Daisy Telecoms Ltd,V0966352,03/06/2021,43.11,R & B Transformation 2,Supplies & Services,G51030/D301006,Housing OP and SN,Alarm Lines
Ashfield District Council,37UB,Daisy Telecoms Ltd,V0966352,03/06/2021,63.98,R & B Transformation 2,Supplies & Services,G51026/D301006,Housing OP and SN,Alarm Lines
Ashfield District Council,37UB,Daisy Telecoms Ltd,V0966352,03/06/2021,217.06,R & B Transformation 2,Premises Expenses,G51001/B003010,Housing OP and SN,C C T V Cameras
Ashfield District Council,37UB,Daisy Telecoms Ltd,V0966352,03/06/2021,24.03,R & B Transformation 2,Supplies & Services,G51028/D301002,Housing OP and SN,Telephones
Ashfield District Council,37UB,Daisy Telecoms Ltd,V0966352,03/06/2021,24.03,R & B Transformation 2,Supplies & Services,G51030/D301002,Housing OP and SN,Telephones
Ashfield District Council,37UB,Daisy Telecoms Ltd,V0966352,03/06/2021,83.09,R & B Transformation 2,Supplies & Services,G51015/D301006,Housing OP and SN,Alarm Lines
Ashfield District Council,37UB,Daisy Telecoms Ltd,V0966352,03/06/2021,13.52,R & B Transformation 2,Premises Expenses,G51008/B003011,Housing OP and SN,Fire Alarms
Ashfield District Council,37UB,Daisy Telecoms Ltd,V0966352,03/06/2021,16.57,R & B Transformation 2,Premises Expenses,G51028/B003011,Housing OP and SN,Fire Alarms
Ashfield District Council,37UB,Daisy Telecoms Ltd,V0966352,03/06/2021,41.51,R & B Transformation 2,Supplies & Services,G51021/D301006,Housing OP and SN,Alarm Lines
Ashfield District Council,37UB,Daisy Telecoms Ltd,V0966352,03/06/2021,37.55,R & B Transformation 2,Supplies & Services,G51027/D301002,Housing OP and SN,Telephones
Ashfield District Council,37UB,Daisy Telecoms Ltd,V0966352,03/06/2021,148.72,R & B Transformation 2,Supplies & Services,G51001/D301002,Housing OP and SN,Telephones
Ashfield District Council,37UB,Daisy Telecoms Ltd,V0966352,03/06/2021,13.52,R & B Transformation 2,Premises Expenses,G51023/B003011,Housing OP and SN,Fire Alarms
Ashfield District Council,37UB,Daisy Telecoms Ltd,V0966352,03/06/2021,13.67,R & B Transformation 2,Supplies & Services,G51023/D301006,Housing OP and SN,Alarm Lines
Ashfield District Council,37UB,Daisy Telecoms Ltd,V0967768,03/06/2021,13.74,R & B Transformation 2,Supplies & Services,G51015/D301002,Housing OP and SN,Telephones
Ashfield District Council,37UB,Daisy Telecoms Ltd,V0967768,03/06/2021,5.72,R & B Transformation 2,Supplies & Services,G51027/D301002,Housing OP and SN,Telephones
Ashfield District Council,37UB,Daisy Telecoms Ltd,V0967768,03/06/2021,6.87,R & B Transformation 2,Supplies & Services,G51028/D301002,Housing OP and SN,Telephones
Ashfield District Council,37UB,Daisy Telecoms Ltd,V0967768,03/06/2021,6.87,R & B Transformation 2,Supplies & Services,G51030/D301002,Housing OP and SN,Telephones
Ashfield District Council,37UB,Daisy Telecoms Ltd,V0968040,17/06/2021,15.42,R & B Transformation 2,Premises Expenses,G51028/B003011,Housing OP and SN,Fire Alarms
Ashfield District Council,37UB,Daisy Telecoms Ltd,V0968040,17/06/2021,82.49,R & B Transformation 2,Supplies & Services,G51015/D301006,Housing OP and SN,Alarm Lines
Ashfield District Council,37UB,Daisy Telecoms Ltd,V0968040,17/06/2021,24.03,R & B Transformation 2,Supplies & Services,G51015/D301002,Housing OP and SN,Telephones
Ashfield District Council,37UB,Daisy Telecoms Ltd,V0968040,17/06/2021,13.52,R & B Transformation 2,Premises Expenses,G51008/B003011,Housing OP and SN,Fire Alarms
Ashfield District Council,37UB,Daisy Telecoms Ltd,V0968040,17/06/2021,24.03,R & B Transformation 2,Supplies & Services,G51028/D301002,Housing OP and SN,Telephones
Ashfield District Council,37UB,Daisy Telecoms Ltd,V0968040,17/06/2021,37.55,R & B Transformation 2,Supplies & Services,G51027/D301002,Housing OP and SN,Telephones
Ashfield District Council,37UB,Daisy Telecoms Ltd,V0968040,17/06/2021,13.52,R & B Transformation 2,Premises Expenses,G51023/B003011,Housing OP and SN,Fire Alarms
Ashfield District Council,37UB,Daisy Telecoms Ltd,V0968040,17/06/2021,13.52,R & B Transformation 2,Premises Expenses,G51009/B003011,Housing OP and SN,Fire Alarms
Ashfield District Council,37UB,Daisy Telecoms Ltd,V0968040,17/06/2021,231.02,R & B Transformation 2,Premises Expenses,G51001/B003010,Housing OP and SN,C C T V Cameras
Ashfield District Council,37UB,Daisy Telecoms Ltd,V0968040,17/06/2021,24.03,R & B Transformation 2,Supplies & Services,G51030/D301002,Housing OP and SN,Telephones
Ashfield District Council,37UB,Daisy Telecoms Ltd,V0968040,17/06/2021,13.52,R & B Transformation 2,Supplies & Services,G51022/D301002,Housing OP and SN,Telephones
Ashfield District Council,37UB,Daisy Telecoms Ltd,V0968040,17/06/2021,13.52,R & B Transformation 2,Premises Expenses,G51030/B004006,Housing OP and SN,General; Building Repairs & Courts
Ashfield District Council,37UB,Daisy Telecoms Ltd,V0968040,17/06/2021,41.41,R & B Transformation 2,Supplies & Services,G51021/D301006,Housing OP and SN,Alarm Lines
Ashfield District Council,37UB,Daisy Telecoms Ltd,V0968040,17/06/2021,27.24,R & B Transformation 2,Supplies & Services,G51028/D301006,Housing OP and SN,Alarm Lines
Ashfield District Council,37UB,Daisy Telecoms Ltd,V0968040,17/06/2021,148.72,R & B Transformation 2,Supplies & Services,G51001/D301002,Housing OP and SN,Telephones
Ashfield District Council,37UB,Daisy Telecoms Ltd,V0968040,17/06/2021,42.31,R & B Transformation 2,Supplies & Services,G51030/D301006,Housing OP and SN,Alarm Lines
Ashfield District Council,37UB,Daisy Telecoms Ltd,V0968040,17/06/2021,71.39,R & B Transformation 2,Supplies & Services,G51022/D301006,Housing OP and SN,Alarm Lines
Ashfield District Council,37UB,Daisy Telecoms Ltd,V0968040,17/06/2021,78.30,R & B Transformation 2,Supplies & Services,G51026/D301006,Housing OP and SN,Alarm Lines
Ashfield District Council,37UB,Daisy Telecoms Ltd,V0968040,17/06/2021,35.86,R & B Transformation 2,Supplies & Services,G51027/D301006,Housing OP and SN,Alarm Lines
Ashfield District Council,37UB,EDF Energy 1 Ltd,V0968066,17/06/2021,1444.00,R & B Transformation 2,Premises Expenses,G51026/B102,Housing OP and SN,Electricity
Ashfield District Council,37UB,Total Gas & Power,V0968977,24/06/2021,743.66,R & B Transformation 2,Premises Expenses,G51013/B101,Housing OP and SN,Gas
Ashfield District Council,37UB,Total Gas & Power,V0968977,24/06/2021,70.80,R & B Transformation 2,Premises Expenses,G51009/B101,Housing OP and SN,Gas
Ashfield District Council,37UB,Total Gas & Power,V0968977,24/06/2021,1075.40,R & B Transformation 2,Premises Expenses,G51019/B101,Housing OP and SN,Gas
Ashfield District Council,37UB,Total Gas & Power,V0968977,24/06/2021,510.58,R & B Transformation 2,Premises Expenses,G51019/B101,Housing OP and SN,Gas
Ashfield District Council,37UB,Total Gas & Power,V0968977,24/06/2021,81.33,R & B Transformation 2,Premises Expenses,G51015/B101,Housing OP and SN,Gas
Ashfield District Council,37UB,Total Gas & Power,V0968977,24/06/2021,924.32,R & B Transformation 2,Premises Expenses,G51030/B101,Housing OP and SN,Gas
Ashfield District Council,37UB,Total Gas & Power,V0968977,24/06/2021,1114.86,R & B Transformation 2,Premises Expenses,G51022/B101,Housing OP and SN,Gas
Ashfield District Council,37UB,Total Gas & Power,V0968977,24/06/2021,302.58,R & B Transformation 2,Premises Expenses,G51007/B101,Housing OP and SN,Gas
Ashfield District Council,37UB,Total Gas & Power,V0968977,24/06/2021,6206.35,R & B Transformation 2,Premises Expenses,G51023/B101,Housing OP and SN,Gas
Ashfield District Council,37UB,Total Gas & Power,V0968977,24/06/2021,629.33,R & B Transformation 2,Premises Expenses,G51028/B101,Housing OP and SN,Gas
Ashfield District Council,37UB,Total Gas & Power,V0968977,24/06/2021,107.09,R & B Transformation 2,Premises Expenses,G51008/B101,Housing OP and SN,Gas
Ashfield District Council,37UB,Total Gas & Power,V0968977,24/06/2021,563.05,R & B Transformation 2,Premises Expenses,G51019/B101,Housing OP and SN,Gas
Ashfield District Council,37UB,Total Gas & Power,V0968977,24/06/2021,62.54,R & B Transformation 2,Premises Expenses,G51007/B101,Housing OP and SN,Gas
Ashfield District Council,37UB,aAFD Services Ltd,V0967749,10/06/2021,2433.75,Housing & Assets 2,Premises Expenses,N23000/B003004,Housing Revenue Account,Cleaning
Ashfield District Council,37UB,Association Of Retained Council Housing Ltd (ARCH),V0968594,10/06/2021,2899.00,Housing & Assets 2,Supplies & Services,G23000/D201007,Housing Revenue Account,Membership/Subscriptions
Ashfield District Council,37UB,D.P.Tool Hire,V0969287,24/06/2021,219.99,Housing & Assets 2,Supplies & Services,G23011050/D001006,Housing Revenue Account,Furniture Purchase
Ashfield District Council,37UB,Morris Vermaport Ltd,V0969141,24/06/2021,66.00,Housing & Assets 2,Premises Expenses,N23000/B001001,Housing Revenue Account,General Repairs Asset Maintenance
Ashfield District Council,37UB,Park Lane Self Drive Ltd,V0967750,03/06/2021,420.00,Place & Communities 2,Supplies & Services,N23000/D003002,Housing Revenue Account,Leasing
Ashfield District Council,37UB,British Gas Trading Limited,V0966896,03/06/2021,32.98,R & B Transformation 2,Premises Expenses,G23011055/B101,Housing Revenue Account,Gas
Ashfield District Council,37UB,British Gas Trading Limited,V0966897,03/06/2021,60.28,R & B Transformation 2,Premises Expenses,G23011055/B102,Housing Revenue Account,Electricity
Ashfield District Council,37UB,British Gas Trading Limited,V0966898,03/06/2021,70.33,R & B Transformation 2,Premises Expenses,G23011041/B101,Housing Revenue Account,Gas
Ashfield District Council,37UB,British Gas Trading Limited,V0966898,03/06/2021,120.84,R & B Transformation 2,Premises Expenses,G23011041/B102,Housing Revenue Account,Electricity
Ashfield District Council,37UB,British Gas Trading Limited,V0967717,03/06/2021,120.79,R & B Transformation 2,Premises Expenses,G23011002/B102,Housing Revenue Account,Electricity
Ashfield District Council,37UB,British Gas Trading Limited,V0967717,03/06/2021,265.94,R & B Transformation 2,Premises Expenses,G23011002/B101,Housing Revenue Account,Gas
Ashfield District Council,37UB,British Gas Trading Limited,V0967718,03/06/2021,532.06,R & B Transformation 2,Premises Expenses,g23011013/b102,Housing Revenue Account,Electricity
Ashfield District Council,37UB,British Gas Trading Limited,V0967815,03/06/2021,80.00,R & B Transformation 2,Premises Expenses,G23011020/B101,Housing Revenue Account,Gas
Ashfield District Council,37UB,British Gas Trading Limited,V0967817,03/06/2021,70.29,R & B Transformation 2,Premises Expenses,G23011014/B102,Housing Revenue Account,Electricity
Ashfield District Council,37UB,British Gas Trading Limited,V0967817,03/06/2021,33.26,R & B Transformation 2,Premises Expenses,G23011014/b101,Housing Revenue Account,Gas
Ashfield District Council,37UB,British Gas Trading Limited,V0967823,03/06/2021,13.11,R & B Transformation 2,Premises Expenses,G23011029/B102,Housing Revenue Account,Electricity
Ashfield District Council,37UB,British Gas Trading Limited,V0967823,03/06/2021,58.69,R & B Transformation 2,Premises Expenses,G23011029/B101,Housing Revenue Account,Gas
Ashfield District Council,37UB,British Gas Trading Limited,V0967843,03/06/2021,239.84,R & B Transformation 2,Premises Expenses,G23011029/B101,Housing Revenue Account,Gas
Ashfield District Council,37UB,British Gas Trading Limited,V0967843,03/06/2021,85.62,R & B Transformation 2,Premises Expenses,G23011029/B102,Housing Revenue Account,Electricity
Ashfield District Council,37UB,British Gas Trading Limited,V0967844,03/06/2021,172.74,R & B Transformation 2,Premises Expenses,G23011029/B101,Housing Revenue Account,Gas
Ashfield District Council,37UB,British Gas Trading Limited,V0967844,03/06/2021,87.66,R & B Transformation 2,Premises Expenses,G23011029/B102,Housing Revenue Account,Electricity
Ashfield District Council,37UB,British Gas Trading Limited,V0967816,10/06/2021,159.95,R & B Transformation 2,Premises Expenses,G23011001/B101,Housing Revenue Account,Gas
Ashfield District Council,37UB,British Gas Trading Limited,V0967816,10/06/2021,35.38,R & B Transformation 2,Premises Expenses,G23011001/B102,Housing Revenue Account,Electricity
Ashfield District Council,37UB,British Gas Trading Limited,V0967818,10/06/2021,102.89,R & B Transformation 2,Premises Expenses,G23011003/B101,Housing Revenue Account,Gas
Ashfield District Council,37UB,British Gas Trading Limited,V0967818,10/06/2021,41.14,R & B Transformation 2,Premises Expenses,G23011003/B102,Housing Revenue Account,Electricity
Ashfield District Council,37UB,British Gas Trading Limited,V0968080,10/06/2021,186.21,R & B Transformation 2,Premises Expenses,G23011046/B101,Housing Revenue Account,Gas
Ashfield District Council,37UB,British Gas Trading Limited,V0968080,10/06/2021,82.47,R & B Transformation 2,Premises Expenses,G23011046/B102,Housing Revenue Account,Electricity
Ashfield District Council,37UB,Castle Water Ltd,V0969237,24/06/2021,12.75,R & B Transformation 2,Premises Expenses,G23100005/B401,Housing Revenue Account,Water rates
Ashfield District Council,37UB,Castle Water Ltd,V0969237,24/06/2021,133.30,R & B Transformation 2,Premises Expenses,N23000/B401,Housing Revenue Account,Water rates
Ashfield District Council,37UB,Castle Water Ltd,V0969237,24/06/2021,19.05,R & B Transformation 2,Premises Expenses,G23100002/B401,Housing Revenue Account,Water rates
Ashfield District Council,37UB,Castle Water Ltd,V0969237,24/06/2021,17.57,R & B Transformation 2,Premises Expenses,G23100006/B401,Housing Revenue Account,Water rates
Ashfield District Council,37UB,Castle Water Ltd,V0969237,24/06/2021,16.01,R & B Transformation 2,Premises Expenses,G23100003/B401,Housing Revenue Account,Water rates
Ashfield District Council,37UB,Castle Water Ltd,V0969237,24/06/2021,-14.63,R & B Transformation 2,Premises Expenses,G23100005/B401,Housing Revenue Account,Water rates
Ashfield District Council,37UB,Castle Water Ltd,V0969237,24/06/2021,19.75,R & B Transformation 2,Premises Expenses,G23100007/B401,Housing Revenue Account,Water rates
Ashfield District Council,37UB,Castle Water Ltd,V0969237,24/06/2021,37.48,R & B Transformation 2,Premises Expenses,G23100004/B401,Housing Revenue Account,Water rates
Ashfield District Council,37UB,Daisy Telecoms Ltd,V0966352,03/06/2021,13.52,R & B Transformation 2,Premises Expenses,G23100004/B003026,Housing Revenue Account,Radio Controlled /Radio Equipment
Ashfield District Council,37UB,Daisy Telecoms Ltd,V0966352,03/06/2021,15.90,R & B Transformation 2,Premises Expenses,G23100007/B003026,Housing Revenue Account,Radio Controlled /Radio Equipment
Ashfield District Council,37UB,Daisy Telecoms Ltd,V0966352,03/06/2021,13.52,R & B Transformation 2,Premises Expenses,G23100001/B003026,Housing Revenue Account,Radio Controlled /Radio Equipment
Ashfield District Council,37UB,Daisy Telecoms Ltd,V0966352,03/06/2021,58.09,R & B Transformation 2,Supplies & Services,N23000/D301006,Housing Revenue Account,Alarm Lines
Ashfield District Council,37UB,Daisy Telecoms Ltd,V0966352,03/06/2021,13.52,R & B Transformation 2,Premises Expenses,G23100005/B003026,Housing Revenue Account,Radio Controlled /Radio Equipment
Ashfield District Council,37UB,Daisy Telecoms Ltd,V0966352,03/06/2021,13.52,R & B Transformation 2,Premises Expenses,G23100006/B003026,Housing Revenue Account,Radio Controlled /Radio Equipment
Ashfield District Council,37UB,Daisy Telecoms Ltd,V0966359,03/06/2021,102.72,R & B Transformation 2,Supplies & Services,G23100007/d301002,Housing Revenue Account,Telephones
Ashfield District Council,37UB,Daisy Telecoms Ltd,V0966359,03/06/2021,48.06,R & B Transformation 2,Supplies & Services,N23000/d301002,Housing Revenue Account,Telephones
Ashfield District Council,37UB,Daisy Telecoms Ltd,V0966359,03/06/2021,35.86,R & B Transformation 2,Supplies & Services,G23100002/d301002,Housing Revenue Account,Telephones
Ashfield District Council,37UB,Daisy Telecoms Ltd,V0968040,17/06/2021,13.52,R & B Transformation 2,Premises Expenses,G23100005/B003026,Housing Revenue Account,Radio Controlled /Radio Equipment
Ashfield District Council,37UB,Daisy Telecoms Ltd,V0968040,17/06/2021,58.09,R & B Transformation 2,Supplies & Services,N23000/D301006,Housing Revenue Account,Alarm Lines
Ashfield District Council,37UB,Daisy Telecoms Ltd,V0968040,17/06/2021,13.52,R & B Transformation 2,Premises Expenses,G23100004/B003026,Housing Revenue Account,Radio Controlled /Radio Equipment
Ashfield District Council,37UB,Daisy Telecoms Ltd,V0968040,17/06/2021,17.16,R & B Transformation 2,Premises Expenses,G23100007/B003026,Housing Revenue Account,Radio Controlled /Radio Equipment
Ashfield District Council,37UB,Daisy Telecoms Ltd,V0968040,17/06/2021,13.52,R & B Transformation 2,Premises Expenses,G23100001/B003026,Housing Revenue Account,Radio Controlled /Radio Equipment
Ashfield District Council,37UB,Daisy Telecoms Ltd,V0968040,17/06/2021,13.52,R & B Transformation 2,Premises Expenses,G23100006/B003026,Housing Revenue Account,Radio Controlled /Radio Equipment
Ashfield District Council,37UB,Daisy Telecoms Ltd,V0968126,17/06/2021,35.86,R & B Transformation 2,Supplies & Services,G23100002/d301002,Housing Revenue Account,Telephones
Ashfield District Council,37UB,Daisy Telecoms Ltd,V0968126,17/06/2021,102.72,R & B Transformation 2,Supplies & Services,G23100007/d301002,Housing Revenue Account,Telephones
Ashfield District Council,37UB,Daisy Telecoms Ltd,V0968126,17/06/2021,48.06,R & B Transformation 2,Supplies & Services,N23000/d301002,Housing Revenue Account,Telephones
Ashfield District Council,37UB,Total Gas & Power,V0968977,24/06/2021,106.66,R & B Transformation 2,Premises Expenses,N23000/B101,Housing Revenue Account,Gas
Ashfield District Council,37UB,Total Gas & Power,V0968977,24/06/2021,130.51,R & B Transformation 2,Premises Expenses,G23100002/B101,Housing Revenue Account,Gas
Ashfield District Council,37UB,Total Gas & Power,V0968977,24/06/2021,87.82,R & B Transformation 2,Premises Expenses,G23100007/B101,Housing Revenue Account,Gas
Ashfield District Council,37UB,Total Gas & Power,V0968977,24/06/2021,75.40,R & B Transformation 2,Premises Expenses,G23100006/B101,Housing Revenue Account,Gas
Ashfield District Council,37UB,Total Gas & Power,V0968977,24/06/2021,73.53,R & B Transformation 2,Premises Expenses,G23100004/B101,Housing Revenue Account,Gas
Ashfield District Council,37UB,Total Gas & Power,V0968977,24/06/2021,52.41,R & B Transformation 2,Premises Expenses,G23100005/B101,Housing Revenue Account,Gas
Ashfield District Council,37UB,HQN Limited,V0969254,24/06/2021,820.00,Housing & Assets 2,Supplies & Services,G70000/D201007,HS Management,Membership/Subscriptions
Ashfield District Council,37UB,Bibby Factors (Leicester) Ltd,V0966817,03/06/2021,714.19,Housing & Assets 2,Employee Expenses,G53000/A200004,Lettings and PS,Agency Staff
Ashfield District Council,37UB,Bibby Factors (Leicester) Ltd,V0967763,03/06/2021,669.52,Housing & Assets 2,Employee Expenses,G53000/A200004,Lettings and PS,Agency Staff
Ashfield District Council,37UB,Bibby Factors (Leicester) Ltd,V0969220,24/06/2021,739.19,Housing & Assets 2,Employee Expenses,G53000/A200004,Lettings and PS,Agency Staff
Ashfield District Council,37UB,TurnerFox Recruitment Limited,V0969309,24/06/2021,553.89,Housing & Assets 2,Employee Expenses,G53000/A200004,Lettings and PS,Agency Staff
Ashfield District Council,37UB,Daisy Corporate Services Trading Ltd,V0969267,24/06/2021,227.91,R & B Transformation 2,Supplies & Services,G53000/D001001,Lettings and PS,Equipment Purchase
Ashfield District Council,37UB,Royal Mail,V0965933,03/06/2021,80.64,R & B Transformation 2,Supplies & Services,G53000/D301001,Lettings and PS,Postages
Ashfield District Council,37UB,Royal Mail,V0966892,03/06/2021,103.41,R & B Transformation 2,Supplies & Services,G53000/D301001,Lettings and PS,Postages
Ashfield District Council,37UB,Royal Mail,V0967235,10/06/2021,161.90,R & B Transformation 2,Supplies & Services,G53000/D301001,Lettings and PS,Postages
Ashfield District Council,37UB,Royal Mail,V0968328,17/06/2021,170.52,R & B Transformation 2,Supplies & Services,G53000/D301001,Lettings and PS,Postages
Ashfield District Council,37UB,Royal Mail,V0968329,17/06/2021,103.03,R & B Transformation 2,Supplies & Services,G53000/D301001,Lettings and PS,Postages
Ashfield District Council,37UB,Miltons Wallpapers Limited,V0969329,24/06/2021,2250.60,Housing & Assets 2,Supplies & Services,G56004/D200033,Tech Servs Planned Responsive,Decoration Vouchers
Ashfield District Council,37UB,Wilko Retail Limited,V0968104,10/06/2021,251.67,Housing & Assets 2,Supplies & Services,G56004/D200033,Tech Servs Planned Responsive,Decoration Vouchers
Ashfield District Council,37UB,Wilko Retail Limited,V0968105,10/06/2021,124.92,Housing & Assets 2,Supplies & Services,G56004/D200033,Tech Servs Planned Responsive,Decoration Vouchers
Ashfield District Council,37UB,Wilko Retail Limited,V0968106,10/06/2021,122.50,Housing & Assets 2,Supplies & Services,G56004/D200033,Tech Servs Planned Responsive,Decoration Vouchers
Ashfield District Council,37UB,Wilko Retail Limited,V0968107,10/06/2021,83.33,Housing & Assets 2,Supplies & Services,G56004/D200033,Tech Servs Planned Responsive,Decoration Vouchers
Ashfield District Council,37UB,Wilko Retail Limited,V0968109,10/06/2021,122.50,Housing & Assets 2,Supplies & Services,G56004/D200033,Tech Servs Planned Responsive,Decoration Vouchers
Ashfield District Council,37UB,Wilko Retail Limited,V0968110,10/06/2021,77.50,Housing & Assets 2,Supplies & Services,G56004/D200033,Tech Servs Planned Responsive,Decoration Vouchers
Ashfield District Council,37UB,Wilko Retail Limited,V0968111,10/06/2021,63.67,Housing & Assets 2,Supplies & Services,G56004/D200033,Tech Servs Planned Responsive,Decoration Vouchers
Ashfield District Council,37UB,Wilko Retail Limited,V0968112,10/06/2021,129.17,Housing & Assets 2,Supplies & Services,G56004/D200033,Tech Servs Planned Responsive,Decoration Vouchers
Ashfield District Council,37UB,Wilko Retail Limited,V0968113,10/06/2021,125.00,Housing & Assets 2,Supplies & Services,G56004/D200033,Tech Servs Planned Responsive,Decoration Vouchers
Ashfield District Council,37UB,Wilko Retail Limited,V0968114,10/06/2021,131.12,Housing & Assets 2,Supplies & Services,G56004/D200033,Tech Servs Planned Responsive,Decoration Vouchers
Ashfield District Council,37UB,Wilko Retail Limited,V0968115,10/06/2021,244.87,Housing & Assets 2,Supplies & Services,G56004/D200033,Tech Servs Planned Responsive,Decoration Vouchers
Ashfield District Council,37UB,Wilko Retail Limited,V0968116,10/06/2021,96.67,Housing & Assets 2,Supplies & Services,G56004/D200033,Tech Servs Planned Responsive,Decoration Vouchers
Ashfield District Council,37UB,Wilko Retail Limited,V0968117,10/06/2021,348.33,Housing & Assets 2,Supplies & Services,G56004/D200033,Tech Servs Planned Responsive,Decoration Vouchers
Ashfield District Council,37UB,Wilko Retail Limited,V0968118,10/06/2021,148.33,Housing & Assets 2,Supplies & Services,G56004/D200033,Tech Servs Planned Responsive,Decoration Vouchers
Ashfield District Council,37UB,Wilko Retail Limited,V0968119,10/06/2021,174.17,Housing & Assets 2,Supplies & Services,G56004/D200033,Tech Servs Planned Responsive,Decoration Vouchers
Ashfield District Council,37UB,Wilko Retail Limited,V0968120,10/06/2021,129.17,Housing & Assets 2,Supplies & Services,G56004/D200033,Tech Servs Planned Responsive,Decoration Vouchers
Ashfield District Council,37UB,Wilko Retail Limited,V0968122,10/06/2021,147.87,Housing & Assets 2,Supplies & Services,G56004/D200033,Tech Servs Planned Responsive,Decoration Vouchers
Ashfield District Council,37UB,Wilko Retail Limited,V0969157,17/06/2021,96.67,Housing & Assets 2,Supplies & Services,G56004/D200033,Tech Servs Planned Responsive,Decoration Vouchers
Ashfield District Council,37UB,Wilko Retail Limited,V0969158,17/06/2021,225.83,Housing & Assets 2,Supplies & Services,G56004/D200033,Tech Servs Planned Responsive,Decoration Vouchers
Ashfield District Council,37UB,Wilko Retail Limited,V0969159,17/06/2021,172.75,Housing & Assets 2,Supplies & Services,G56004/D200033,Tech Servs Planned Responsive,Decoration Vouchers
Ashfield District Council,37UB,Wilko Retail Limited,V0969160,17/06/2021,219.17,Housing & Assets 2,Supplies & Services,G56004/D200033,Tech Servs Planned Responsive,Decoration Vouchers
Ashfield District Council,37UB,Wilko Retail Limited,V0969161,17/06/2021,150.00,Housing & Assets 2,Supplies & Services,G56004/D200033,Tech Servs Planned Responsive,Decoration Vouchers
Ashfield District Council,37UB,Wilko Retail Limited,V0969165,17/06/2021,118.71,Housing & Assets 2,Supplies & Services,G56004/D200033,Tech Servs Planned Responsive,Decoration Vouchers
Ashfield District Council,37UB,Wilko Retail Limited,V0969166,17/06/2021,143.99,Housing & Assets 2,Supplies & Services,G56004/D200033,Tech Servs Planned Responsive,Decoration Vouchers
Ashfield District Council,37UB,Wilko Retail Limited,V0969167,17/06/2021,124.96,Housing & Assets 2,Supplies & Services,G56004/D200033,Tech Servs Planned Responsive,Decoration Vouchers
Ashfield District Council,37UB,Wilko Retail Limited,V0969169,17/06/2021,96.67,Housing & Assets 2,Supplies & Services,G56004/D200033,Tech Servs Planned Responsive,Decoration Vouchers
Ashfield District Council,37UB,Wilko Retail Limited,V0969170,17/06/2021,174.17,Housing & Assets 2,Supplies & Services,G56004/D200033,Tech Servs Planned Responsive,Decoration Vouchers
Ashfield District Council,37UB,Wilko Retail Limited,V0969171,17/06/2021,174.00,Housing & Assets 2,Supplies & Services,G56004/D200033,Tech Servs Planned Responsive,Decoration Vouchers
Ashfield District Council,37UB,Wilko Retail Limited,V0969310,24/06/2021,112.00,Housing & Assets 2,Supplies & Services,G56004/D200033,Tech Servs Planned Responsive,Decoration Vouchers
Ashfield District Council,37UB,Wilko Retail Limited,V0969311,24/06/2021,51.67,Housing & Assets 2,Supplies & Services,G56004/D200033,Tech Servs Planned Responsive,Decoration Vouchers
Ashfield District Council,37UB,Wilko Retail Limited,V0969312,24/06/2021,77.50,Housing & Assets 2,Supplies & Services,G56004/D200033,Tech Servs Planned Responsive,Decoration Vouchers
Ashfield District Council,37UB,Wilko Retail Limited,V0969313,24/06/2021,112.92,Housing & Assets 2,Supplies & Services,G56004/D200033,Tech Servs Planned Responsive,Decoration Vouchers
Ashfield District Council,37UB,Wilko Retail Limited,V0969316,24/06/2021,248.96,Housing & Assets 2,Supplies & Services,G56004/D200033,Tech Servs Planned Responsive,Decoration Vouchers
Ashfield District Council,37UB,Wilko Retail Limited,V0969317,24/06/2021,122.50,Housing & Assets 2,Supplies & Services,G56004/D200033,Tech Servs Planned Responsive,Decoration Vouchers
Ashfield District Council,37UB,Wilko Retail Limited,V0969318,24/06/2021,77.50,Housing & Assets 2,Supplies & Services,G56004/D200033,Tech Servs Planned Responsive,Decoration Vouchers
Ashfield District Council,37UB,Wilko Retail Limited,V0969319,24/06/2021,77.50,Housing & Assets 2,Supplies & Services,G56004/D200033,Tech Servs Planned Responsive,Decoration Vouchers
Ashfield District Council,37UB,Environtec Limited,V0969666,29/06/2021,20.00,R & B Transformation 2,Premises Expenses,G56005/B004015,Tech Servs Planned Responsive,PM Risk Manage (Asbest/Legion)
Ashfield District Council,37UB,Edstrom of Sweden Ltd,V0967996,10/06/2021,722.38,Place & Communities 2,Transport Related Expenses,G57000/C019,Technical Services Depot,Vehicle and Plant Maintenance
Ashfield District Council,37UB,Maun Motors Self Drive,V0967774,10/06/2021,1125.00,Place & Communities 2,Transport Related Expenses,G57000/C201,Technical Services Depot,Hire of vehicles
Ashfield District Council,37UB,Park Lane Self Drive Ltd,V0968372,10/06/2021,399.21,Place & Communities 2,Transport Related Expenses,G57000/C201,Technical Services Depot,Hire of vehicles
Ashfield District Council,37UB,Park Lane Self Drive Ltd,V0968373,10/06/2021,70.00,Place & Communities 2,Transport Related Expenses,G57000/C201,Technical Services Depot,Hire of vehicles
Ashfield District Council,37UB,Park Lane Self Drive Ltd,V0968374,10/06/2021,479.22,Place & Communities 2,Transport Related Expenses,G57000/C201,Technical Services Depot,Hire of vehicles
Ashfield District Council,37UB,Park Lane Self Drive Ltd,V0968375,10/06/2021,175.00,Place & Communities 2,Transport Related Expenses,G57000/C201,Technical Services Depot,Hire of vehicles
Ashfield District Council,37UB,AGS Tech Ltd,V0969416,29/06/2021,50.00,R & B Transformation 2,Supplies & Services,G57002/D200008,Technical Services Depot,Payments to Contractors External
Ashfield District Council,37UB,AGS Tech Ltd,V0969417,29/06/2021,50.00,R & B Transformation 2,Supplies & Services,G57002/D200008,Technical Services Depot,Payments to Contractors External
Ashfield District Council,37UB,AGS Tech Ltd,V0969418,29/06/2021,50.00,R & B Transformation 2,Supplies & Services,G57002/D200008,Technical Services Depot,Payments to Contractors External
Ashfield District Council,37UB,AGS Tech Ltd,V0969419,29/06/2021,132.05,R & B Transformation 2,Supplies & Services,G57002/D200008,Technical Services Depot,Payments to Contractors External
Ashfield District Council,37UB,AGS Tech Ltd,V0969420,29/06/2021,50.00,R & B Transformation 2,Supplies & Services,G57002/D200008,Technical Services Depot,Payments to Contractors External
Ashfield District Council,37UB,AGS Tech Ltd,V0969421,29/06/2021,55.86,R & B Transformation 2,Supplies & Services,G57002/D200008,Technical Services Depot,Payments to Contractors External
Ashfield District Council,37UB,AGS Tech Ltd,V0969423,29/06/2021,50.00,R & B Transformation 2,Supplies & Services,G57002/D200008,Technical Services Depot,Payments to Contractors External
Ashfield District Council,37UB,AGS Tech Ltd,V0969424,29/06/2021,50.00,R & B Transformation 2,Supplies & Services,G57002/D200008,Technical Services Depot,Payments to Contractors External
Ashfield District Council,37UB,Byron Glass Co Ltd,V0968195,14/06/2021,22.00,R & B Transformation 2,Supplies & Services,G57000/D001004,Technical Services Depot,Chemicals and Materials Purchase
Ashfield District Council,37UB,Byron Glass Co Ltd,V0968196,14/06/2021,57.15,R & B Transformation 2,Supplies & Services,G57000/D001004,Technical Services Depot,Chemicals and Materials Purchase
Ashfield District Council,37UB,Byron Glass Co Ltd,V0968197,14/06/2021,21.30,R & B Transformation 2,Supplies & Services,G57000/D001004,Technical Services Depot,Chemicals and Materials Purchase
Ashfield District Council,37UB,Byron Glass Co Ltd,V0968198,14/06/2021,45.10,R & B Transformation 2,Supplies & Services,G57000/D001004,Technical Services Depot,Chemicals and Materials Purchase
Ashfield District Council,37UB,Byron Glass Co Ltd,V0968199,14/06/2021,17.60,R & B Transformation 2,Supplies & Services,G57000/D001004,Technical Services Depot,Chemicals and Materials Purchase
Ashfield District Council,37UB,Byron Glass Co Ltd,V0968199,14/06/2021,25.30,R & B Transformation 2,Supplies & Services,G57000/D001004,Technical Services Depot,Chemicals and Materials Purchase
Ashfield District Council,37UB,Byron Glass Co Ltd,V0968200,14/06/2021,19.62,R & B Transformation 2,Supplies & Services,G57000/D001004,Technical Services Depot,Chemicals and Materials Purchase
Ashfield District Council,37UB,Byron Glass Co Ltd,V0968200,14/06/2021,18.84,R & B Transformation 2,Supplies & Services,G57000/D001004,Technical Services Depot,Chemicals and Materials Purchase
Ashfield District Council,37UB,Byron Glass Co Ltd,V0968201,14/06/2021,24.15,R & B Transformation 2,Supplies & Services,G57000/D001004,Technical Services Depot,Chemicals and Materials Purchase
Ashfield District Council,37UB,Byron Glass Co Ltd,V0968202,14/06/2021,92.40,R & B Transformation 2,Supplies & Services,G57000/D001004,Technical Services Depot,Chemicals and Materials Purchase
Ashfield District Council,37UB,Byron Glass Co Ltd,V0968203,14/06/2021,22.00,R & B Transformation 2,Supplies & Services,G57000/D001004,Technical Services Depot,Chemicals and Materials Purchase
Ashfield District Council,37UB,Byron Glass Co Ltd,V0968204,14/06/2021,15.40,R & B Transformation 2,Supplies & Services,G57000/D001004,Technical Services Depot,Chemicals and Materials Purchase
Ashfield District Council,37UB,Byron Glass Co Ltd,V0968204,14/06/2021,17.60,R & B Transformation 2,Supplies & Services,G57000/D001004,Technical Services Depot,Chemicals and Materials Purchase
Ashfield District Council,37UB,Byron Glass Co Ltd,V0968205,14/06/2021,44.00,R & B Transformation 2,Supplies & Services,G57000/D001004,Technical Services Depot,Chemicals and Materials Purchase
Ashfield District Council,37UB,Byron Glass Co Ltd,V0968205,14/06/2021,23.65,R & B Transformation 2,Supplies & Services,G57000/D001004,Technical Services Depot,Chemicals and Materials Purchase
Ashfield District Council,37UB,Byron Glass Co Ltd,V0968205,14/06/2021,11.00,R & B Transformation 2,Supplies & Services,G57000/D001004,Technical Services Depot,Chemicals and Materials Purchase
Ashfield District Council,37UB,Byron Glass Co Ltd,V0968205,14/06/2021,63.80,R & B Transformation 2,Supplies & Services,G57000/D001004,Technical Services Depot,Chemicals and Materials Purchase
Ashfield District Council,37UB,Byron Glass Co Ltd,V0968206,14/06/2021,26.40,R & B Transformation 2,Supplies & Services,G57000/D001004,Technical Services Depot,Chemicals and Materials Purchase
Ashfield District Council,37UB,Byron Glass Co Ltd,V0968207,14/06/2021,12.56,R & B Transformation 2,Supplies & Services,G57000/D001004,Technical Services Depot,Chemicals and Materials Purchase
Ashfield District Council,37UB,Byron Glass Co Ltd,V0968207,14/06/2021,12.56,R & B Transformation 2,Supplies & Services,G57000/D001004,Technical Services Depot,Chemicals and Materials Purchase
Ashfield District Council,37UB,Byron Glass Co Ltd,V0968208,14/06/2021,80.58,R & B Transformation 2,Supplies & Services,G57000/D001004,Technical Services Depot,Chemicals and Materials Purchase
Ashfield District Council,37UB,Byron Glass Co Ltd,V0968208,14/06/2021,26.95,R & B Transformation 2,Supplies & Services,G57000/D001004,Technical Services Depot,Chemicals and Materials Purchase
Ashfield District Council,37UB,Byron Glass Co Ltd,V0968208,14/06/2021,20.90,R & B Transformation 2,Supplies & Services,G57000/D001004,Technical Services Depot,Chemicals and Materials Purchase
Ashfield District Council,37UB,Cadent Gas Limited,V0969394,29/06/2021,719.00,R & B Transformation 2,Supplies & Services,G57002/D200008,Technical Services Depot,Payments to Contractors External
Ashfield District Council,37UB,Candor Care Ltd,V0969062,18/06/2021,5070.51,R & B Transformation 2,Supplies & Services,G57002/D200008,Technical Services Depot,Payments to Contractors External
Ashfield District Council,37UB,Candor Care Ltd,V0969063,18/06/2021,1695.00,R & B Transformation 2,Supplies & Services,G57002/D200008,Technical Services Depot,Payments to Contractors External
Ashfield District Council,37UB,CCM Group,V0969387,29/06/2021,94.00,R & B Transformation 2,Supplies & Services,G57000/D103,Technical Services Depot,Printing & stationery
Ashfield District Council,37UB,City Plumbing Supplies Holdings Ltd,V0968272,14/06/2021,2.56,R & B Transformation 2,Supplies & Services,G57000/D001004,Technical Services Depot,Chemicals and Materials Purchase
Ashfield District Council,37UB,City Plumbing Supplies Holdings Ltd,V0968274,14/06/2021,24.75,R & B Transformation 2,Supplies & Services,G57000/D001004,Technical Services Depot,Chemicals and Materials Purchase
Ashfield District Council,37UB,City Plumbing Supplies Holdings Ltd,V0968275,14/06/2021,11.89,R & B Transformation 2,Supplies & Services,G57000/D001004,Technical Services Depot,Chemicals and Materials Purchase
Ashfield District Council,37UB,City Plumbing Supplies Holdings Ltd,V0968276,14/06/2021,81.22,R & B Transformation 2,Supplies & Services,G57000/D001004,Technical Services Depot,Chemicals and Materials Purchase
Ashfield District Council,37UB,City Plumbing Supplies Holdings Ltd,V0968277,14/06/2021,18.84,R & B Transformation 2,Supplies & Services,G57000/D001004,Technical Services Depot,Chemicals and Materials Purchase
Ashfield District Council,37UB,City Plumbing Supplies Holdings Ltd,V0968278,14/06/2021,20.77,R & B Transformation 2,Supplies & Services,G57000/D001004,Technical Services Depot,Chemicals and Materials Purchase
Ashfield District Council,37UB,City Plumbing Supplies Holdings Ltd,V0968279,14/06/2021,55.03,R & B Transformation 2,Supplies & Services,G57000/D001004,Technical Services Depot,Chemicals and Materials Purchase
Ashfield District Council,37UB,City Plumbing Supplies Holdings Ltd,V0968283,14/06/2021,20.79,R & B Transformation 2,Supplies & Services,G57000/D001004,Technical Services Depot,Chemicals and Materials Purchase
Ashfield District Council,37UB,City Plumbing Supplies Holdings Ltd,V0968286,14/06/2021,32.93,R & B Transformation 2,Supplies & Services,G57000/D001004,Technical Services Depot,Chemicals and Materials Purchase
Ashfield District Council,37UB,City Plumbing Supplies Holdings Ltd,V0968287,14/06/2021,37.57,R & B Transformation 2,Supplies & Services,G57000/D001004,Technical Services Depot,Chemicals and Materials Purchase
Ashfield District Council,37UB,City Plumbing Supplies Holdings Ltd,V0969353,29/06/2021,34.87,R & B Transformation 2,Supplies & Services,G57000/D001004,Technical Services Depot,Chemicals and Materials Purchase
Ashfield District Council,37UB,City Plumbing Supplies Holdings Ltd,V0969354,29/06/2021,19.90,R & B Transformation 2,Supplies & Services,G57000/D001004,Technical Services Depot,Chemicals and Materials Purchase
Ashfield District Council,37UB,City Plumbing Supplies Holdings Ltd,V0969355,29/06/2021,3.18,R & B Transformation 2,Supplies & Services,G57000/D001004,Technical Services Depot,Chemicals and Materials Purchase
Ashfield District Council,37UB,City Plumbing Supplies Holdings Ltd,V0970107,29/06/2021,4.72,R & B Transformation 2,Supplies & Services,G57000/D001004,Technical Services Depot,Chemicals and Materials Purchase
Ashfield District Council,37UB,City Plumbing Supplies Holdings Ltd,V0970114,29/06/2021,75.06,R & B Transformation 2,Supplies & Services,G57000/D001004,Technical Services Depot,Chemicals and Materials Purchase
Ashfield District Council,37UB,City Plumbing Supplies Holdings Ltd,V0970115,29/06/2021,62.37,R & B Transformation 2,Supplies & Services,G57000/D001004,Technical Services Depot,Chemicals and Materials Purchase
Ashfield District Council,37UB,City Plumbing Supplies Holdings Ltd,V0970116,29/06/2021,27.56,R & B Transformation 2,Supplies & Services,G57000/D001004,Technical Services Depot,Chemicals and Materials Purchase
Ashfield District Council,37UB,City Plumbing Supplies Holdings Ltd,V0970117,29/06/2021,30.75,R & B Transformation 2,Supplies & Services,G57000/D001004,Technical Services Depot,Chemicals and Materials Purchase
Ashfield District Council,37UB,City Plumbing Supplies Holdings Ltd,V0970132,29/06/2021,177.82,R & B Transformation 2,Supplies & Services,G57000/D001004,Technical Services Depot,Chemicals and Materials Purchase
Ashfield District Council,37UB,City Plumbing Supplies Holdings Ltd,V0970133,29/06/2021,59.67,R & B Transformation 2,Supplies & Services,G57000/D001004,Technical Services Depot,Chemicals and Materials Purchase
Ashfield District Council,37UB,Collinshallgreen Ltd,V0969397,29/06/2021,675.00,R & B Transformation 2,Supplies & Services,G57002/D200008,Technical Services Depot,Payments to Contractors External
Ashfield District Council,37UB,Concorde BGW Ltd,V0967881,07/06/2021,2737.09,R & B Transformation 2,Supplies & Services,G57002/D200008,Technical Services Depot,Payments to Contractors External
Ashfield District Council,37UB,Concorde BGW Ltd,V0967881,07/06/2021,522.93,R & B Transformation 2,Supplies & Services,G57002/D200008,Technical Services Depot,Payments to Contractors External
Ashfield District Council,37UB,Concorde BGW Ltd,V0967882,07/06/2021,2929.59,R & B Transformation 2,Supplies & Services,G57002/D200008,Technical Services Depot,Payments to Contractors External
Ashfield District Council,37UB,Concorde BGW Ltd,V0967882,07/06/2021,5079.50,R & B Transformation 2,Supplies & Services,G57002/D200008,Technical Services Depot,Payments to Contractors External
Ashfield District Council,37UB,Concorde BGW Ltd,V0969399,29/06/2021,438.68,R & B Transformation 2,Supplies & Services,G57002/D200008,Technical Services Depot,Payments to Contractors External
Ashfield District Council,37UB,Concorde BGW Ltd,V0969399,29/06/2021,3237.86,R & B Transformation 2,Supplies & Services,G57002/D200008,Technical Services Depot,Payments to Contractors External
Ashfield District Council,37UB,Concorde BGW Ltd,V0969399,29/06/2021,1429.00,R & B Transformation 2,Supplies & Services,G57002/D200008,Technical Services Depot,Payments to Contractors External
Ashfield District Council,37UB,Concorde BGW Ltd,V0969400,29/06/2021,3518.71,R & B Transformation 2,Supplies & Services,G57002/D200008,Technical Services Depot,Payments to Contractors External
Ashfield District Council,37UB,Crown Paints Limited,V0970065,29/06/2021,54.44,R & B Transformation 2,Supplies & Services,G57000/D001004,Technical Services Depot,Chemicals and Materials Purchase
Ashfield District Council,37UB,Crown Paints Limited,V0970066,29/06/2021,94.61,R & B Transformation 2,Supplies & Services,G57000/D001004,Technical Services Depot,Chemicals and Materials Purchase
Ashfield District Council,37UB,Crystal Electronics Ltd,V0968162,14/06/2021,592.19,R & B Transformation 2,Supplies & Services,G57002/D200008,Technical Services Depot,Payments to Contractors External
Ashfield District Council,37UB,Daisy Telecoms Ltd,V0966352,03/06/2021,18.38,R & B Transformation 2,Supplies & Services,G57000/D301003,Technical Services Depot,Mobiles
Ashfield District Council,37UB,Daisy Telecoms Ltd,V0966353,17/06/2021,1519.08,R & B Transformation 2,Supplies & Services,G57000/D301003,Technical Services Depot,Mobiles
Ashfield District Council,37UB,Daisy Telecoms Ltd,V0968040,17/06/2021,18.38,R & B Transformation 2,Supplies & Services,G57000/D301003,Technical Services Depot,Mobiles
Ashfield District Council,37UB,Daisy Telecoms Ltd,V0968041,17/06/2021,1534.78,R & B Transformation 2,Supplies & Services,G57000/D301003,Technical Services Depot,Mobiles
Ashfield District Council,37UB,Dalrod UK Ltd,V0967895,07/06/2021,171.28,R & B Transformation 2,Supplies & Services,G57002/D200008,Technical Services Depot,Payments to Contractors External
Ashfield District Council,37UB,Dalrod UK Ltd,V0967896,07/06/2021,66.35,R & B Transformation 2,Supplies & Services,G57002/D200008,Technical Services Depot,Payments to Contractors External
Ashfield District Council,37UB,Dalrod UK Ltd,V0967897,07/06/2021,66.35,R & B Transformation 2,Supplies & Services,G57002/D200008,Technical Services Depot,Payments to Contractors External
Ashfield District Council,37UB,Dalrod UK Ltd,V0967898,07/06/2021,25.38,R & B Transformation 2,Supplies & Services,G57002/D200008,Technical Services Depot,Payments to Contractors External
Ashfield District Council,37UB,Dalrod UK Ltd,V0967899,07/06/2021,132.70,R & B Transformation 2,Supplies & Services,G57002/D200008,Technical Services Depot,Payments to Contractors External
Ashfield District Council,37UB,Dalrod UK Ltd,V0967900,07/06/2021,91.88,R & B Transformation 2,Supplies & Services,G57002/D200008,Technical Services Depot,Payments to Contractors External
Ashfield District Council,37UB,Dalrod UK Ltd,V0967901,07/06/2021,91.88,R & B Transformation 2,Supplies & Services,G57002/D200008,Technical Services Depot,Payments to Contractors External
Ashfield District Council,37UB,Dalrod UK Ltd,V0967902,07/06/2021,66.35,R & B Transformation 2,Supplies & Services,G57002/D200008,Technical Services Depot,Payments to Contractors External
Ashfield District Council,37UB,Dalrod UK Ltd,V0967903,07/06/2021,91.88,R & B Transformation 2,Supplies & Services,G57002/D200008,Technical Services Depot,Payments to Contractors External
Ashfield District Council,37UB,Dalrod UK Ltd,V0967904,07/06/2021,66.35,R & B Transformation 2,Supplies & Services,G57002/D200008,Technical Services Depot,Payments to Contractors External
Ashfield District Council,37UB,Dalrod UK Ltd,V0967905,07/06/2021,66.35,R & B Transformation 2,Supplies & Services,G57002/D200008,Technical Services Depot,Payments to Contractors External
Ashfield District Council,37UB,Dalrod UK Ltd,V0967906,07/06/2021,66.35,R & B Transformation 2,Supplies & Services,G57002/D200008,Technical Services Depot,Payments to Contractors External
Ashfield District Council,37UB,Dalrod UK Ltd,V0967907,07/06/2021,66.35,R & B Transformation 2,Supplies & Services,G57002/D200008,Technical Services Depot,Payments to Contractors External
Ashfield District Council,37UB,Dalrod UK Ltd,V0967908,07/06/2021,66.35,R & B Transformation 2,Supplies & Services,G57002/D200008,Technical Services Depot,Payments to Contractors External
Ashfield District Council,37UB,Dalrod UK Ltd,V0967909,07/06/2021,66.35,R & B Transformation 2,Supplies & Services,G57002/D200008,Technical Services Depot,Payments to Contractors External
Ashfield District Council,37UB,Dalrod UK Ltd,V0967910,07/06/2021,99.53,R & B Transformation 2,Supplies & Services,G57002/D200008,Technical Services Depot,Payments to Contractors External
Ashfield District Council,37UB,Dalrod UK Ltd,V0967911,07/06/2021,12.77,R & B Transformation 2,Supplies & Services,G57002/D200008,Technical Services Depot,Payments to Contractors External
Ashfield District Council,37UB,Dalrod UK Ltd,V0967912,07/06/2021,66.35,R & B Transformation 2,Supplies & Services,G57002/D200008,Technical Services Depot,Payments to Contractors External
Ashfield District Council,37UB,Dalrod UK Ltd,V0967913,07/06/2021,91.88,R & B Transformation 2,Supplies & Services,G57002/D200008,Technical Services Depot,Payments to Contractors External
Ashfield District Council,37UB,Dalrod UK Ltd,V0967914,07/06/2021,25.53,R & B Transformation 2,Supplies & Services,G57002/D200008,Technical Services Depot,Payments to Contractors External
Ashfield District Council,37UB,Dalrod UK Ltd,V0967915,07/06/2021,91.88,R & B Transformation 2,Supplies & Services,G57002/D200008,Technical Services Depot,Payments to Contractors External
Ashfield District Council,37UB,Dalrod UK Ltd,V0967916,07/06/2021,66.35,R & B Transformation 2,Supplies & Services,G57002/D200008,Technical Services Depot,Payments to Contractors External
Ashfield District Council,37UB,Dalrod UK Ltd,V0967917,07/06/2021,152.91,R & B Transformation 2,Supplies & Services,G57002/D200008,Technical Services Depot,Payments to Contractors External
Ashfield District Council,37UB,Dalrod UK Ltd,V0967918,07/06/2021,66.35,R & B Transformation 2,Supplies & Services,G57002/D200008,Technical Services Depot,Payments to Contractors External
Ashfield District Council,37UB,Dalrod UK Ltd,V0967919,07/06/2021,219.26,R & B Transformation 2,Supplies & Services,G57002/D200008,Technical Services Depot,Payments to Contractors External
Ashfield District Council,37UB,Dalrod UK Ltd,V0968166,14/06/2021,85.64,R & B Transformation 2,Supplies & Services,G57002/D200008,Technical Services Depot,Payments to Contractors External
Ashfield District Council,37UB,Dalrod UK Ltd,V0968167,14/06/2021,85.64,R & B Transformation 2,Supplies & Services,G57002/D200008,Technical Services Depot,Payments to Contractors External
Ashfield District Council,37UB,Dalrod UK Ltd,V0968168,14/06/2021,85.64,R & B Transformation 2,Supplies & Services,G57002/D200008,Technical Services Depot,Payments to Contractors External
Ashfield District Council,37UB,Dalrod UK Ltd,V0968169,14/06/2021,85.64,R & B Transformation 2,Supplies & Services,G57002/D200008,Technical Services Depot,Payments to Contractors External
Ashfield District Council,37UB,Dalrod UK Ltd,V0968170,14/06/2021,85.64,R & B Transformation 2,Supplies & Services,G57002/D200008,Technical Services Depot,Payments to Contractors External
Ashfield District Council,37UB,Dalrod UK Ltd,V0968171,14/06/2021,85.64,R & B Transformation 2,Supplies & Services,G57002/D200008,Technical Services Depot,Payments to Contractors External
Ashfield District Council,37UB,Dalrod UK Ltd,V0969401,29/06/2021,171.28,R & B Transformation 2,Supplies & Services,G57002/D200008,Technical Services Depot,Payments to Contractors External
Ashfield District Council,37UB,Dalrod UK Ltd,V0969402,29/06/2021,66.35,R & B Transformation 2,Supplies & Services,G57002/D200008,Technical Services Depot,Payments to Contractors External
Ashfield District Council,37UB,Dalrod UK Ltd,V0969403,29/06/2021,66.35,R & B Transformation 2,Supplies & Services,G57002/D200008,Technical Services Depot,Payments to Contractors External
Ashfield District Council,37UB,Dalrod UK Ltd,V0969404,29/06/2021,66.35,R & B Transformation 2,Supplies & Services,G57002/D200008,Technical Services Depot,Payments to Contractors External
Ashfield District Council,37UB,Dalrod UK Ltd,V0969405,29/06/2021,132.70,R & B Transformation 2,Supplies & Services,G57002/D200008,Technical Services Depot,Payments to Contractors External
Ashfield District Council,37UB,Dalrod UK Ltd,V0969406,29/06/2021,57.14,R & B Transformation 2,Supplies & Services,G57002/D200008,Technical Services Depot,Payments to Contractors External
Ashfield District Council,37UB,Dalrod UK Ltd,V0969407,29/06/2021,66.35,R & B Transformation 2,Supplies & Services,G57002/D200008,Technical Services Depot,Payments to Contractors External
Ashfield District Council,37UB,Dalrod UK Ltd,V0969408,29/06/2021,66.35,R & B Transformation 2,Supplies & Services,G57002/D200008,Technical Services Depot,Payments to Contractors External
Ashfield District Council,37UB,Dalrod UK Ltd,V0969409,29/06/2021,99.53,R & B Transformation 2,Supplies & Services,G57002/D200008,Technical Services Depot,Payments to Contractors External
Ashfield District Council,37UB,Dalrod UK Ltd,V0969410,29/06/2021,25.38,R & B Transformation 2,Supplies & Services,G57002/D200008,Technical Services Depot,Payments to Contractors External
Ashfield District Council,37UB,Dalrod UK Ltd,V0969411,29/06/2021,99.53,R & B Transformation 2,Supplies & Services,G57002/D200008,Technical Services Depot,Payments to Contractors External
Ashfield District Council,37UB,Dalrod UK Ltd,V0969412,29/06/2021,85.64,R & B Transformation 2,Supplies & Services,G57002/D200008,Technical Services Depot,Payments to Contractors External
Ashfield District Council,37UB,Dalrod UK Ltd,V0969413,29/06/2021,25.38,R & B Transformation 2,Supplies & Services,G57002/D200008,Technical Services Depot,Payments to Contractors External
Ashfield District Council,37UB,Dalrod UK Ltd,V0969414,29/06/2021,66.35,R & B Transformation 2,Supplies & Services,G57002/D200008,Technical Services Depot,Payments to Contractors External
Ashfield District Council,37UB,Dalrod UK Ltd,V0969415,29/06/2021,85.64,R & B Transformation 2,Supplies & Services,G57002/D200008,Technical Services Depot,Payments to Contractors External
Ashfield District Council,37UB,Dalrod UK Ltd,V0969446,29/06/2021,66.35,R & B Transformation 2,Supplies & Services,G57002/D200008,Technical Services Depot,Payments to Contractors External
Ashfield District Council,37UB,Dalrod UK Ltd,V0969447,29/06/2021,66.35,R & B Transformation 2,Supplies & Services,G57002/D200008,Technical Services Depot,Payments to Contractors External
Ashfield District Council,37UB,Dalrod UK Ltd,V0969448,29/06/2021,66.35,R & B Transformation 2,Supplies & Services,G57002/D200008,Technical Services Depot,Payments to Contractors External
Ashfield District Council,37UB,Dalrod UK Ltd,V0969449,29/06/2021,66.35,R & B Transformation 2,Supplies & Services,G57002/D200008,Technical Services Depot,Payments to Contractors External
Ashfield District Council,37UB,Dalrod UK Ltd,V0969450,29/06/2021,66.35,R & B Transformation 2,Supplies & Services,G57002/D200008,Technical Services Depot,Payments to Contractors External
Ashfield District Council,37UB,Dalrod UK Ltd,V0969451,29/06/2021,66.35,R & B Transformation 2,Supplies & Services,G57002/D200008,Technical Services Depot,Payments to Contractors External
Ashfield District Council,37UB,Dalrod UK Ltd,V0969452,29/06/2021,66.35,R & B Transformation 2,Supplies & Services,G57002/D200008,Technical Services Depot,Payments to Contractors External
Ashfield District Council,37UB,Deltron Lifts Limited,V0968156,14/06/2021,-80.00,R & B Transformation 2,Supplies & Services,G57002/D200008,Technical Services Depot,Payments to Contractors External
Ashfield District Council,37UB,Deltron Lifts Limited,V0968174,14/06/2021,115.00,R & B Transformation 2,Supplies & Services,G57002/D200008,Technical Services Depot,Payments to Contractors External
Ashfield District Council,37UB,Deltron Lifts Limited,V0968176,14/06/2021,250.00,R & B Transformation 2,Supplies & Services,G57002/D200008,Technical Services Depot,Payments to Contractors External
Ashfield District Council,37UB,Deltron Lifts Limited,V0968177,14/06/2021,377.00,R & B Transformation 2,Supplies & Services,G57002/D200008,Technical Services Depot,Payments to Contractors External
Ashfield District Council,37UB,Deltron Lifts Limited,V0968178,14/06/2021,202.87,R & B Transformation 2,Supplies & Services,G57002/D200008,Technical Services Depot,Payments to Contractors External
Ashfield District Council,37UB,Deltron Lifts Limited,V0968179,14/06/2021,115.00,R & B Transformation 2,Supplies & Services,G57002/D200008,Technical Services Depot,Payments to Contractors External
Ashfield District Council,37UB,Deltron Lifts Limited,V0968180,14/06/2021,35.00,R & B Transformation 2,Supplies & Services,G57002/D200008,Technical Services Depot,Payments to Contractors External
Ashfield District Council,37UB,Deltron Lifts Limited,V0968181,14/06/2021,35.00,R & B Transformation 2,Supplies & Services,G57002/D200008,Technical Services Depot,Payments to Contractors External
Ashfield District Council,37UB,Deltron Lifts Limited,V0968182,14/06/2021,250.00,R & B Transformation 2,Supplies & Services,G57002/D200008,Technical Services Depot,Payments to Contractors External
Ashfield District Council,37UB,Deltron Lifts Limited,V0969061,18/06/2021,-35.00,R & B Transformation 2,Supplies & Services,G57002/D200008,Technical Services Depot,Payments to Contractors External
Ashfield District Council,37UB,Deltron Lifts Limited,V0969076,18/06/2021,70.00,R & B Transformation 2,Supplies & Services,G57002/D200008,Technical Services Depot,Payments to Contractors External
Ashfield District Council,37UB,Deltron Lifts Limited,V0969077,18/06/2021,250.00,R & B Transformation 2,Supplies & Services,G57002/D200008,Technical Services Depot,Payments to Contractors External
Ashfield District Council,37UB,Deltron Lifts Limited,V0969078,18/06/2021,175.00,R & B Transformation 2,Supplies & Services,G57002/D200008,Technical Services Depot,Payments to Contractors External
Ashfield District Council,37UB,Deltron Lifts Limited,V0969332,29/06/2021,-250.00,R & B Transformation 2,Supplies & Services,G57002/D200008,Technical Services Depot,Payments to Contractors External
Ashfield District Council,37UB,Deltron Lifts Limited,V0969456,29/06/2021,750.00,R & B Transformation 2,Supplies & Services,G57002/D200008,Technical Services Depot,Payments to Contractors External
Ashfield District Council,37UB,Deltron Lifts Limited,V0969457,29/06/2021,250.00,R & B Transformation 2,Supplies & Services,G57002/D200008,Technical Services Depot,Payments to Contractors External
Ashfield District Council,37UB,Deltron Lifts Limited,V0969458,29/06/2021,115.00,R & B Transformation 2,Supplies & Services,G57002/D200008,Technical Services Depot,Payments to Contractors External
Ashfield District Council,37UB,Deltron Lifts Limited,V0969459,29/06/2021,195.00,R & B Transformation 2,Supplies & Services,G57002/D200008,Technical Services Depot,Payments to Contractors External
Ashfield District Council,37UB,Deltron Lifts Limited,V0969460,29/06/2021,195.00,R & B Transformation 2,Supplies & Services,G57002/D200008,Technical Services Depot,Payments to Contractors External
Ashfield District Council,37UB,Deltron Lifts Limited,V0969461,29/06/2021,115.00,R & B Transformation 2,Supplies & Services,G57002/D200008,Technical Services Depot,Payments to Contractors External
Ashfield District Council,37UB,Deltron Lifts Limited,V0969462,29/06/2021,115.00,R & B Transformation 2,Supplies & Services,G57002/D200008,Technical Services Depot,Payments to Contractors External
Ashfield District Council,37UB,Dutton Recruitment Ltd,V0968320,14/06/2021,740.00,R & B Transformation 2,Employee Expenses,G57000/A200004,Technical Services Depot,Agency Staff
Ashfield District Council,37UB,Environtec Limited,V0969716,29/06/2021,200.00,R & B Transformation 2,Supplies & Services,G57002/D200008,Technical Services Depot,Payments to Contractors External
Ashfield District Council,37UB,Environtec Limited,V0969717,29/06/2021,200.00,R & B Transformation 2,Supplies & Services,G57002/D200008,Technical Services Depot,Payments to Contractors External
Ashfield District Council,37UB,Environtec Limited,V0969718,29/06/2021,200.00,R & B Transformation 2,Supplies & Services,G57002/D200008,Technical Services Depot,Payments to Contractors External
Ashfield District Council,37UB,Environtec Limited,V0969719,29/06/2021,200.00,R & B Transformation 2,Supplies & Services,G57002/D200008,Technical Services Depot,Payments to Contractors External
Ashfield District Council,37UB,Hardall International Ltd,V0967920,07/06/2021,795.00,R & B Transformation 2,Supplies & Services,G57002/D200008,Technical Services Depot,Payments to Contractors External
Ashfield District Council,37UB,Hays,V0969667,29/06/2021,704.18,R & B Transformation 2,Employee Expenses,G57000/A200004,Technical Services Depot,Agency Staff
Ashfield District Council,37UB,J Tomlinson Ltd,V0969112,18/06/2021,2272.53,R & B Transformation 2,Supplies & Services,G57002/D200008,Technical Services Depot,Payments to Contractors External
Ashfield District Council,37UB,J Tomlinson Ltd,V0969113,18/06/2021,31.52,R & B Transformation 2,Supplies & Services,G57002/D200008,Technical Services Depot,Payments to Contractors External
Ashfield District Council,37UB,J Tomlinson Ltd,V0969114,18/06/2021,240.00,R & B Transformation 2,Supplies & Services,G57002/D200008,Technical Services Depot,Payments to Contractors External
Ashfield District Council,37UB,J Tomlinson Ltd,V0969115,18/06/2021,60.83,R & B Transformation 2,Supplies & Services,G57002/D200008,Technical Services Depot,Payments to Contractors External
Ashfield District Council,37UB,J Tomlinson Ltd,V0969116,18/06/2021,94.71,R & B Transformation 2,Supplies & Services,G57002/D200008,Technical Services Depot,Payments to Contractors External
Ashfield District Council,37UB,J Tomlinson Ltd,V0969117,18/06/2021,31.52,R & B Transformation 2,Supplies & Services,G57002/D200008,Technical Services Depot,Payments to Contractors External
Ashfield District Council,37UB,J Tomlinson Ltd,V0969340,29/06/2021,60.82,R & B Transformation 2,Supplies & Services,G57002/D200008,Technical Services Depot,Payments to Contractors External
Ashfield District Council,37UB,J Tomlinson Ltd,V0969341,29/06/2021,60.82,R & B Transformation 2,Supplies & Services,G57002/D200008,Technical Services Depot,Payments to Contractors External
Ashfield District Council,37UB,J Tomlinson Ltd,V0969422,29/06/2021,71.87,R & B Transformation 2,Supplies & Services,G57002/D200008,Technical Services Depot,Payments to Contractors External
Ashfield District Council,37UB,J Tomlinson Ltd,V0969425,29/06/2021,62.99,R & B Transformation 2,Supplies & Services,G57002/D200008,Technical Services Depot,Payments to Contractors External
Ashfield District Council,37UB,J Tomlinson Ltd,V0969426,29/06/2021,32.25,R & B Transformation 2,Supplies & Services,G57002/D200008,Technical Services Depot,Payments to Contractors External
Ashfield District Council,37UB,J Tomlinson Ltd,V0969427,29/06/2021,62.99,R & B Transformation 2,Supplies & Services,G57002/D200008,Technical Services Depot,Payments to Contractors External
Ashfield District Council,37UB,J Tomlinson Ltd,V0969428,29/06/2021,67.19,R & B Transformation 2,Supplies & Services,G57002/D200008,Technical Services Depot,Payments to Contractors External
Ashfield District Council,37UB,J Tomlinson Ltd,V0969429,29/06/2021,64.50,R & B Transformation 2,Supplies & Services,G57002/D200008,Technical Services Depot,Payments to Contractors External
Ashfield District Council,37UB,J Tomlinson Ltd,V0969430,29/06/2021,32.25,R & B Transformation 2,Supplies & Services,G57002/D200008,Technical Services Depot,Payments to Contractors External
Ashfield District Council,37UB,J Tomlinson Ltd,V0969431,29/06/2021,64.50,R & B Transformation 2,Supplies & Services,G57002/D200008,Technical Services Depot,Payments to Contractors External
Ashfield District Council,37UB,J Tomlinson Ltd,V0969432,29/06/2021,44.29,R & B Transformation 2,Supplies & Services,G57002/D200008,Technical Services Depot,Payments to Contractors External
Ashfield District Council,37UB,J Tomlinson Ltd,V0969433,29/06/2021,67.19,R & B Transformation 2,Supplies & Services,G57002/D200008,Technical Services Depot,Payments to Contractors External
Ashfield District Council,37UB,J Tomlinson Ltd,V0969434,29/06/2021,41.85,R & B Transformation 2,Supplies & Services,G57002/D200008,Technical Services Depot,Payments to Contractors External
Ashfield District Council,37UB,J Tomlinson Ltd,V0969435,29/06/2021,62.99,R & B Transformation 2,Supplies & Services,G57002/D200008,Technical Services Depot,Payments to Contractors External
Ashfield District Council,37UB,J Tomlinson Ltd,V0969436,29/06/2021,32.25,R & B Transformation 2,Supplies & Services,G57002/D200008,Technical Services Depot,Payments to Contractors External
Ashfield District Council,37UB,J Tomlinson Ltd,V0969437,29/06/2021,64.50,R & B Transformation 2,Supplies & Services,G57002/D200008,Technical Services Depot,Payments to Contractors External
Ashfield District Council,37UB,J Tomlinson Ltd,V0969438,29/06/2021,62.99,R & B Transformation 2,Supplies & Services,G57002/D200008,Technical Services Depot,Payments to Contractors External
Ashfield District Council,37UB,J Tomlinson Ltd,V0969439,29/06/2021,62.99,R & B Transformation 2,Supplies & Services,G57002/D200008,Technical Services Depot,Payments to Contractors External
Ashfield District Council,37UB,J Tomlinson Ltd,V0969440,29/06/2021,72.68,R & B Transformation 2,Supplies & Services,G57002/D200008,Technical Services Depot,Payments to Contractors External
Ashfield District Council,37UB,J Tomlinson Ltd,V0969441,29/06/2021,14.27,R & B Transformation 2,Supplies & Services,G57002/D200008,Technical Services Depot,Payments to Contractors External
Ashfield District Council,37UB,J Tomlinson Ltd,V0969442,29/06/2021,33.90,R & B Transformation 2,Supplies & Services,G57002/D200008,Technical Services Depot,Payments to Contractors External
Ashfield District Council,37UB,J Tomlinson Ltd,V0969443,29/06/2021,11.00,R & B Transformation 2,Supplies & Services,G57002/D200008,Technical Services Depot,Payments to Contractors External
Ashfield District Council,37UB,J Tomlinson Ltd,V0969444,29/06/2021,33.90,R & B Transformation 2,Supplies & Services,G57002/D200008,Technical Services Depot,Payments to Contractors External
Ashfield District Council,37UB,J Tomlinson Ltd,V0969445,29/06/2021,33.90,R & B Transformation 2,Supplies & Services,G57002/D200008,Technical Services Depot,Payments to Contractors External
Ashfield District Council,37UB,J Tomlinson Ltd,V0969470,29/06/2021,60.82,R & B Transformation 2,Supplies & Services,G57002/D200008,Technical Services Depot,Payments to Contractors External
Ashfield District Council,37UB,J Tomlinson Ltd,V0969471,29/06/2021,60.82,R & B Transformation 2,Supplies & Services,G57002/D200008,Technical Services Depot,Payments to Contractors External
Ashfield District Council,37UB,J Tomlinson Ltd,V0969472,29/06/2021,60.82,R & B Transformation 2,Supplies & Services,G57002/D200008,Technical Services Depot,Payments to Contractors External
Ashfield District Council,37UB,J Tomlinson Ltd,V0969473,29/06/2021,60.82,R & B Transformation 2,Supplies & Services,G57002/D200008,Technical Services Depot,Payments to Contractors External
Ashfield District Council,37UB,J Tomlinson Ltd,V0969474,29/06/2021,60.82,R & B Transformation 2,Supplies & Services,G57002/D200008,Technical Services Depot,Payments to Contractors External
Ashfield District Council,37UB,J Tomlinson Ltd,V0969475,29/06/2021,60.82,R & B Transformation 2,Supplies & Services,G57002/D200008,Technical Services Depot,Payments to Contractors External
Ashfield District Council,37UB,J Tomlinson Ltd,V0969476,29/06/2021,60.82,R & B Transformation 2,Supplies & Services,G57002/D200008,Technical Services Depot,Payments to Contractors External
Ashfield District Council,37UB,J Tomlinson Ltd,V0969477,29/06/2021,60.82,R & B Transformation 2,Supplies & Services,G57002/D200008,Technical Services Depot,Payments to Contractors External
Ashfield District Council,37UB,J Tomlinson Ltd,V0969478,29/06/2021,60.82,R & B Transformation 2,Supplies & Services,G57002/D200008,Technical Services Depot,Payments to Contractors External
Ashfield District Council,37UB,J Tomlinson Ltd,V0969479,29/06/2021,60.82,R & B Transformation 2,Supplies & Services,G57002/D200008,Technical Services Depot,Payments to Contractors External
Ashfield District Council,37UB,J Tomlinson Ltd,V0969480,29/06/2021,60.82,R & B Transformation 2,Supplies & Services,G57002/D200008,Technical Services Depot,Payments to Contractors External
Ashfield District Council,37UB,J Tomlinson Ltd,V0969481,29/06/2021,60.82,R & B Transformation 2,Supplies & Services,G57002/D200008,Technical Services Depot,Payments to Contractors External
Ashfield District Council,37UB,J Tomlinson Ltd,V0969482,29/06/2021,60.82,R & B Transformation 2,Supplies & Services,G57002/D200008,Technical Services Depot,Payments to Contractors External
Ashfield District Council,37UB,J Tomlinson Ltd,V0969483,29/06/2021,60.82,R & B Transformation 2,Supplies & Services,G57002/D200008,Technical Services Depot,Payments to Contractors External
Ashfield District Council,37UB,J Tomlinson Ltd,V0969484,29/06/2021,60.82,R & B Transformation 2,Supplies & Services,G57002/D200008,Technical Services Depot,Payments to Contractors External
Ashfield District Council,37UB,J Tomlinson Ltd,V0969485,29/06/2021,60.82,R & B Transformation 2,Supplies & Services,G57002/D200008,Technical Services Depot,Payments to Contractors External
Ashfield District Council,37UB,J Tomlinson Ltd,V0969486,29/06/2021,60.82,R & B Transformation 2,Supplies & Services,G57002/D200008,Technical Services Depot,Payments to Contractors External
Ashfield District Council,37UB,J Tomlinson Ltd,V0969487,29/06/2021,60.82,R & B Transformation 2,Supplies & Services,G57002/D200008,Technical Services Depot,Payments to Contractors External
Ashfield District Council,37UB,J Tomlinson Ltd,V0969488,29/06/2021,60.82,R & B Transformation 2,Supplies & Services,G57002/D200008,Technical Services Depot,Payments to Contractors External
Ashfield District Council,37UB,J Tomlinson Ltd,V0969489,29/06/2021,60.82,R & B Transformation 2,Supplies & Services,G57002/D200008,Technical Services Depot,Payments to Contractors External
Ashfield District Council,37UB,J Tomlinson Ltd,V0969490,29/06/2021,60.82,R & B Transformation 2,Supplies & Services,G57002/D200008,Technical Services Depot,Payments to Contractors External
Ashfield District Council,37UB,J Tomlinson Ltd,V0969491,29/06/2021,60.82,R & B Transformation 2,Supplies & Services,G57002/D200008,Technical Services Depot,Payments to Contractors External
Ashfield District Council,37UB,J Tomlinson Ltd,V0969492,29/06/2021,60.82,R & B Transformation 2,Supplies & Services,G57002/D200008,Technical Services Depot,Payments to Contractors External
Ashfield District Council,37UB,J Tomlinson Ltd,V0969493,29/06/2021,60.82,R & B Transformation 2,Supplies & Services,G57002/D200008,Technical Services Depot,Payments to Contractors External
Ashfield District Council,37UB,J Tomlinson Ltd,V0969494,29/06/2021,60.82,R & B Transformation 2,Supplies & Services,G57002/D200008,Technical Services Depot,Payments to Contractors External
Ashfield District Council,37UB,J Tomlinson Ltd,V0969495,29/06/2021,60.82,R & B Transformation 2,Supplies & Services,G57002/D200008,Technical Services Depot,Payments to Contractors External
Ashfield District Council,37UB,J Tomlinson Ltd,V0969496,29/06/2021,60.82,R & B Transformation 2,Supplies & Services,G57002/D200008,Technical Services Depot,Payments to Contractors External
Ashfield District Council,37UB,J Tomlinson Ltd,V0969497,29/06/2021,65.26,R & B Transformation 2,Supplies & Services,G57002/D200008,Technical Services Depot,Payments to Contractors External
Ashfield District Council,37UB,J Tomlinson Ltd,V0969498,29/06/2021,65.26,R & B Transformation 2,Supplies & Services,G57002/D200008,Technical Services Depot,Payments to Contractors External
Ashfield District Council,37UB,J Tomlinson Ltd,V0969499,29/06/2021,65.26,R & B Transformation 2,Supplies & Services,G57002/D200008,Technical Services Depot,Payments to Contractors External
Ashfield District Council,37UB,J Tomlinson Ltd,V0969500,29/06/2021,65.26,R & B Transformation 2,Supplies & Services,G57002/D200008,Technical Services Depot,Payments to Contractors External
Ashfield District Council,37UB,J Tomlinson Ltd,V0969501,29/06/2021,65.26,R & B Transformation 2,Supplies & Services,G57002/D200008,Technical Services Depot,Payments to Contractors External
Ashfield District Council,37UB,J Tomlinson Ltd,V0969502,29/06/2021,65.26,R & B Transformation 2,Supplies & Services,G57002/D200008,Technical Services Depot,Payments to Contractors External
Ashfield District Council,37UB,J Tomlinson Ltd,V0969503,29/06/2021,65.26,R & B Transformation 2,Supplies & Services,G57002/D200008,Technical Services Depot,Payments to Contractors External
Ashfield District Council,37UB,J Tomlinson Ltd,V0969504,29/06/2021,65.26,R & B Transformation 2,Supplies & Services,G57002/D200008,Technical Services Depot,Payments to Contractors External
Ashfield District Council,37UB,J Tomlinson Ltd,V0969505,29/06/2021,65.26,R & B Transformation 2,Supplies & Services,G57002/D200008,Technical Services Depot,Payments to Contractors External
Ashfield District Council,37UB,J Tomlinson Ltd,V0969506,29/06/2021,65.26,R & B Transformation 2,Supplies & Services,G57002/D200008,Technical Services Depot,Payments to Contractors External
Ashfield District Council,37UB,J Tomlinson Ltd,V0969507,29/06/2021,65.26,R & B Transformation 2,Supplies & Services,G57002/D200008,Technical Services Depot,Payments to Contractors External
Ashfield District Council,37UB,J Tomlinson Ltd,V0969508,29/06/2021,65.26,R & B Transformation 2,Supplies & Services,G57002/D200008,Technical Services Depot,Payments to Contractors External
Ashfield District Council,37UB,J Tomlinson Ltd,V0969509,29/06/2021,65.26,R & B Transformation 2,Supplies & Services,G57002/D200008,Technical Services Depot,Payments to Contractors External
Ashfield District Council,37UB,J Tomlinson Ltd,V0969510,29/06/2021,65.26,R & B Transformation 2,Supplies & Services,G57002/D200008,Technical Services Depot,Payments to Contractors External
Ashfield District Council,37UB,J Tomlinson Ltd,V0969511,29/06/2021,65.26,R & B Transformation 2,Supplies & Services,G57002/D200008,Technical Services Depot,Payments to Contractors External
Ashfield District Council,37UB,J Tomlinson Ltd,V0969512,29/06/2021,65.26,R & B Transformation 2,Supplies & Services,G57002/D200008,Technical Services Depot,Payments to Contractors External
Ashfield District Council,37UB,J Tomlinson Ltd,V0969513,29/06/2021,65.26,R & B Transformation 2,Supplies & Services,G57002/D200008,Technical Services Depot,Payments to Contractors External
Ashfield District Council,37UB,J Tomlinson Ltd,V0969514,29/06/2021,65.26,R & B Transformation 2,Supplies & Services,G57002/D200008,Technical Services Depot,Payments to Contractors External
Ashfield District Council,37UB,J Tomlinson Ltd,V0969515,29/06/2021,65.26,R & B Transformation 2,Supplies & Services,G57002/D200008,Technical Services Depot,Payments to Contractors External
Ashfield District Council,37UB,J Tomlinson Ltd,V0969516,29/06/2021,65.26,R & B Transformation 2,Supplies & Services,G57002/D200008,Technical Services Depot,Payments to Contractors External
Ashfield District Council,37UB,J Tomlinson Ltd,V0969517,29/06/2021,65.26,R & B Transformation 2,Supplies & Services,G57002/D200008,Technical Services Depot,Payments to Contractors External
Ashfield District Council,37UB,J Tomlinson Ltd,V0969518,29/06/2021,65.26,R & B Transformation 2,Supplies & Services,G57002/D200008,Technical Services Depot,Payments to Contractors External
Ashfield District Council,37UB,J Tomlinson Ltd,V0969519,29/06/2021,65.26,R & B Transformation 2,Supplies & Services,G57002/D200008,Technical Services Depot,Payments to Contractors External
Ashfield District Council,37UB,J Tomlinson Ltd,V0969520,29/06/2021,65.26,R & B Transformation 2,Supplies & Services,G57002/D200008,Technical Services Depot,Payments to Contractors External
Ashfield District Council,37UB,J Tomlinson Ltd,V0969521,29/06/2021,65.26,R & B Transformation 2,Supplies & Services,G57002/D200008,Technical Services Depot,Payments to Contractors External
Ashfield District Council,37UB,J Tomlinson Ltd,V0969522,29/06/2021,65.26,R & B Transformation 2,Supplies & Services,G57002/D200008,Technical Services Depot,Payments to Contractors External
Ashfield District Council,37UB,J Tomlinson Ltd,V0969523,29/06/2021,65.26,R & B Transformation 2,Supplies & Services,G57002/D200008,Technical Services Depot,Payments to Contractors External
Ashfield District Council,37UB,J Tomlinson Ltd,V0969524,29/06/2021,60.82,R & B Transformation 2,Supplies & Services,G57002/D200008,Technical Services Depot,Payments to Contractors External
Ashfield District Council,37UB,J Tomlinson Ltd,V0969525,29/06/2021,60.82,R & B Transformation 2,Supplies & Services,G57002/D200008,Technical Services Depot,Payments to Contractors External
Ashfield District Council,37UB,J Tomlinson Ltd,V0969526,29/06/2021,60.82,R & B Transformation 2,Supplies & Services,G57002/D200008,Technical Services Depot,Payments to Contractors External
Ashfield District Council,37UB,J Tomlinson Ltd,V0969527,29/06/2021,60.82,R & B Transformation 2,Supplies & Services,G57002/D200008,Technical Services Depot,Payments to Contractors External
Ashfield District Council,37UB,J Tomlinson Ltd,V0969528,29/06/2021,65.26,R & B Transformation 2,Supplies & Services,G57002/D200008,Technical Services Depot,Payments to Contractors External
Ashfield District Council,37UB,J Tomlinson Ltd,V0969529,29/06/2021,65.26,R & B Transformation 2,Supplies & Services,G57002/D200008,Technical Services Depot,Payments to Contractors External
Ashfield District Council,37UB,J Tomlinson Ltd,V0969530,29/06/2021,65.26,R & B Transformation 2,Supplies & Services,G57002/D200008,Technical Services Depot,Payments to Contractors External
Ashfield District Council,37UB,J Tomlinson Ltd,V0969531,29/06/2021,65.26,R & B Transformation 2,Supplies & Services,G57002/D200008,Technical Services Depot,Payments to Contractors External
Ashfield District Council,37UB,J Tomlinson Ltd,V0969532,29/06/2021,65.26,R & B Transformation 2,Supplies & Services,G57002/D200008,Technical Services Depot,Payments to Contractors External
Ashfield District Council,37UB,J Tomlinson Ltd,V0969533,29/06/2021,65.26,R & B Transformation 2,Supplies & Services,G57002/D200008,Technical Services Depot,Payments to Contractors External
Ashfield District Council,37UB,J Tomlinson Ltd,V0969534,29/06/2021,65.26,R & B Transformation 2,Supplies & Services,G57002/D200008,Technical Services Depot,Payments to Contractors External
Ashfield District Council,37UB,J Tomlinson Ltd,V0969535,29/06/2021,65.26,R & B Transformation 2,Supplies & Services,G57002/D200008,Technical Services Depot,Payments to Contractors External
Ashfield District Council,37UB,J Tomlinson Ltd,V0969536,29/06/2021,60.82,R & B Transformation 2,Supplies & Services,G57002/D200008,Technical Services Depot,Payments to Contractors External
Ashfield District Council,37UB,J Tomlinson Ltd,V0969537,29/06/2021,65.26,R & B Transformation 2,Supplies & Services,G57002/D200008,Technical Services Depot,Payments to Contractors External
Ashfield District Council,37UB,J Tomlinson Ltd,V0969538,29/06/2021,60.82,R & B Transformation 2,Supplies & Services,G57002/D200008,Technical Services Depot,Payments to Contractors External
Ashfield District Council,37UB,J Tomlinson Ltd,V0969539,29/06/2021,65.26,R & B Transformation 2,Supplies & Services,G57002/D200008,Technical Services Depot,Payments to Contractors External
Ashfield District Council,37UB,J Tomlinson Ltd,V0969540,29/06/2021,60.82,R & B Transformation 2,Supplies & Services,G57002/D200008,Technical Services Depot,Payments to Contractors External
Ashfield District Council,37UB,J Tomlinson Ltd,V0969541,29/06/2021,65.26,R & B Transformation 2,Supplies & Services,G57002/D200008,Technical Services Depot,Payments to Contractors External
Ashfield District Council,37UB,J Tomlinson Ltd,V0969542,29/06/2021,60.82,R & B Transformation 2,Supplies & Services,G57002/D200008,Technical Services Depot,Payments to Contractors External
Ashfield District Council,37UB,J Tomlinson Ltd,V0969543,29/06/2021,65.26,R & B Transformation 2,Supplies & Services,G57002/D200008,Technical Services Depot,Payments to Contractors External
Ashfield District Council,37UB,J Tomlinson Ltd,V0969544,29/06/2021,65.26,R & B Transformation 2,Supplies & Services,G57002/D200008,Technical Services Depot,Payments to Contractors External
Ashfield District Council,37UB,J Tomlinson Ltd,V0969545,29/06/2021,65.26,R & B Transformation 2,Supplies & Services,G57002/D200008,Technical Services Depot,Payments to Contractors External
Ashfield District Council,37UB,J Tomlinson Ltd,V0969546,29/06/2021,65.26,R & B Transformation 2,Supplies & Services,G57002/D200008,Technical Services Depot,Payments to Contractors External
Ashfield District Council,37UB,J Tomlinson Ltd,V0969547,29/06/2021,65.26,R & B Transformation 2,Supplies & Services,G57002/D200008,Technical Services Depot,Payments to Contractors External
Ashfield District Council,37UB,J Tomlinson Ltd,V0969548,29/06/2021,65.26,R & B Transformation 2,Supplies & Services,G57002/D200008,Technical Services Depot,Payments to Contractors External
Ashfield District Council,37UB,J Tomlinson Ltd,V0969549,29/06/2021,65.26,R & B Transformation 2,Supplies & Services,G57002/D200008,Technical Services Depot,Payments to Contractors External
Ashfield District Council,37UB,J Tomlinson Ltd,V0969550,29/06/2021,65.26,R & B Transformation 2,Supplies & Services,G57002/D200008,Technical Services Depot,Payments to Contractors External
Ashfield District Council,37UB,J Tomlinson Ltd,V0969551,29/06/2021,65.26,R & B Transformation 2,Supplies & Services,G57002/D200008,Technical Services Depot,Payments to Contractors External
Ashfield District Council,37UB,J Tomlinson Ltd,V0969552,29/06/2021,65.26,R & B Transformation 2,Supplies & Services,G57002/D200008,Technical Services Depot,Payments to Contractors External
Ashfield District Council,37UB,J Tomlinson Ltd,V0969553,29/06/2021,65.26,R & B Transformation 2,Supplies & Services,G57002/D200008,Technical Services Depot,Payments to Contractors External
Ashfield District Council,37UB,J Tomlinson Ltd,V0969554,29/06/2021,65.26,R & B Transformation 2,Supplies & Services,G57002/D200008,Technical Services Depot,Payments to Contractors External
Ashfield District Council,37UB,J Tomlinson Ltd,V0969555,29/06/2021,65.26,R & B Transformation 2,Supplies & Services,G57002/D200008,Technical Services Depot,Payments to Contractors External
Ashfield District Council,37UB,J Tomlinson Ltd,V0969556,29/06/2021,65.26,R & B Transformation 2,Supplies & Services,G57002/D200008,Technical Services Depot,Payments to Contractors External
Ashfield District Council,37UB,J Tomlinson Ltd,V0969557,29/06/2021,65.26,R & B Transformation 2,Supplies & Services,G57002/D200008,Technical Services Depot,Payments to Contractors External
Ashfield District Council,37UB,J Tomlinson Ltd,V0969558,29/06/2021,65.26,R & B Transformation 2,Supplies & Services,G57002/D200008,Technical Services Depot,Payments to Contractors External
Ashfield District Council,37UB,J Tomlinson Ltd,V0969559,29/06/2021,65.26,R & B Transformation 2,Supplies & Services,G57002/D200008,Technical Services Depot,Payments to Contractors External
Ashfield District Council,37UB,J Tomlinson Ltd,V0969560,29/06/2021,65.26,R & B Transformation 2,Supplies & Services,G57002/D200008,Technical Services Depot,Payments to Contractors External
Ashfield District Council,37UB,J Tomlinson Ltd,V0969561,29/06/2021,65.26,R & B Transformation 2,Supplies & Services,G57002/D200008,Technical Services Depot,Payments to Contractors External
Ashfield District Council,37UB,J Tomlinson Ltd,V0969562,29/06/2021,65.26,R & B Transformation 2,Supplies & Services,G57002/D200008,Technical Services Depot,Payments to Contractors External
Ashfield District Council,37UB,J Tomlinson Ltd,V0969563,29/06/2021,65.26,R & B Transformation 2,Supplies & Services,G57002/D200008,Technical Services Depot,Payments to Contractors External
Ashfield District Council,37UB,J Tomlinson Ltd,V0969564,29/06/2021,65.26,R & B Transformation 2,Supplies & Services,G57002/D200008,Technical Services Depot,Payments to Contractors External
Ashfield District Council,37UB,J Tomlinson Ltd,V0969565,29/06/2021,60.82,R & B Transformation 2,Supplies & Services,G57002/D200008,Technical Services Depot,Payments to Contractors External
Ashfield District Council,37UB,J Tomlinson Ltd,V0969566,29/06/2021,65.26,R & B Transformation 2,Supplies & Services,G57002/D200008,Technical Services Depot,Payments to Contractors External
Ashfield District Council,37UB,J Tomlinson Ltd,V0969567,29/06/2021,65.26,R & B Transformation 2,Supplies & Services,G57002/D200008,Technical Services Depot,Payments to Contractors External
Ashfield District Council,37UB,J Tomlinson Ltd,V0969568,29/06/2021,65.26,R & B Transformation 2,Supplies & Services,G57002/D200008,Technical Services Depot,Payments to Contractors External
Ashfield District Council,37UB,J Tomlinson Ltd,V0969569,29/06/2021,60.82,R & B Transformation 2,Supplies & Services,G57002/D200008,Technical Services Depot,Payments to Contractors External
Ashfield District Council,37UB,J Tomlinson Ltd,V0969570,29/06/2021,65.26,R & B Transformation 2,Supplies & Services,G57002/D200008,Technical Services Depot,Payments to Contractors External
Ashfield District Council,37UB,J Tomlinson Ltd,V0969571,29/06/2021,65.26,R & B Transformation 2,Supplies & Services,G57002/D200008,Technical Services Depot,Payments to Contractors External
Ashfield District Council,37UB,J Tomlinson Ltd,V0969572,29/06/2021,65.26,R & B Transformation 2,Supplies & Services,G57002/D200008,Technical Services Depot,Payments to Contractors External
Ashfield District Council,37UB,J Tomlinson Ltd,V0969573,29/06/2021,60.82,R & B Transformation 2,Supplies & Services,G57002/D200008,Technical Services Depot,Payments to Contractors External
Ashfield District Council,37UB,J Tomlinson Ltd,V0969574,29/06/2021,65.26,R & B Transformation 2,Supplies & Services,G57002/D200008,Technical Services Depot,Payments to Contractors External
Ashfield District Council,37UB,J Tomlinson Ltd,V0969575,29/06/2021,65.26,R & B Transformation 2,Supplies & Services,G57002/D200008,Technical Services Depot,Payments to Contractors External
Ashfield District Council,37UB,J Tomlinson Ltd,V0969576,29/06/2021,65.26,R & B Transformation 2,Supplies & Services,G57002/D200008,Technical Services Depot,Payments to Contractors External
Ashfield District Council,37UB,J Tomlinson Ltd,V0969577,29/06/2021,65.26,R & B Transformation 2,Supplies & Services,G57002/D200008,Technical Services Depot,Payments to Contractors External
Ashfield District Council,37UB,J Tomlinson Ltd,V0969578,29/06/2021,65.26,R & B Transformation 2,Supplies & Services,G57002/D200008,Technical Services Depot,Payments to Contractors External
Ashfield District Council,37UB,J Tomlinson Ltd,V0969579,29/06/2021,65.26,R & B Transformation 2,Supplies & Services,G57002/D200008,Technical Services Depot,Payments to Contractors External
Ashfield District Council,37UB,J Tomlinson Ltd,V0969580,29/06/2021,65.26,R & B Transformation 2,Supplies & Services,G57002/D200008,Technical Services Depot,Payments to Contractors External
Ashfield District Council,37UB,J Tomlinson Ltd,V0969581,29/06/2021,65.26,R & B Transformation 2,Supplies & Services,G57002/D200008,Technical Services Depot,Payments to Contractors External
Ashfield District Council,37UB,J Tomlinson Ltd,V0969582,29/06/2021,65.26,R & B Transformation 2,Supplies & Services,G57002/D200008,Technical Services Depot,Payments to Contractors External
Ashfield District Council,37UB,J Tomlinson Ltd,V0969583,29/06/2021,65.26,R & B Transformation 2,Supplies & Services,G57002/D200008,Technical Services Depot,Payments to Contractors External
Ashfield District Council,37UB,J Tomlinson Ltd,V0969584,29/06/2021,65.26,R & B Transformation 2,Supplies & Services,G57002/D200008,Technical Services Depot,Payments to Contractors External
Ashfield District Council,37UB,J Tomlinson Ltd,V0969585,29/06/2021,65.26,R & B Transformation 2,Supplies & Services,G57002/D200008,Technical Services Depot,Payments to Contractors External
Ashfield District Council,37UB,J Tomlinson Ltd,V0969586,29/06/2021,65.26,R & B Transformation 2,Supplies & Services,G57002/D200008,Technical Services Depot,Payments to Contractors External
Ashfield District Council,37UB,J Tomlinson Ltd,V0969587,29/06/2021,65.26,R & B Transformation 2,Supplies & Services,G57002/D200008,Technical Services Depot,Payments to Contractors External
Ashfield District Council,37UB,J Tomlinson Ltd,V0969588,29/06/2021,65.26,R & B Transformation 2,Supplies & Services,G57002/D200008,Technical Services Depot,Payments to Contractors External
Ashfield District Council,37UB,J Tomlinson Ltd,V0969589,29/06/2021,65.26,R & B Transformation 2,Supplies & Services,G57002/D200008,Technical Services Depot,Payments to Contractors External
Ashfield District Council,37UB,J Tomlinson Ltd,V0969590,29/06/2021,65.26,R & B Transformation 2,Supplies & Services,G57002/D200008,Technical Services Depot,Payments to Contractors External
Ashfield District Council,37UB,J Tomlinson Ltd,V0969591,29/06/2021,65.26,R & B Transformation 2,Supplies & Services,G57002/D200008,Technical Services Depot,Payments to Contractors External
Ashfield District Council,37UB,J Tomlinson Ltd,V0969592,29/06/2021,65.26,R & B Transformation 2,Supplies & Services,G57002/D200008,Technical Services Depot,Payments to Contractors External
Ashfield District Council,37UB,J Tomlinson Ltd,V0969593,29/06/2021,65.26,R & B Transformation 2,Supplies & Services,G57002/D200008,Technical Services Depot,Payments to Contractors External
Ashfield District Council,37UB,J Tomlinson Ltd,V0969594,29/06/2021,65.26,R & B Transformation 2,Supplies & Services,G57002/D200008,Technical Services Depot,Payments to Contractors External
Ashfield District Council,37UB,J Tomlinson Ltd,V0969595,29/06/2021,65.26,R & B Transformation 2,Supplies & Services,G57002/D200008,Technical Services Depot,Payments to Contractors External
Ashfield District Council,37UB,J Tomlinson Ltd,V0969596,29/06/2021,65.26,R & B Transformation 2,Supplies & Services,G57002/D200008,Technical Services Depot,Payments to Contractors External
Ashfield District Council,37UB,J Tomlinson Ltd,V0969597,29/06/2021,65.26,R & B Transformation 2,Supplies & Services,G57002/D200008,Technical Services Depot,Payments to Contractors External
Ashfield District Council,37UB,J Tomlinson Ltd,V0969598,29/06/2021,65.26,R & B Transformation 2,Supplies & Services,G57002/D200008,Technical Services Depot,Payments to Contractors External
Ashfield District Council,37UB,J Tomlinson Ltd,V0969599,29/06/2021,65.26,R & B Transformation 2,Supplies & Services,G57002/D200008,Technical Services Depot,Payments to Contractors External
Ashfield District Council,37UB,J Tomlinson Ltd,V0969600,29/06/2021,65.26,R & B Transformation 2,Supplies & Services,G57002/D200008,Technical Services Depot,Payments to Contractors External
Ashfield District Council,37UB,J Tomlinson Ltd,V0969601,29/06/2021,60.82,R & B Transformation 2,Supplies & Services,G57002/D200008,Technical Services Depot,Payments to Contractors External
Ashfield District Council,37UB,J Tomlinson Ltd,V0969602,29/06/2021,65.26,R & B Transformation 2,Supplies & Services,G57002/D200008,Technical Services Depot,Payments to Contractors External
Ashfield District Council,37UB,J Tomlinson Ltd,V0969603,29/06/2021,65.26,R & B Transformation 2,Supplies & Services,G57002/D200008,Technical Services Depot,Payments to Contractors External
Ashfield District Council,37UB,J Tomlinson Ltd,V0969604,29/06/2021,65.26,R & B Transformation 2,Supplies & Services,G57002/D200008,Technical Services Depot,Payments to Contractors External
Ashfield District Council,37UB,J Tomlinson Ltd,V0969605,29/06/2021,65.26,R & B Transformation 2,Supplies & Services,G57002/D200008,Technical Services Depot,Payments to Contractors External
Ashfield District Council,37UB,J Tomlinson Ltd,V0969606,29/06/2021,65.26,R & B Transformation 2,Supplies & Services,G57002/D200008,Technical Services Depot,Payments to Contractors External
Ashfield District Council,37UB,J Tomlinson Ltd,V0969607,29/06/2021,65.26,R & B Transformation 2,Supplies & Services,G57002/D200008,Technical Services Depot,Payments to Contractors External
Ashfield District Council,37UB,J Tomlinson Ltd,V0969608,29/06/2021,65.26,R & B Transformation 2,Supplies & Services,G57002/D200008,Technical Services Depot,Payments to Contractors External
Ashfield District Council,37UB,J Tomlinson Ltd,V0969609,29/06/2021,65.26,R & B Transformation 2,Supplies & Services,G57002/D200008,Technical Services Depot,Payments to Contractors External
Ashfield District Council,37UB,J Tomlinson Ltd,V0969610,29/06/2021,65.26,R & B Transformation 2,Supplies & Services,G57002/D200008,Technical Services Depot,Payments to Contractors External
Ashfield District Council,37UB,J Tomlinson Ltd,V0969611,29/06/2021,65.26,R & B Transformation 2,Supplies & Services,G57002/D200008,Technical Services Depot,Payments to Contractors External
Ashfield District Council,37UB,J Tomlinson Ltd,V0969612,29/06/2021,65.26,R & B Transformation 2,Supplies & Services,G57002/D200008,Technical Services Depot,Payments to Contractors External
Ashfield District Council,37UB,J Tomlinson Ltd,V0969613,29/06/2021,65.26,R & B Transformation 2,Supplies & Services,G57002/D200008,Technical Services Depot,Payments to Contractors External
Ashfield District Council,37UB,J Tomlinson Ltd,V0969614,29/06/2021,65.26,R & B Transformation 2,Supplies & Services,G57002/D200008,Technical Services Depot,Payments to Contractors External
Ashfield District Council,37UB,J Tomlinson Ltd,V0969615,29/06/2021,65.26,R & B Transformation 2,Supplies & Services,G57002/D200008,Technical Services Depot,Payments to Contractors External
Ashfield District Council,37UB,J Tomlinson Ltd,V0969616,29/06/2021,65.26,R & B Transformation 2,Supplies & Services,G57002/D200008,Technical Services Depot,Payments to Contractors External
Ashfield District Council,37UB,J Tomlinson Ltd,V0969617,29/06/2021,65.26,R & B Transformation 2,Supplies & Services,G57002/D200008,Technical Services Depot,Payments to Contractors External
Ashfield District Council,37UB,J Tomlinson Ltd,V0969618,29/06/2021,65.26,R & B Transformation 2,Supplies & Services,G57002/D200008,Technical Services Depot,Payments to Contractors External
Ashfield District Council,37UB,J Tomlinson Ltd,V0969619,29/06/2021,65.26,R & B Transformation 2,Supplies & Services,G57002/D200008,Technical Services Depot,Payments to Contractors External
Ashfield District Council,37UB,J Tomlinson Ltd,V0969620,29/06/2021,65.26,R & B Transformation 2,Supplies & Services,G57002/D200008,Technical Services Depot,Payments to Contractors External
Ashfield District Council,37UB,J Tomlinson Ltd,V0969621,29/06/2021,65.26,R & B Transformation 2,Supplies & Services,G57002/D200008,Technical Services Depot,Payments to Contractors External
Ashfield District Council,37UB,J Tomlinson Ltd,V0969622,29/06/2021,65.26,R & B Transformation 2,Supplies & Services,G57002/D200008,Technical Services Depot,Payments to Contractors External
Ashfield District Council,37UB,J Tomlinson Ltd,V0969623,29/06/2021,65.26,R & B Transformation 2,Supplies & Services,G57002/D200008,Technical Services Depot,Payments to Contractors External
Ashfield District Council,37UB,J Tomlinson Ltd,V0969624,29/06/2021,65.26,R & B Transformation 2,Supplies & Services,G57002/D200008,Technical Services Depot,Payments to Contractors External
Ashfield District Council,37UB,J Tomlinson Ltd,V0969625,29/06/2021,60.82,R & B Transformation 2,Supplies & Services,G57002/D200008,Technical Services Depot,Payments to Contractors External
Ashfield District Council,37UB,J Tomlinson Ltd,V0969626,29/06/2021,65.26,R & B Transformation 2,Supplies & Services,G57002/D200008,Technical Services Depot,Payments to Contractors External
Ashfield District Council,37UB,J Tomlinson Ltd,V0969627,29/06/2021,65.26,R & B Transformation 2,Supplies & Services,G57002/D200008,Technical Services Depot,Payments to Contractors External
Ashfield District Council,37UB,J Tomlinson Ltd,V0969628,29/06/2021,65.26,R & B Transformation 2,Supplies & Services,G57002/D200008,Technical Services Depot,Payments to Contractors External
Ashfield District Council,37UB,J Tomlinson Ltd,V0969629,29/06/2021,65.26,R & B Transformation 2,Supplies & Services,G57002/D200008,Technical Services Depot,Payments to Contractors External
Ashfield District Council,37UB,J Tomlinson Ltd,V0969630,29/06/2021,65.26,R & B Transformation 2,Supplies & Services,G57002/D200008,Technical Services Depot,Payments to Contractors External
Ashfield District Council,37UB,J Tomlinson Ltd,V0969631,29/06/2021,60.82,R & B Transformation 2,Supplies & Services,G57002/D200008,Technical Services Depot,Payments to Contractors External
Ashfield District Council,37UB,J Tomlinson Ltd,V0969632,29/06/2021,65.26,R & B Transformation 2,Supplies & Services,G57002/D200008,Technical Services Depot,Payments to Contractors External
Ashfield District Council,37UB,J Tomlinson Ltd,V0969633,29/06/2021,65.26,R & B Transformation 2,Supplies & Services,G57002/D200008,Technical Services Depot,Payments to Contractors External
Ashfield District Council,37UB,J Tomlinson Ltd,V0969634,29/06/2021,65.26,R & B Transformation 2,Supplies & Services,G57002/D200008,Technical Services Depot,Payments to Contractors External
Ashfield District Council,37UB,J Tomlinson Ltd,V0969635,29/06/2021,65.26,R & B Transformation 2,Supplies & Services,G57002/D200008,Technical Services Depot,Payments to Contractors External
Ashfield District Council,37UB,J Tomlinson Ltd,V0969636,29/06/2021,65.26,R & B Transformation 2,Supplies & Services,G57002/D200008,Technical Services Depot,Payments to Contractors External
Ashfield District Council,37UB,J Tomlinson Ltd,V0969637,29/06/2021,65.26,R & B Transformation 2,Supplies & Services,G57002/D200008,Technical Services Depot,Payments to Contractors External
Ashfield District Council,37UB,J Tomlinson Ltd,V0969638,29/06/2021,65.26,R & B Transformation 2,Supplies & Services,G57002/D200008,Technical Services Depot,Payments to Contractors External
Ashfield District Council,37UB,J Tomlinson Ltd,V0969639,29/06/2021,65.26,R & B Transformation 2,Supplies & Services,G57002/D200008,Technical Services Depot,Payments to Contractors External
Ashfield District Council,37UB,J Tomlinson Ltd,V0969640,29/06/2021,65.26,R & B Transformation 2,Supplies & Services,G57002/D200008,Technical Services Depot,Payments to Contractors External
Ashfield District Council,37UB,J Tomlinson Ltd,V0969641,29/06/2021,60.82,R & B Transformation 2,Supplies & Services,G57002/D200008,Technical Services Depot,Payments to Contractors External
Ashfield District Council,37UB,J Tomlinson Ltd,V0969642,29/06/2021,65.26,R & B Transformation 2,Supplies & Services,G57002/D200008,Technical Services Depot,Payments to Contractors External
Ashfield District Council,37UB,J Tomlinson Ltd,V0969643,29/06/2021,65.26,R & B Transformation 2,Supplies & Services,G57002/D200008,Technical Services Depot,Payments to Contractors External
Ashfield District Council,37UB,J Tomlinson Ltd,V0969644,29/06/2021,65.26,R & B Transformation 2,Supplies & Services,G57002/D200008,Technical Services Depot,Payments to Contractors External
Ashfield District Council,37UB,J Tomlinson Ltd,V0969645,29/06/2021,60.82,R & B Transformation 2,Supplies & Services,G57002/D200008,Technical Services Depot,Payments to Contractors External
Ashfield District Council,37UB,J Tomlinson Ltd,V0969646,29/06/2021,65.26,R & B Transformation 2,Supplies & Services,G57002/D200008,Technical Services Depot,Payments to Contractors External
Ashfield District Council,37UB,J Tomlinson Ltd,V0969647,29/06/2021,65.26,R & B Transformation 2,Supplies & Services,G57002/D200008,Technical Services Depot,Payments to Contractors External
Ashfield District Council,37UB,J Tomlinson Ltd,V0969648,29/06/2021,65.26,R & B Transformation 2,Supplies & Services,G57002/D200008,Technical Services Depot,Payments to Contractors External
Ashfield District Council,37UB,J Tomlinson Ltd,V0969649,29/06/2021,65.26,R & B Transformation 2,Supplies & Services,G57002/D200008,Technical Services Depot,Payments to Contractors External
Ashfield District Council,37UB,J Tomlinson Ltd,V0969650,29/06/2021,65.26,R & B Transformation 2,Supplies & Services,G57002/D200008,Technical Services Depot,Payments to Contractors External
Ashfield District Council,37UB,J Tomlinson Ltd,V0969651,29/06/2021,65.26,R & B Transformation 2,Supplies & Services,G57002/D200008,Technical Services Depot,Payments to Contractors External
Ashfield District Council,37UB,J Tomlinson Ltd,V0969652,29/06/2021,65.26,R & B Transformation 2,Supplies & Services,G57002/D200008,Technical Services Depot,Payments to Contractors External
Ashfield District Council,37UB,J Tomlinson Ltd,V0969653,29/06/2021,65.26,R & B Transformation 2,Supplies & Services,G57002/D200008,Technical Services Depot,Payments to Contractors External
Ashfield District Council,37UB,J Tomlinson Ltd,V0969654,29/06/2021,65.26,R & B Transformation 2,Supplies & Services,G57002/D200008,Technical Services Depot,Payments to Contractors External
Ashfield District Council,37UB,J Tomlinson Ltd,V0969655,29/06/2021,60.82,R & B Transformation 2,Supplies & Services,G57002/D200008,Technical Services Depot,Payments to Contractors External
Ashfield District Council,37UB,J Tomlinson Ltd,V0969656,29/06/2021,65.26,R & B Transformation 2,Supplies & Services,G57002/D200008,Technical Services Depot,Payments to Contractors External
Ashfield District Council,37UB,J Tomlinson Ltd,V0969657,29/06/2021,65.26,R & B Transformation 2,Supplies & Services,G57002/D200008,Technical Services Depot,Payments to Contractors External
Ashfield District Council,37UB,J Tomlinson Ltd,V0969658,29/06/2021,65.26,R & B Transformation 2,Supplies & Services,G57002/D200008,Technical Services Depot,Payments to Contractors External
Ashfield District Council,37UB,J Tomlinson Ltd,V0969659,29/06/2021,60.82,R & B Transformation 2,Supplies & Services,G57002/D200008,Technical Services Depot,Payments to Contractors External
Ashfield District Council,37UB,J Tomlinson Ltd,V0969660,29/06/2021,65.26,R & B Transformation 2,Supplies & Services,G57002/D200008,Technical Services Depot,Payments to Contractors External
Ashfield District Council,37UB,J Tomlinson Ltd,V0969661,29/06/2021,65.26,R & B Transformation 2,Supplies & Services,G57002/D200008,Technical Services Depot,Payments to Contractors External
Ashfield District Council,37UB,J Tomlinson Ltd,V0969662,29/06/2021,65.26,R & B Transformation 2,Supplies & Services,G57002/D200008,Technical Services Depot,Payments to Contractors External
Ashfield District Council,37UB,J Tomlinson Ltd,V0969663,29/06/2021,60.82,R & B Transformation 2,Supplies & Services,G57002/D200008,Technical Services Depot,Payments to Contractors External
Ashfield District Council,37UB,J Tomlinson Ltd,V0969686,29/06/2021,60.82,R & B Transformation 2,Supplies & Services,G57002/D200008,Technical Services Depot,Payments to Contractors External
Ashfield District Council,37UB,J Tomlinson Ltd,V0969687,29/06/2021,60.82,R & B Transformation 2,Supplies & Services,G57002/D200008,Technical Services Depot,Payments to Contractors External
Ashfield District Council,37UB,J Tomlinson Ltd,V0969688,29/06/2021,60.82,R & B Transformation 2,Supplies & Services,G57002/D200008,Technical Services Depot,Payments to Contractors External
Ashfield District Council,37UB,J Tomlinson Ltd,V0969691,29/06/2021,64.50,R & B Transformation 2,Supplies & Services,G57002/D200008,Technical Services Depot,Payments to Contractors External
Ashfield District Council,37UB,J Tomlinson Ltd,V0969692,29/06/2021,62.99,R & B Transformation 2,Supplies & Services,G57002/D200008,Technical Services Depot,Payments to Contractors External
Ashfield District Council,37UB,J Tomlinson Ltd,V0969693,29/06/2021,64.50,R & B Transformation 2,Supplies & Services,G57002/D200008,Technical Services Depot,Payments to Contractors External
Ashfield District Council,37UB,J Tomlinson Ltd,V0969694,29/06/2021,62.99,R & B Transformation 2,Supplies & Services,G57002/D200008,Technical Services Depot,Payments to Contractors External
Ashfield District Council,37UB,J Tomlinson Ltd,V0969695,29/06/2021,64.50,R & B Transformation 2,Supplies & Services,G57002/D200008,Technical Services Depot,Payments to Contractors External
Ashfield District Council,37UB,J Tomlinson Ltd,V0969696,29/06/2021,64.50,R & B Transformation 2,Supplies & Services,G57002/D200008,Technical Services Depot,Payments to Contractors External
Ashfield District Council,37UB,J Tomlinson Ltd,V0969697,29/06/2021,64.50,R & B Transformation 2,Supplies & Services,G57002/D200008,Technical Services Depot,Payments to Contractors External
Ashfield District Council,37UB,J Tomlinson Ltd,V0969698,29/06/2021,62.99,R & B Transformation 2,Supplies & Services,G57002/D200008,Technical Services Depot,Payments to Contractors External
Ashfield District Council,37UB,J Tomlinson Ltd,V0969699,29/06/2021,64.50,R & B Transformation 2,Supplies & Services,G57002/D200008,Technical Services Depot,Payments to Contractors External
Ashfield District Council,37UB,J Tomlinson Ltd,V0969700,29/06/2021,62.99,R & B Transformation 2,Supplies & Services,G57002/D200008,Technical Services Depot,Payments to Contractors External
Ashfield District Council,37UB,J Tomlinson Ltd,V0969701,29/06/2021,32.25,R & B Transformation 2,Supplies & Services,G57002/D200008,Technical Services Depot,Payments to Contractors External
Ashfield District Council,37UB,J Tomlinson Ltd,V0969702,29/06/2021,62.99,R & B Transformation 2,Supplies & Services,G57002/D200008,Technical Services Depot,Payments to Contractors External
Ashfield District Council,37UB,J Tomlinson Ltd,V0969703,29/06/2021,64.50,R & B Transformation 2,Supplies & Services,G57002/D200008,Technical Services Depot,Payments to Contractors External
Ashfield District Council,37UB,J Tomlinson Ltd,V0969704,29/06/2021,64.50,R & B Transformation 2,Supplies & Services,G57002/D200008,Technical Services Depot,Payments to Contractors External
Ashfield District Council,37UB,J Tomlinson Ltd,V0969705,29/06/2021,33.90,R & B Transformation 2,Supplies & Services,G57002/D200008,Technical Services Depot,Payments to Contractors External
Ashfield District Council,37UB,J Tomlinson Ltd,V0969706,29/06/2021,33.90,R & B Transformation 2,Supplies & Services,G57002/D200008,Technical Services Depot,Payments to Contractors External
Ashfield District Council,37UB,J Tomlinson Ltd,V0969707,29/06/2021,32.25,R & B Transformation 2,Supplies & Services,G57002/D200008,Technical Services Depot,Payments to Contractors External
Ashfield District Council,37UB,J Tomlinson Ltd,V0969708,29/06/2021,32.25,R & B Transformation 2,Supplies & Services,G57002/D200008,Technical Services Depot,Payments to Contractors External
Ashfield District Council,37UB,J Tomlinson Ltd,V0969709,29/06/2021,32.25,R & B Transformation 2,Supplies & Services,G57002/D200008,Technical Services Depot,Payments to Contractors External
Ashfield District Council,37UB,J Tomlinson Ltd,V0969710,29/06/2021,41.85,R & B Transformation 2,Supplies & Services,G57002/D200008,Technical Services Depot,Payments to Contractors External
Ashfield District Council,37UB,J Tomlinson Ltd,V0969711,29/06/2021,64.50,R & B Transformation 2,Supplies & Services,G57002/D200008,Technical Services Depot,Payments to Contractors External
Ashfield District Council,37UB,J Tomlinson Ltd,V0969712,29/06/2021,62.99,R & B Transformation 2,Supplies & Services,G57002/D200008,Technical Services Depot,Payments to Contractors External
Ashfield District Council,37UB,J Tomlinson Ltd,V0969713,29/06/2021,14.27,R & B Transformation 2,Supplies & Services,G57002/D200008,Technical Services Depot,Payments to Contractors External
Ashfield District Council,37UB,J Tomlinson Ltd,V0969720,29/06/2021,60.82,R & B Transformation 2,Supplies & Services,G57002/D200008,Technical Services Depot,Payments to Contractors External
Ashfield District Council,37UB,J Tomlinson Ltd,V0969721,29/06/2021,60.82,R & B Transformation 2,Supplies & Services,G57002/D200008,Technical Services Depot,Payments to Contractors External
Ashfield District Council,37UB,J Tomlinson Ltd,V0969722,29/06/2021,60.82,R & B Transformation 2,Supplies & Services,G57002/D200008,Technical Services Depot,Payments to Contractors External
Ashfield District Council,37UB,J Tomlinson Ltd,V0969723,29/06/2021,60.82,R & B Transformation 2,Supplies & Services,G57002/D200008,Technical Services Depot,Payments to Contractors External
Ashfield District Council,37UB,J Tomlinson Ltd,V0969724,29/06/2021,65.26,R & B Transformation 2,Supplies & Services,G57002/D200008,Technical Services Depot,Payments to Contractors External
Ashfield District Council,37UB,J Tomlinson Ltd,V0969725,29/06/2021,65.26,R & B Transformation 2,Supplies & Services,G57002/D200008,Technical Services Depot,Payments to Contractors External
Ashfield District Council,37UB,J Tomlinson Ltd,V0969726,29/06/2021,65.26,R & B Transformation 2,Supplies & Services,G57002/D200008,Technical Services Depot,Payments to Contractors External
Ashfield District Council,37UB,J Tomlinson Ltd,V0969727,29/06/2021,65.26,R & B Transformation 2,Supplies & Services,G57002/D200008,Technical Services Depot,Payments to Contractors External
Ashfield District Council,37UB,J Tomlinson Ltd,V0969728,29/06/2021,65.26,R & B Transformation 2,Supplies & Services,G57002/D200008,Technical Services Depot,Payments to Contractors External
Ashfield District Council,37UB,J Tomlinson Ltd,V0969729,29/06/2021,65.26,R & B Transformation 2,Supplies & Services,G57002/D200008,Technical Services Depot,Payments to Contractors External
Ashfield District Council,37UB,J Tomlinson Ltd,V0969730,29/06/2021,65.26,R & B Transformation 2,Supplies & Services,G57002/D200008,Technical Services Depot,Payments to Contractors External
Ashfield District Council,37UB,J Tomlinson Ltd,V0969731,29/06/2021,65.26,R & B Transformation 2,Supplies & Services,G57002/D200008,Technical Services Depot,Payments to Contractors External
Ashfield District Council,37UB,J Tomlinson Ltd,V0969732,29/06/2021,65.26,R & B Transformation 2,Supplies & Services,G57002/D200008,Technical Services Depot,Payments to Contractors External
Ashfield District Council,37UB,J Tomlinson Ltd,V0969733,29/06/2021,65.26,R & B Transformation 2,Supplies & Services,G57002/D200008,Technical Services Depot,Payments to Contractors External
Ashfield District Council,37UB,J Tomlinson Ltd,V0969734,29/06/2021,65.26,R & B Transformation 2,Supplies & Services,G57002/D200008,Technical Services Depot,Payments to Contractors External
Ashfield District Council,37UB,J Tomlinson Ltd,V0969735,29/06/2021,65.26,R & B Transformation 2,Supplies & Services,G57002/D200008,Technical Services Depot,Payments to Contractors External
Ashfield District Council,37UB,J Tomlinson Ltd,V0969736,29/06/2021,65.26,R & B Transformation 2,Supplies & Services,G57002/D200008,Technical Services Depot,Payments to Contractors External
Ashfield District Council,37UB,J Tomlinson Ltd,V0969737,29/06/2021,65.26,R & B Transformation 2,Supplies & Services,G57002/D200008,Technical Services Depot,Payments to Contractors External
Ashfield District Council,37UB,J Tomlinson Ltd,V0969738,29/06/2021,65.26,R & B Transformation 2,Supplies & Services,G57002/D200008,Technical Services Depot,Payments to Contractors External
Ashfield District Council,37UB,J Tomlinson Ltd,V0969739,29/06/2021,65.26,R & B Transformation 2,Supplies & Services,G57002/D200008,Technical Services Depot,Payments to Contractors External
Ashfield District Council,37UB,J Tomlinson Ltd,V0969740,29/06/2021,65.26,R & B Transformation 2,Supplies & Services,G57002/D200008,Technical Services Depot,Payments to Contractors External
Ashfield District Council,37UB,J Tomlinson Ltd,V0969741,29/06/2021,60.82,R & B Transformation 2,Supplies & Services,G57002/D200008,Technical Services Depot,Payments to Contractors External
Ashfield District Council,37UB,J Tomlinson Ltd,V0969742,29/06/2021,65.26,R & B Transformation 2,Supplies & Services,G57002/D200008,Technical Services Depot,Payments to Contractors External
Ashfield District Council,37UB,J Tomlinson Ltd,V0969743,29/06/2021,65.26,R & B Transformation 2,Supplies & Services,G57002/D200008,Technical Services Depot,Payments to Contractors External
Ashfield District Council,37UB,J Tomlinson Ltd,V0969744,29/06/2021,65.26,R & B Transformation 2,Supplies & Services,G57002/D200008,Technical Services Depot,Payments to Contractors External
Ashfield District Council,37UB,J Tomlinson Ltd,V0969745,29/06/2021,60.82,R & B Transformation 2,Supplies & Services,G57002/D200008,Technical Services Depot,Payments to Contractors External
Ashfield District Council,37UB,J Tomlinson Ltd,V0969746,29/06/2021,65.26,R & B Transformation 2,Supplies & Services,G57002/D200008,Technical Services Depot,Payments to Contractors External
Ashfield District Council,37UB,J Tomlinson Ltd,V0969747,29/06/2021,65.26,R & B Transformation 2,Supplies & Services,G57002/D200008,Technical Services Depot,Payments to Contractors External
Ashfield District Council,37UB,J Tomlinson Ltd,V0969748,29/06/2021,65.26,R & B Transformation 2,Supplies & Services,G57002/D200008,Technical Services Depot,Payments to Contractors External
Ashfield District Council,37UB,J Tomlinson Ltd,V0969749,29/06/2021,60.82,R & B Transformation 2,Supplies & Services,G57002/D200008,Technical Services Depot,Payments to Contractors External
Ashfield District Council,37UB,J Tomlinson Ltd,V0969750,29/06/2021,65.26,R & B Transformation 2,Supplies & Services,G57002/D200008,Technical Services Depot,Payments to Contractors External
Ashfield District Council,37UB,J Tomlinson Ltd,V0969751,29/06/2021,60.82,R & B Transformation 2,Supplies & Services,G57002/D200008,Technical Services Depot,Payments to Contractors External
Ashfield District Council,37UB,J Tomlinson Ltd,V0969752,29/06/2021,65.26,R & B Transformation 2,Supplies & Services,G57002/D200008,Technical Services Depot,Payments to Contractors External
Ashfield District Council,37UB,J Tomlinson Ltd,V0969753,29/06/2021,65.26,R & B Transformation 2,Supplies & Services,G57002/D200008,Technical Services Depot,Payments to Contractors External
Ashfield District Council,37UB,J Tomlinson Ltd,V0969754,29/06/2021,65.26,R & B Transformation 2,Supplies & Services,G57002/D200008,Technical Services Depot,Payments to Contractors External
Ashfield District Council,37UB,J Tomlinson Ltd,V0969755,29/06/2021,65.26,R & B Transformation 2,Supplies & Services,G57002/D200008,Technical Services Depot,Payments to Contractors External
Ashfield District Council,37UB,J Tomlinson Ltd,V0969756,29/06/2021,65.26,R & B Transformation 2,Supplies & Services,G57002/D200008,Technical Services Depot,Payments to Contractors External
Ashfield District Council,37UB,J Tomlinson Ltd,V0969757,29/06/2021,65.26,R & B Transformation 2,Supplies & Services,G57002/D200008,Technical Services Depot,Payments to Contractors External
Ashfield District Council,37UB,J Tomlinson Ltd,V0969758,29/06/2021,65.26,R & B Transformation 2,Supplies & Services,G57002/D200008,Technical Services Depot,Payments to Contractors External
Ashfield District Council,37UB,J Tomlinson Ltd,V0969759,29/06/2021,65.26,R & B Transformation 2,Supplies & Services,G57002/D200008,Technical Services Depot,Payments to Contractors External
Ashfield District Council,37UB,J Tomlinson Ltd,V0969760,29/06/2021,65.26,R & B Transformation 2,Supplies & Services,G57002/D200008,Technical Services Depot,Payments to Contractors External
Ashfield District Council,37UB,J Tomlinson Ltd,V0969761,29/06/2021,65.26,R & B Transformation 2,Supplies & Services,G57002/D200008,Technical Services Depot,Payments to Contractors External
Ashfield District Council,37UB,J Tomlinson Ltd,V0969762,29/06/2021,60.82,R & B Transformation 2,Supplies & Services,G57002/D200008,Technical Services Depot,Payments to Contractors External
Ashfield District Council,37UB,J Tomlinson Ltd,V0969763,29/06/2021,65.26,R & B Transformation 2,Supplies & Services,G57002/D200008,Technical Services Depot,Payments to Contractors External
Ashfield District Council,37UB,J Tomlinson Ltd,V0969764,29/06/2021,65.26,R & B Transformation 2,Supplies & Services,G57002/D200008,Technical Services Depot,Payments to Contractors External
Ashfield District Council,37UB,J Tomlinson Ltd,V0969765,29/06/2021,65.26,R & B Transformation 2,Supplies & Services,G57002/D200008,Technical Services Depot,Payments to Contractors External
Ashfield District Council,37UB,J Tomlinson Ltd,V0969766,29/06/2021,65.26,R & B Transformation 2,Supplies & Services,G57002/D200008,Technical Services Depot,Payments to Contractors External
Ashfield District Council,37UB,J Tomlinson Ltd,V0969767,29/06/2021,65.26,R & B Transformation 2,Supplies & Services,G57002/D200008,Technical Services Depot,Payments to Contractors External
Ashfield District Council,37UB,J Tomlinson Ltd,V0969768,29/06/2021,65.26,R & B Transformation 2,Supplies & Services,G57002/D200008,Technical Services Depot,Payments to Contractors External
Ashfield District Council,37UB,J Tomlinson Ltd,V0969769,29/06/2021,65.26,R & B Transformation 2,Supplies & Services,G57002/D200008,Technical Services Depot,Payments to Contractors External
Ashfield District Council,37UB,J Tomlinson Ltd,V0969770,29/06/2021,65.26,R & B Transformation 2,Supplies & Services,G57002/D200008,Technical Services Depot,Payments to Contractors External
Ashfield District Council,37UB,J Tomlinson Ltd,V0969771,29/06/2021,65.26,R & B Transformation 2,Supplies & Services,G57002/D200008,Technical Services Depot,Payments to Contractors External
Ashfield District Council,37UB,J Tomlinson Ltd,V0969772,29/06/2021,65.26,R & B Transformation 2,Supplies & Services,G57002/D200008,Technical Services Depot,Payments to Contractors External
Ashfield District Council,37UB,J Tomlinson Ltd,V0969773,29/06/2021,65.26,R & B Transformation 2,Supplies & Services,G57002/D200008,Technical Services Depot,Payments to Contractors External
Ashfield District Council,37UB,J Tomlinson Ltd,V0969774,29/06/2021,65.26,R & B Transformation 2,Supplies & Services,G57002/D200008,Technical Services Depot,Payments to Contractors External
Ashfield District Council,37UB,J Tomlinson Ltd,V0969775,29/06/2021,60.82,R & B Transformation 2,Supplies & Services,G57002/D200008,Technical Services Depot,Payments to Contractors External
Ashfield District Council,37UB,J Tomlinson Ltd,V0969776,29/06/2021,65.26,R & B Transformation 2,Supplies & Services,G57002/D200008,Technical Services Depot,Payments to Contractors External
Ashfield District Council,37UB,J Tomlinson Ltd,V0969777,29/06/2021,65.26,R & B Transformation 2,Supplies & Services,G57002/D200008,Technical Services Depot,Payments to Contractors External
Ashfield District Council,37UB,J Tomlinson Ltd,V0969778,29/06/2021,65.26,R & B Transformation 2,Supplies & Services,G57002/D200008,Technical Services Depot,Payments to Contractors External
Ashfield District Council,37UB,J Tomlinson Ltd,V0969779,29/06/2021,65.26,R & B Transformation 2,Supplies & Services,G57002/D200008,Technical Services Depot,Payments to Contractors External
Ashfield District Council,37UB,J Tomlinson Ltd,V0969780,29/06/2021,65.26,R & B Transformation 2,Supplies & Services,G57002/D200008,Technical Services Depot,Payments to Contractors External
Ashfield District Council,37UB,J Tomlinson Ltd,V0969781,29/06/2021,65.26,R & B Transformation 2,Supplies & Services,G57002/D200008,Technical Services Depot,Payments to Contractors External
Ashfield District Council,37UB,J Tomlinson Ltd,V0969782,29/06/2021,65.26,R & B Transformation 2,Supplies & Services,G57002/D200008,Technical Services Depot,Payments to Contractors External
Ashfield District Council,37UB,J Tomlinson Ltd,V0969783,29/06/2021,65.26,R & B Transformation 2,Supplies & Services,G57002/D200008,Technical Services Depot,Payments to Contractors External
Ashfield District Council,37UB,J Tomlinson Ltd,V0969784,29/06/2021,65.26,R & B Transformation 2,Supplies & Services,G57002/D200008,Technical Services Depot,Payments to Contractors External
Ashfield District Council,37UB,J Tomlinson Ltd,V0969785,29/06/2021,65.26,R & B Transformation 2,Supplies & Services,G57002/D200008,Technical Services Depot,Payments to Contractors External
Ashfield District Council,37UB,J Tomlinson Ltd,V0969786,29/06/2021,65.26,R & B Transformation 2,Supplies & Services,G57002/D200008,Technical Services Depot,Payments to Contractors External
Ashfield District Council,37UB,J Tomlinson Ltd,V0969787,29/06/2021,65.26,R & B Transformation 2,Supplies & Services,G57002/D200008,Technical Services Depot,Payments to Contractors External
Ashfield District Council,37UB,J Tomlinson Ltd,V0969788,29/06/2021,60.82,R & B Transformation 2,Supplies & Services,G57002/D200008,Technical Services Depot,Payments to Contractors External
Ashfield District Council,37UB,J Tomlinson Ltd,V0969789,29/06/2021,60.82,R & B Transformation 2,Supplies & Services,G57002/D200008,Technical Services Depot,Payments to Contractors External
Ashfield District Council,37UB,J Tomlinson Ltd,V0969790,29/06/2021,65.26,R & B Transformation 2,Supplies & Services,G57002/D200008,Technical Services Depot,Payments to Contractors External
Ashfield District Council,37UB,J Tomlinson Ltd,V0969791,29/06/2021,65.26,R & B Transformation 2,Supplies & Services,G57002/D200008,Technical Services Depot,Payments to Contractors External
Ashfield District Council,37UB,J Tomlinson Ltd,V0969792,29/06/2021,65.26,R & B Transformation 2,Supplies & Services,G57002/D200008,Technical Services Depot,Payments to Contractors External
Ashfield District Council,37UB,J Tomlinson Ltd,V0969793,29/06/2021,65.26,R & B Transformation 2,Supplies & Services,G57002/D200008,Technical Services Depot,Payments to Contractors External
Ashfield District Council,37UB,J Tomlinson Ltd,V0969794,29/06/2021,60.82,R & B Transformation 2,Supplies & Services,G57002/D200008,Technical Services Depot,Payments to Contractors External
Ashfield District Council,37UB,J Tomlinson Ltd,V0969795,29/06/2021,60.82,R & B Transformation 2,Supplies & Services,G57002/D200008,Technical Services Depot,Payments to Contractors External
Ashfield District Council,37UB,J Tomlinson Ltd,V0969796,29/06/2021,60.82,R & B Transformation 2,Supplies & Services,G57002/D200008,Technical Services Depot,Payments to Contractors External
Ashfield District Council,37UB,J Tomlinson Ltd,V0969797,29/06/2021,60.82,R & B Transformation 2,Supplies & Services,G57002/D200008,Technical Services Depot,Payments to Contractors External
Ashfield District Council,37UB,J Tomlinson Ltd,V0969798,29/06/2021,60.82,R & B Transformation 2,Supplies & Services,G57002/D200008,Technical Services Depot,Payments to Contractors External
Ashfield District Council,37UB,J Tomlinson Ltd,V0969799,29/06/2021,60.82,R & B Transformation 2,Supplies & Services,G57002/D200008,Technical Services Depot,Payments to Contractors External
Ashfield District Council,37UB,J Tomlinson Ltd,V0969800,29/06/2021,65.26,R & B Transformation 2,Supplies & Services,G57002/D200008,Technical Services Depot,Payments to Contractors External
Ashfield District Council,37UB,J Tomlinson Ltd,V0969801,29/06/2021,65.26,R & B Transformation 2,Supplies & Services,G57002/D200008,Technical Services Depot,Payments to Contractors External
Ashfield District Council,37UB,J Tomlinson Ltd,V0969802,29/06/2021,65.26,R & B Transformation 2,Supplies & Services,G57002/D200008,Technical Services Depot,Payments to Contractors External
Ashfield District Council,37UB,J Tomlinson Ltd,V0969803,29/06/2021,65.26,R & B Transformation 2,Supplies & Services,G57002/D200008,Technical Services Depot,Payments to Contractors External
Ashfield District Council,37UB,J Tomlinson Ltd,V0969804,29/06/2021,65.26,R & B Transformation 2,Supplies & Services,G57002/D200008,Technical Services Depot,Payments to Contractors External
Ashfield District Council,37UB,J Tomlinson Ltd,V0969805,29/06/2021,65.26,R & B Transformation 2,Supplies & Services,G57002/D200008,Technical Services Depot,Payments to Contractors External
Ashfield District Council,37UB,J Tomlinson Ltd,V0969806,29/06/2021,65.26,R & B Transformation 2,Supplies & Services,G57002/D200008,Technical Services Depot,Payments to Contractors External
Ashfield District Council,37UB,J Tomlinson Ltd,V0969807,29/06/2021,65.26,R & B Transformation 2,Supplies & Services,G57002/D200008,Technical Services Depot,Payments to Contractors External
Ashfield District Council,37UB,J Tomlinson Ltd,V0969808,29/06/2021,65.26,R & B Transformation 2,Supplies & Services,G57002/D200008,Technical Services Depot,Payments to Contractors External
Ashfield District Council,37UB,J Tomlinson Ltd,V0969809,29/06/2021,65.26,R & B Transformation 2,Supplies & Services,G57002/D200008,Technical Services Depot,Payments to Contractors External
Ashfield District Council,37UB,J Tomlinson Ltd,V0969810,29/06/2021,65.26,R & B Transformation 2,Supplies & Services,G57002/D200008,Technical Services Depot,Payments to Contractors External
Ashfield District Council,37UB,J Tomlinson Ltd,V0969811,29/06/2021,65.26,R & B Transformation 2,Supplies & Services,G57002/D200008,Technical Services Depot,Payments to Contractors External
Ashfield District Council,37UB,J Tomlinson Ltd,V0969812,29/06/2021,65.26,R & B Transformation 2,Supplies & Services,G57002/D200008,Technical Services Depot,Payments to Contractors External
Ashfield District Council,37UB,J Tomlinson Ltd,V0969813,29/06/2021,65.26,R & B Transformation 2,Supplies & Services,G57002/D200008,Technical Services Depot,Payments to Contractors External
Ashfield District Council,37UB,J Tomlinson Ltd,V0969814,29/06/2021,65.26,R & B Transformation 2,Supplies & Services,G57002/D200008,Technical Services Depot,Payments to Contractors External
Ashfield District Council,37UB,J Tomlinson Ltd,V0969815,29/06/2021,65.26,R & B Transformation 2,Supplies & Services,G57002/D200008,Technical Services Depot,Payments to Contractors External
Ashfield District Council,37UB,J Tomlinson Ltd,V0969816,29/06/2021,65.26,R & B Transformation 2,Supplies & Services,G57002/D200008,Technical Services Depot,Payments to Contractors External
Ashfield District Council,37UB,J Tomlinson Ltd,V0969817,29/06/2021,65.26,R & B Transformation 2,Supplies & Services,G57002/D200008,Technical Services Depot,Payments to Contractors External
Ashfield District Council,37UB,J Tomlinson Ltd,V0969818,29/06/2021,65.26,R & B Transformation 2,Supplies & Services,G57002/D200008,Technical Services Depot,Payments to Contractors External
Ashfield District Council,37UB,J Tomlinson Ltd,V0969819,29/06/2021,65.26,R & B Transformation 2,Supplies & Services,G57002/D200008,Technical Services Depot,Payments to Contractors External
Ashfield District Council,37UB,J Tomlinson Ltd,V0969820,29/06/2021,65.26,R & B Transformation 2,Supplies & Services,G57002/D200008,Technical Services Depot,Payments to Contractors External
Ashfield District Council,37UB,J Tomlinson Ltd,V0969821,29/06/2021,65.26,R & B Transformation 2,Supplies & Services,G57002/D200008,Technical Services Depot,Payments to Contractors External
Ashfield District Council,37UB,J Tomlinson Ltd,V0969822,29/06/2021,65.26,R & B Transformation 2,Supplies & Services,G57002/D200008,Technical Services Depot,Payments to Contractors External
Ashfield District Council,37UB,J Tomlinson Ltd,V0969823,29/06/2021,65.26,R & B Transformation 2,Supplies & Services,G57002/D200008,Technical Services Depot,Payments to Contractors External
Ashfield District Council,37UB,J Tomlinson Ltd,V0969824,29/06/2021,65.26,R & B Transformation 2,Supplies & Services,G57002/D200008,Technical Services Depot,Payments to Contractors External
Ashfield District Council,37UB,J Tomlinson Ltd,V0969825,29/06/2021,65.26,R & B Transformation 2,Supplies & Services,G57002/D200008,Technical Services Depot,Payments to Contractors External
Ashfield District Council,37UB,J Tomlinson Ltd,V0969826,29/06/2021,65.26,R & B Transformation 2,Supplies & Services,G57002/D200008,Technical Services Depot,Payments to Contractors External
Ashfield District Council,37UB,J Tomlinson Ltd,V0969827,29/06/2021,65.26,R & B Transformation 2,Supplies & Services,G57002/D200008,Technical Services Depot,Payments to Contractors External
Ashfield District Council,37UB,J Tomlinson Ltd,V0969828,29/06/2021,60.82,R & B Transformation 2,Supplies & Services,G57002/D200008,Technical Services Depot,Payments to Contractors External
Ashfield District Council,37UB,J Tomlinson Ltd,V0969829,29/06/2021,65.26,R & B Transformation 2,Supplies & Services,G57002/D200008,Technical Services Depot,Payments to Contractors External
Ashfield District Council,37UB,J Tomlinson Ltd,V0969830,29/06/2021,65.26,R & B Transformation 2,Supplies & Services,G57002/D200008,Technical Services Depot,Payments to Contractors External
Ashfield District Council,37UB,J Tomlinson Ltd,V0969831,29/06/2021,60.82,R & B Transformation 2,Supplies & Services,G57002/D200008,Technical Services Depot,Payments to Contractors External
Ashfield District Council,37UB,J Tomlinson Ltd,V0969832,29/06/2021,65.26,R & B Transformation 2,Supplies & Services,G57002/D200008,Technical Services Depot,Payments to Contractors External
Ashfield District Council,37UB,J Tomlinson Ltd,V0969833,29/06/2021,65.26,R & B Transformation 2,Supplies & Services,G57002/D200008,Technical Services Depot,Payments to Contractors External
Ashfield District Council,37UB,J Tomlinson Ltd,V0969834,29/06/2021,65.26,R & B Transformation 2,Supplies & Services,G57002/D200008,Technical Services Depot,Payments to Contractors External
Ashfield District Council,37UB,J Tomlinson Ltd,V0969835,29/06/2021,60.82,R & B Transformation 2,Supplies & Services,G57002/D200008,Technical Services Depot,Payments to Contractors External
Ashfield District Council,37UB,J Tomlinson Ltd,V0969836,29/06/2021,65.26,R & B Transformation 2,Supplies & Services,G57002/D200008,Technical Services Depot,Payments to Contractors External
Ashfield District Council,37UB,J Tomlinson Ltd,V0969837,29/06/2021,65.26,R & B Transformation 2,Supplies & Services,G57002/D200008,Technical Services Depot,Payments to Contractors External
Ashfield District Council,37UB,J Tomlinson Ltd,V0969838,29/06/2021,65.26,R & B Transformation 2,Supplies & Services,G57002/D200008,Technical Services Depot,Payments to Contractors External
Ashfield District Council,37UB,J Tomlinson Ltd,V0969839,29/06/2021,65.26,R & B Transformation 2,Supplies & Services,G57002/D200008,Technical Services Depot,Payments to Contractors External
Ashfield District Council,37UB,J Tomlinson Ltd,V0969840,29/06/2021,65.26,R & B Transformation 2,Supplies & Services,G57002/D200008,Technical Services Depot,Payments to Contractors External
Ashfield District Council,37UB,J Tomlinson Ltd,V0969841,29/06/2021,65.26,R & B Transformation 2,Supplies & Services,G57002/D200008,Technical Services Depot,Payments to Contractors External
Ashfield District Council,37UB,J Tomlinson Ltd,V0969842,29/06/2021,65.26,R & B Transformation 2,Supplies & Services,G57002/D200008,Technical Services Depot,Payments to Contractors External
Ashfield District Council,37UB,J Tomlinson Ltd,V0969843,29/06/2021,65.26,R & B Transformation 2,Supplies & Services,G57002/D200008,Technical Services Depot,Payments to Contractors External
Ashfield District Council,37UB,J Tomlinson Ltd,V0969844,29/06/2021,65.26,R & B Transformation 2,Supplies & Services,G57002/D200008,Technical Services Depot,Payments to Contractors External
Ashfield District Council,37UB,J Tomlinson Ltd,V0969845,29/06/2021,65.26,R & B Transformation 2,Supplies & Services,G57002/D200008,Technical Services Depot,Payments to Contractors External
Ashfield District Council,37UB,J Tomlinson Ltd,V0969846,29/06/2021,65.26,R & B Transformation 2,Supplies & Services,G57002/D200008,Technical Services Depot,Payments to Contractors External
Ashfield District Council,37UB,J Tomlinson Ltd,V0969847,29/06/2021,65.26,R & B Transformation 2,Supplies & Services,G57002/D200008,Technical Services Depot,Payments to Contractors External
Ashfield District Council,37UB,J Tomlinson Ltd,V0969848,29/06/2021,65.26,R & B Transformation 2,Supplies & Services,G57002/D200008,Technical Services Depot,Payments to Contractors External
Ashfield District Council,37UB,J Tomlinson Ltd,V0969849,29/06/2021,65.26,R & B Transformation 2,Supplies & Services,G57002/D200008,Technical Services Depot,Payments to Contractors External
Ashfield District Council,37UB,J Tomlinson Ltd,V0969850,29/06/2021,65.26,R & B Transformation 2,Supplies & Services,G57002/D200008,Technical Services Depot,Payments to Contractors External
Ashfield District Council,37UB,J Tomlinson Ltd,V0969851,29/06/2021,65.26,R & B Transformation 2,Supplies & Services,G57002/D200008,Technical Services Depot,Payments to Contractors External
Ashfield District Council,37UB,J Tomlinson Ltd,V0969852,29/06/2021,65.26,R & B Transformation 2,Supplies & Services,G57002/D200008,Technical Services Depot,Payments to Contractors External
Ashfield District Council,37UB,J Tomlinson Ltd,V0969853,29/06/2021,65.26,R & B Transformation 2,Supplies & Services,G57002/D200008,Technical Services Depot,Payments to Contractors External
Ashfield District Council,37UB,J Tomlinson Ltd,V0969854,29/06/2021,65.26,R & B Transformation 2,Supplies & Services,G57002/D200008,Technical Services Depot,Payments to Contractors External
Ashfield District Council,37UB,J Tomlinson Ltd,V0969855,29/06/2021,65.26,R & B Transformation 2,Supplies & Services,G57002/D200008,Technical Services Depot,Payments to Contractors External
Ashfield District Council,37UB,J Tomlinson Ltd,V0969856,29/06/2021,65.26,R & B Transformation 2,Supplies & Services,G57002/D200008,Technical Services Depot,Payments to Contractors External
Ashfield District Council,37UB,J Tomlinson Ltd,V0969857,29/06/2021,65.26,R & B Transformation 2,Supplies & Services,G57002/D200008,Technical Services Depot,Payments to Contractors External
Ashfield District Council,37UB,J Tomlinson Ltd,V0969858,29/06/2021,65.26,R & B Transformation 2,Supplies & Services,G57002/D200008,Technical Services Depot,Payments to Contractors External
Ashfield District Council,37UB,J Tomlinson Ltd,V0969859,29/06/2021,65.26,R & B Transformation 2,Supplies & Services,G57002/D200008,Technical Services Depot,Payments to Contractors External
Ashfield District Council,37UB,J Tomlinson Ltd,V0969860,29/06/2021,65.26,R & B Transformation 2,Supplies & Services,G57002/D200008,Technical Services Depot,Payments to Contractors External
Ashfield District Council,37UB,J Tomlinson Ltd,V0969861,29/06/2021,65.26,R & B Transformation 2,Supplies & Services,G57002/D200008,Technical Services Depot,Payments to Contractors External
Ashfield District Council,37UB,J Tomlinson Ltd,V0969862,29/06/2021,65.26,R & B Transformation 2,Supplies & Services,G57002/D200008,Technical Services Depot,Payments to Contractors External
Ashfield District Council,37UB,J Tomlinson Ltd,V0969863,29/06/2021,65.26,R & B Transformation 2,Supplies & Services,G57002/D200008,Technical Services Depot,Payments to Contractors External
Ashfield District Council,37UB,J Tomlinson Ltd,V0969864,29/06/2021,65.26,R & B Transformation 2,Supplies & Services,G57002/D200008,Technical Services Depot,Payments to Contractors External
Ashfield District Council,37UB,J Tomlinson Ltd,V0969865,29/06/2021,65.26,R & B Transformation 2,Supplies & Services,G57002/D200008,Technical Services Depot,Payments to Contractors External
Ashfield District Council,37UB,J Tomlinson Ltd,V0969866,29/06/2021,65.26,R & B Transformation 2,Supplies & Services,G57002/D200008,Technical Services Depot,Payments to Contractors External
Ashfield District Council,37UB,J Tomlinson Ltd,V0969867,29/06/2021,65.26,R & B Transformation 2,Supplies & Services,G57002/D200008,Technical Services Depot,Payments to Contractors External
Ashfield District Council,37UB,J Tomlinson Ltd,V0969868,29/06/2021,65.26,R & B Transformation 2,Supplies & Services,G57002/D200008,Technical Services Depot,Payments to Contractors External
Ashfield District Council,37UB,J Tomlinson Ltd,V0969869,29/06/2021,65.26,R & B Transformation 2,Supplies & Services,G57002/D200008,Technical Services Depot,Payments to Contractors External
Ashfield District Council,37UB,J Tomlinson Ltd,V0969870,29/06/2021,65.26,R & B Transformation 2,Supplies & Services,G57002/D200008,Technical Services Depot,Payments to Contractors External
Ashfield District Council,37UB,J Tomlinson Ltd,V0969871,29/06/2021,65.26,R & B Transformation 2,Supplies & Services,G57002/D200008,Technical Services Depot,Payments to Contractors External
Ashfield District Council,37UB,J Tomlinson Ltd,V0969872,29/06/2021,65.26,R & B Transformation 2,Supplies & Services,G57002/D200008,Technical Services Depot,Payments to Contractors External
Ashfield District Council,37UB,J Tomlinson Ltd,V0969873,29/06/2021,65.26,R & B Transformation 2,Supplies & Services,G57002/D200008,Technical Services Depot,Payments to Contractors External
Ashfield District Council,37UB,J Tomlinson Ltd,V0969874,29/06/2021,65.26,R & B Transformation 2,Supplies & Services,G57002/D200008,Technical Services Depot,Payments to Contractors External
Ashfield District Council,37UB,J Tomlinson Ltd,V0969875,29/06/2021,65.26,R & B Transformation 2,Supplies & Services,G57002/D200008,Technical Services Depot,Payments to Contractors External
Ashfield District Council,37UB,J Tomlinson Ltd,V0969876,29/06/2021,65.26,R & B Transformation 2,Supplies & Services,G57002/D200008,Technical Services Depot,Payments to Contractors External
Ashfield District Council,37UB,J Tomlinson Ltd,V0969877,29/06/2021,65.26,R & B Transformation 2,Supplies & Services,G57002/D200008,Technical Services Depot,Payments to Contractors External
Ashfield District Council,37UB,J Tomlinson Ltd,V0969878,29/06/2021,65.26,R & B Transformation 2,Supplies & Services,G57002/D200008,Technical Services Depot,Payments to Contractors External
Ashfield District Council,37UB,J Tomlinson Ltd,V0969879,29/06/2021,65.26,R & B Transformation 2,Supplies & Services,G57002/D200008,Technical Services Depot,Payments to Contractors External
Ashfield District Council,37UB,J Tomlinson Ltd,V0969880,29/06/2021,65.26,R & B Transformation 2,Supplies & Services,G57002/D200008,Technical Services Depot,Payments to Contractors External
Ashfield District Council,37UB,J Tomlinson Ltd,V0969881,29/06/2021,65.26,R & B Transformation 2,Supplies & Services,G57002/D200008,Technical Services Depot,Payments to Contractors External
Ashfield District Council,37UB,J Tomlinson Ltd,V0969882,29/06/2021,65.26,R & B Transformation 2,Supplies & Services,G57002/D200008,Technical Services Depot,Payments to Contractors External
Ashfield District Council,37UB,J Tomlinson Ltd,V0969883,29/06/2021,65.26,R & B Transformation 2,Supplies & Services,G57002/D200008,Technical Services Depot,Payments to Contractors External
Ashfield District Council,37UB,J Tomlinson Ltd,V0969884,29/06/2021,65.26,R & B Transformation 2,Supplies & Services,G57002/D200008,Technical Services Depot,Payments to Contractors External
Ashfield District Council,37UB,J Tomlinson Ltd,V0969885,29/06/2021,65.26,R & B Transformation 2,Supplies & Services,G57002/D200008,Technical Services Depot,Payments to Contractors External
Ashfield District Council,37UB,J Tomlinson Ltd,V0969886,29/06/2021,65.26,R & B Transformation 2,Supplies & Services,G57002/D200008,Technical Services Depot,Payments to Contractors External
Ashfield District Council,37UB,J Tomlinson Ltd,V0969887,29/06/2021,65.26,R & B Transformation 2,Supplies & Services,G57002/D200008,Technical Services Depot,Payments to Contractors External
Ashfield District Council,37UB,J Tomlinson Ltd,V0969888,29/06/2021,65.26,R & B Transformation 2,Supplies & Services,G57002/D200008,Technical Services Depot,Payments to Contractors External
Ashfield District Council,37UB,J Tomlinson Ltd,V0969889,29/06/2021,65.26,R & B Transformation 2,Supplies & Services,G57002/D200008,Technical Services Depot,Payments to Contractors External
Ashfield District Council,37UB,J Tomlinson Ltd,V0969890,29/06/2021,65.26,R & B Transformation 2,Supplies & Services,G57002/D200008,Technical Services Depot,Payments to Contractors External
Ashfield District Council,37UB,J Tomlinson Ltd,V0969891,29/06/2021,65.26,R & B Transformation 2,Supplies & Services,G57002/D200008,Technical Services Depot,Payments to Contractors External
Ashfield District Council,37UB,J Tomlinson Ltd,V0969892,29/06/2021,65.26,R & B Transformation 2,Supplies & Services,G57002/D200008,Technical Services Depot,Payments to Contractors External
Ashfield District Council,37UB,J Tomlinson Ltd,V0969893,29/06/2021,65.26,R & B Transformation 2,Supplies & Services,G57002/D200008,Technical Services Depot,Payments to Contractors External
Ashfield District Council,37UB,J Tomlinson Ltd,V0969894,29/06/2021,65.26,R & B Transformation 2,Supplies & Services,G57002/D200008,Technical Services Depot,Payments to Contractors External
Ashfield District Council,37UB,J Tomlinson Ltd,V0969895,29/06/2021,65.26,R & B Transformation 2,Supplies & Services,G57002/D200008,Technical Services Depot,Payments to Contractors External
Ashfield District Council,37UB,J Tomlinson Ltd,V0969896,29/06/2021,65.26,R & B Transformation 2,Supplies & Services,G57002/D200008,Technical Services Depot,Payments to Contractors External
Ashfield District Council,37UB,J Tomlinson Ltd,V0969897,29/06/2021,65.26,R & B Transformation 2,Supplies & Services,G57002/D200008,Technical Services Depot,Payments to Contractors External
Ashfield District Council,37UB,J Tomlinson Ltd,V0969898,29/06/2021,65.26,R & B Transformation 2,Supplies & Services,G57002/D200008,Technical Services Depot,Payments to Contractors External
Ashfield District Council,37UB,J Tomlinson Ltd,V0969899,29/06/2021,65.26,R & B Transformation 2,Supplies & Services,G57002/D200008,Technical Services Depot,Payments to Contractors External
Ashfield District Council,37UB,J Tomlinson Ltd,V0969900,29/06/2021,65.26,R & B Transformation 2,Supplies & Services,G57002/D200008,Technical Services Depot,Payments to Contractors External
Ashfield District Council,37UB,J Tomlinson Ltd,V0969901,29/06/2021,65.26,R & B Transformation 2,Supplies & Services,G57002/D200008,Technical Services Depot,Payments to Contractors External
Ashfield District Council,37UB,J Tomlinson Ltd,V0969902,29/06/2021,65.26,R & B Transformation 2,Supplies & Services,G57002/D200008,Technical Services Depot,Payments to Contractors External
Ashfield District Council,37UB,J Tomlinson Ltd,V0969903,29/06/2021,65.26,R & B Transformation 2,Supplies & Services,G57002/D200008,Technical Services Depot,Payments to Contractors External
Ashfield District Council,37UB,J Tomlinson Ltd,V0969904,29/06/2021,65.26,R & B Transformation 2,Supplies & Services,G57002/D200008,Technical Services Depot,Payments to Contractors External
Ashfield District Council,37UB,J Tomlinson Ltd,V0969905,29/06/2021,65.26,R & B Transformation 2,Supplies & Services,G57002/D200008,Technical Services Depot,Payments to Contractors External
Ashfield District Council,37UB,J Tomlinson Ltd,V0969906,29/06/2021,65.26,R & B Transformation 2,Supplies & Services,G57002/D200008,Technical Services Depot,Payments to Contractors External
Ashfield District Council,37UB,J Tomlinson Ltd,V0969907,29/06/2021,65.26,R & B Transformation 2,Supplies & Services,G57002/D200008,Technical Services Depot,Payments to Contractors External
Ashfield District Council,37UB,J Tomlinson Ltd,V0969908,29/06/2021,65.26,R & B Transformation 2,Supplies & Services,G57002/D200008,Technical Services Depot,Payments to Contractors External
Ashfield District Council,37UB,J Tomlinson Ltd,V0969909,29/06/2021,65.26,R & B Transformation 2,Supplies & Services,G57002/D200008,Technical Services Depot,Payments to Contractors External
Ashfield District Council,37UB,J Tomlinson Ltd,V0969910,29/06/2021,65.26,R & B Transformation 2,Supplies & Services,G57002/D200008,Technical Services Depot,Payments to Contractors External
Ashfield District Council,37UB,J Tomlinson Ltd,V0969911,29/06/2021,65.26,R & B Transformation 2,Supplies & Services,G57002/D200008,Technical Services Depot,Payments to Contractors External
Ashfield District Council,37UB,J Tomlinson Ltd,V0969912,29/06/2021,65.26,R & B Transformation 2,Supplies & Services,G57002/D200008,Technical Services Depot,Payments to Contractors External
Ashfield District Council,37UB,J Tomlinson Ltd,V0969913,29/06/2021,65.26,R & B Transformation 2,Supplies & Services,G57002/D200008,Technical Services Depot,Payments to Contractors External
Ashfield District Council,37UB,J Tomlinson Ltd,V0969914,29/06/2021,65.26,R & B Transformation 2,Supplies & Services,G57002/D200008,Technical Services Depot,Payments to Contractors External
Ashfield District Council,37UB,J Tomlinson Ltd,V0969915,29/06/2021,65.26,R & B Transformation 2,Supplies & Services,G57002/D200008,Technical Services Depot,Payments to Contractors External
Ashfield District Council,37UB,J Tomlinson Ltd,V0969916,29/06/2021,65.26,R & B Transformation 2,Supplies & Services,G57002/D200008,Technical Services Depot,Payments to Contractors External
Ashfield District Council,37UB,J Tomlinson Ltd,V0969917,29/06/2021,65.26,R & B Transformation 2,Supplies & Services,G57002/D200008,Technical Services Depot,Payments to Contractors External
Ashfield District Council,37UB,J Tomlinson Ltd,V0969918,29/06/2021,65.26,R & B Transformation 2,Supplies & Services,G57002/D200008,Technical Services Depot,Payments to Contractors External
Ashfield District Council,37UB,J Tomlinson Ltd,V0969919,29/06/2021,65.26,R & B Transformation 2,Supplies & Services,G57002/D200008,Technical Services Depot,Payments to Contractors External
Ashfield District Council,37UB,J Tomlinson Ltd,V0969920,29/06/2021,65.26,R & B Transformation 2,Supplies & Services,G57002/D200008,Technical Services Depot,Payments to Contractors External
Ashfield District Council,37UB,J Tomlinson Ltd,V0969921,29/06/2021,65.26,R & B Transformation 2,Supplies & Services,G57002/D200008,Technical Services Depot,Payments to Contractors External
Ashfield District Council,37UB,J Tomlinson Ltd,V0969922,29/06/2021,65.26,R & B Transformation 2,Supplies & Services,G57002/D200008,Technical Services Depot,Payments to Contractors External
Ashfield District Council,37UB,J Tomlinson Ltd,V0969923,29/06/2021,65.26,R & B Transformation 2,Supplies & Services,G57002/D200008,Technical Services Depot,Payments to Contractors External
Ashfield District Council,37UB,J Tomlinson Ltd,V0969924,29/06/2021,65.26,R & B Transformation 2,Supplies & Services,G57002/D200008,Technical Services Depot,Payments to Contractors External
Ashfield District Council,37UB,J Tomlinson Ltd,V0969925,29/06/2021,65.26,R & B Transformation 2,Supplies & Services,G57002/D200008,Technical Services Depot,Payments to Contractors External
Ashfield District Council,37UB,J Tomlinson Ltd,V0969926,29/06/2021,65.26,R & B Transformation 2,Supplies & Services,G57002/D200008,Technical Services Depot,Payments to Contractors External
Ashfield District Council,37UB,J Tomlinson Ltd,V0969927,29/06/2021,65.26,R & B Transformation 2,Supplies & Services,G57002/D200008,Technical Services Depot,Payments to Contractors External
Ashfield District Council,37UB,J Tomlinson Ltd,V0969928,29/06/2021,65.26,R & B Transformation 2,Supplies & Services,G57002/D200008,Technical Services Depot,Payments to Contractors External
Ashfield District Council,37UB,J Tomlinson Ltd,V0969929,29/06/2021,65.26,R & B Transformation 2,Supplies & Services,G57002/D200008,Technical Services Depot,Payments to Contractors External
Ashfield District Council,37UB,J Tomlinson Ltd,V0969930,29/06/2021,65.26,R & B Transformation 2,Supplies & Services,G57002/D200008,Technical Services Depot,Payments to Contractors External
Ashfield District Council,37UB,J Tomlinson Ltd,V0969931,29/06/2021,65.26,R & B Transformation 2,Supplies & Services,G57002/D200008,Technical Services Depot,Payments to Contractors External
Ashfield District Council,37UB,J Tomlinson Ltd,V0969932,29/06/2021,65.26,R & B Transformation 2,Supplies & Services,G57002/D200008,Technical Services Depot,Payments to Contractors External
Ashfield District Council,37UB,J Tomlinson Ltd,V0969933,29/06/2021,65.26,R & B Transformation 2,Supplies & Services,G57002/D200008,Technical Services Depot,Payments to Contractors External
Ashfield District Council,37UB,J Tomlinson Ltd,V0969934,29/06/2021,65.26,R & B Transformation 2,Supplies & Services,G57002/D200008,Technical Services Depot,Payments to Contractors External
Ashfield District Council,37UB,J Tomlinson Ltd,V0969935,29/06/2021,65.26,R & B Transformation 2,Supplies & Services,G57002/D200008,Technical Services Depot,Payments to Contractors External
Ashfield District Council,37UB,J Tomlinson Ltd,V0969936,29/06/2021,65.26,R & B Transformation 2,Supplies & Services,G57002/D200008,Technical Services Depot,Payments to Contractors External
Ashfield District Council,37UB,J Tomlinson Ltd,V0969937,29/06/2021,65.26,R & B Transformation 2,Supplies & Services,G57002/D200008,Technical Services Depot,Payments to Contractors External
Ashfield District Council,37UB,J Tomlinson Ltd,V0969938,29/06/2021,65.26,R & B Transformation 2,Supplies & Services,G57002/D200008,Technical Services Depot,Payments to Contractors External
Ashfield District Council,37UB,J Tomlinson Ltd,V0969939,29/06/2021,65.26,R & B Transformation 2,Supplies & Services,G57002/D200008,Technical Services Depot,Payments to Contractors External
Ashfield District Council,37UB,J Tomlinson Ltd,V0969940,29/06/2021,60.82,R & B Transformation 2,Supplies & Services,G57002/D200008,Technical Services Depot,Payments to Contractors External
Ashfield District Council,37UB,J Tomlinson Ltd,V0969941,29/06/2021,60.82,R & B Transformation 2,Supplies & Services,G57002/D200008,Technical Services Depot,Payments to Contractors External
Ashfield District Council,37UB,J Tomlinson Ltd,V0969942,29/06/2021,65.26,R & B Transformation 2,Supplies & Services,G57002/D200008,Technical Services Depot,Payments to Contractors External
Ashfield District Council,37UB,J Tomlinson Ltd,V0969943,29/06/2021,65.26,R & B Transformation 2,Supplies & Services,G57002/D200008,Technical Services Depot,Payments to Contractors External
Ashfield District Council,37UB,J Tomlinson Ltd,V0969944,29/06/2021,65.26,R & B Transformation 2,Supplies & Services,G57002/D200008,Technical Services Depot,Payments to Contractors External
Ashfield District Council,37UB,J Tomlinson Ltd,V0969945,29/06/2021,65.26,R & B Transformation 2,Supplies & Services,G57002/D200008,Technical Services Depot,Payments to Contractors External
Ashfield District Council,37UB,J Tomlinson Ltd,V0969946,29/06/2021,65.26,R & B Transformation 2,Supplies & Services,G57002/D200008,Technical Services Depot,Payments to Contractors External
Ashfield District Council,37UB,J Tomlinson Ltd,V0969947,29/06/2021,65.26,R & B Transformation 2,Supplies & Services,G57002/D200008,Technical Services Depot,Payments to Contractors External
Ashfield District Council,37UB,J Tomlinson Ltd,V0969948,29/06/2021,65.26,R & B Transformation 2,Supplies & Services,G57002/D200008,Technical Services Depot,Payments to Contractors External
Ashfield District Council,37UB,J Tomlinson Ltd,V0969949,29/06/2021,65.26,R & B Transformation 2,Supplies & Services,G57002/D200008,Technical Services Depot,Payments to Contractors External
Ashfield District Council,37UB,J Tomlinson Ltd,V0969950,29/06/2021,65.26,R & B Transformation 2,Supplies & Services,G57002/D200008,Technical Services Depot,Payments to Contractors External
Ashfield District Council,37UB,J Tomlinson Ltd,V0969951,29/06/2021,65.26,R & B Transformation 2,Supplies & Services,G57002/D200008,Technical Services Depot,Payments to Contractors External
Ashfield District Council,37UB,J Tomlinson Ltd,V0969952,29/06/2021,65.26,R & B Transformation 2,Supplies & Services,G57002/D200008,Technical Services Depot,Payments to Contractors External
Ashfield District Council,37UB,J Tomlinson Ltd,V0969953,29/06/2021,65.26,R & B Transformation 2,Supplies & Services,G57002/D200008,Technical Services Depot,Payments to Contractors External
Ashfield District Council,37UB,J Tomlinson Ltd,V0969954,29/06/2021,60.82,R & B Transformation 2,Supplies & Services,G57002/D200008,Technical Services Depot,Payments to Contractors External
Ashfield District Council,37UB,J Tomlinson Ltd,V0969955,29/06/2021,65.26,R & B Transformation 2,Supplies & Services,G57002/D200008,Technical Services Depot,Payments to Contractors External
Ashfield District Council,37UB,J Tomlinson Ltd,V0969956,29/06/2021,65.26,R & B Transformation 2,Supplies & Services,G57002/D200008,Technical Services Depot,Payments to Contractors External
Ashfield District Council,37UB,J Tomlinson Ltd,V0969957,29/06/2021,65.26,R & B Transformation 2,Supplies & Services,G57002/D200008,Technical Services Depot,Payments to Contractors External
Ashfield District Council,37UB,J Tomlinson Ltd,V0969958,29/06/2021,65.26,R & B Transformation 2,Supplies & Services,G57002/D200008,Technical Services Depot,Payments to Contractors External
Ashfield District Council,37UB,J Tomlinson Ltd,V0969959,29/06/2021,65.26,R & B Transformation 2,Supplies & Services,G57002/D200008,Technical Services Depot,Payments to Contractors External
Ashfield District Council,37UB,J Tomlinson Ltd,V0969960,29/06/2021,65.26,R & B Transformation 2,Supplies & Services,G57002/D200008,Technical Services Depot,Payments to Contractors External
Ashfield District Council,37UB,J Tomlinson Ltd,V0969961,29/06/2021,65.26,R & B Transformation 2,Supplies & Services,G57002/D200008,Technical Services Depot,Payments to Contractors External
Ashfield District Council,37UB,J Tomlinson Ltd,V0969962,29/06/2021,65.26,R & B Transformation 2,Supplies & Services,G57002/D200008,Technical Services Depot,Payments to Contractors External
Ashfield District Council,37UB,J Tomlinson Ltd,V0969963,29/06/2021,65.26,R & B Transformation 2,Supplies & Services,G57002/D200008,Technical Services Depot,Payments to Contractors External
Ashfield District Council,37UB,J Tomlinson Ltd,V0969964,29/06/2021,65.26,R & B Transformation 2,Supplies & Services,G57002/D200008,Technical Services Depot,Payments to Contractors External
Ashfield District Council,37UB,J Tomlinson Ltd,V0969965,29/06/2021,65.26,R & B Transformation 2,Supplies & Services,G57002/D200008,Technical Services Depot,Payments to Contractors External
Ashfield District Council,37UB,J Tomlinson Ltd,V0969966,29/06/2021,65.26,R & B Transformation 2,Supplies & Services,G57002/D200008,Technical Services Depot,Payments to Contractors External
Ashfield District Council,37UB,J Tomlinson Ltd,V0969967,29/06/2021,65.26,R & B Transformation 2,Supplies & Services,G57002/D200008,Technical Services Depot,Payments to Contractors External
Ashfield District Council,37UB,J Tomlinson Ltd,V0969968,29/06/2021,65.26,R & B Transformation 2,Supplies & Services,G57002/D200008,Technical Services Depot,Payments to Contractors External
Ashfield District Council,37UB,J Tomlinson Ltd,V0969969,29/06/2021,65.26,R & B Transformation 2,Supplies & Services,G57002/D200008,Technical Services Depot,Payments to Contractors External
Ashfield District Council,37UB,J Tomlinson Ltd,V0969970,29/06/2021,65.26,R & B Transformation 2,Supplies & Services,G57002/D200008,Technical Services Depot,Payments to Contractors External
Ashfield District Council,37UB,J Tomlinson Ltd,V0969971,29/06/2021,65.26,R & B Transformation 2,Supplies & Services,G57002/D200008,Technical Services Depot,Payments to Contractors External
Ashfield District Council,37UB,J Tomlinson Ltd,V0969972,29/06/2021,65.26,R & B Transformation 2,Supplies & Services,G57002/D200008,Technical Services Depot,Payments to Contractors External
Ashfield District Council,37UB,J Tomlinson Ltd,V0969973,29/06/2021,65.26,R & B Transformation 2,Supplies & Services,G57002/D200008,Technical Services Depot,Payments to Contractors External
Ashfield District Council,37UB,J Tomlinson Ltd,V0969974,29/06/2021,65.26,R & B Transformation 2,Supplies & Services,G57002/D200008,Technical Services Depot,Payments to Contractors External
Ashfield District Council,37UB,J Tomlinson Ltd,V0969975,29/06/2021,65.26,R & B Transformation 2,Supplies & Services,G57002/D200008,Technical Services Depot,Payments to Contractors External
Ashfield District Council,37UB,J Tomlinson Ltd,V0969976,29/06/2021,65.26,R & B Transformation 2,Supplies & Services,G57002/D200008,Technical Services Depot,Payments to Contractors External
Ashfield District Council,37UB,J Tomlinson Ltd,V0969977,29/06/2021,65.26,R & B Transformation 2,Supplies & Services,G57002/D200008,Technical Services Depot,Payments to Contractors External
Ashfield District Council,37UB,J Tomlinson Ltd,V0969978,29/06/2021,65.26,R & B Transformation 2,Supplies & Services,G57002/D200008,Technical Services Depot,Payments to Contractors External
Ashfield District Council,37UB,J Tomlinson Ltd,V0969979,29/06/2021,65.26,R & B Transformation 2,Supplies & Services,G57002/D200008,Technical Services Depot,Payments to Contractors External
Ashfield District Council,37UB,J Tomlinson Ltd,V0969980,29/06/2021,65.26,R & B Transformation 2,Supplies & Services,G57002/D200008,Technical Services Depot,Payments to Contractors External
Ashfield District Council,37UB,J Tomlinson Ltd,V0969981,29/06/2021,65.26,R & B Transformation 2,Supplies & Services,G57002/D200008,Technical Services Depot,Payments to Contractors External
Ashfield District Council,37UB,J Tomlinson Ltd,V0969982,29/06/2021,65.26,R & B Transformation 2,Supplies & Services,G57002/D200008,Technical Services Depot,Payments to Contractors External
Ashfield District Council,37UB,J Tomlinson Ltd,V0969983,29/06/2021,65.26,R & B Transformation 2,Supplies & Services,G57002/D200008,Technical Services Depot,Payments to Contractors External
Ashfield District Council,37UB,J Tomlinson Ltd,V0969984,29/06/2021,60.82,R & B Transformation 2,Supplies & Services,G57002/D200008,Technical Services Depot,Payments to Contractors External
Ashfield District Council,37UB,J Tomlinson Ltd,V0969985,29/06/2021,65.26,R & B Transformation 2,Supplies & Services,G57002/D200008,Technical Services Depot,Payments to Contractors External
Ashfield District Council,37UB,J Tomlinson Ltd,V0969986,29/06/2021,65.26,R & B Transformation 2,Supplies & Services,G57002/D200008,Technical Services Depot,Payments to Contractors External
Ashfield District Council,37UB,J Tomlinson Ltd,V0969987,29/06/2021,65.26,R & B Transformation 2,Supplies & Services,G57002/D200008,Technical Services Depot,Payments to Contractors External
Ashfield District Council,37UB,J Tomlinson Ltd,V0969988,29/06/2021,65.26,R & B Transformation 2,Supplies & Services,G57002/D200008,Technical Services Depot,Payments to Contractors External
Ashfield District Council,37UB,J Tomlinson Ltd,V0969989,29/06/2021,65.26,R & B Transformation 2,Supplies & Services,G57002/D200008,Technical Services Depot,Payments to Contractors External
Ashfield District Council,37UB,J Tomlinson Ltd,V0969990,29/06/2021,65.26,R & B Transformation 2,Supplies & Services,G57002/D200008,Technical Services Depot,Payments to Contractors External
Ashfield District Council,37UB,J Tomlinson Ltd,V0969991,29/06/2021,65.26,R & B Transformation 2,Supplies & Services,G57002/D200008,Technical Services Depot,Payments to Contractors External
Ashfield District Council,37UB,J Tomlinson Ltd,V0970184,29/06/2021,65.26,R & B Transformation 2,Supplies & Services,G57002/D200008,Technical Services Depot,Payments to Contractors External
Ashfield District Council,37UB,J Tomlinson Ltd,V0970185,29/06/2021,65.26,R & B Transformation 2,Supplies & Services,G57002/D200008,Technical Services Depot,Payments to Contractors External
Ashfield District Council,37UB,J Tomlinson Ltd,V0970186,29/06/2021,65.26,R & B Transformation 2,Supplies & Services,G57002/D200008,Technical Services Depot,Payments to Contractors External
Ashfield District Council,37UB,J Tomlinson Ltd,V0970187,29/06/2021,65.26,R & B Transformation 2,Supplies & Services,G57002/D200008,Technical Services Depot,Payments to Contractors External
Ashfield District Council,37UB,J Tomlinson Ltd,V0970188,29/06/2021,65.26,R & B Transformation 2,Supplies & Services,G57002/D200008,Technical Services Depot,Payments to Contractors External
Ashfield District Council,37UB,J Tomlinson Ltd,V0970189,29/06/2021,65.26,R & B Transformation 2,Supplies & Services,G57002/D200008,Technical Services Depot,Payments to Contractors External
Ashfield District Council,37UB,J Tomlinson Ltd,V0970190,29/06/2021,65.26,R & B Transformation 2,Supplies & Services,G57002/D200008,Technical Services Depot,Payments to Contractors External
Ashfield District Council,37UB,J Tomlinson Ltd,V0970191,29/06/2021,65.26,R & B Transformation 2,Supplies & Services,G57002/D200008,Technical Services Depot,Payments to Contractors External
Ashfield District Council,37UB,J Tomlinson Ltd,V0970192,29/06/2021,65.26,R & B Transformation 2,Supplies & Services,G57002/D200008,Technical Services Depot,Payments to Contractors External
Ashfield District Council,37UB,J Tomlinson Ltd,V0970193,29/06/2021,65.26,R & B Transformation 2,Supplies & Services,G57002/D200008,Technical Services Depot,Payments to Contractors External
Ashfield District Council,37UB,J Tomlinson Ltd,V0970194,29/06/2021,65.26,R & B Transformation 2,Supplies & Services,G57002/D200008,Technical Services Depot,Payments to Contractors External
Ashfield District Council,37UB,J Tomlinson Ltd,V0970195,29/06/2021,65.26,R & B Transformation 2,Supplies & Services,G57002/D200008,Technical Services Depot,Payments to Contractors External
Ashfield District Council,37UB,J Tomlinson Ltd,V0970196,29/06/2021,65.26,R & B Transformation 2,Supplies & Services,G57002/D200008,Technical Services Depot,Payments to Contractors External
Ashfield District Council,37UB,J Tomlinson Ltd,V0970197,29/06/2021,65.26,R & B Transformation 2,Supplies & Services,G57002/D200008,Technical Services Depot,Payments to Contractors External
Ashfield District Council,37UB,J Tomlinson Ltd,V0970198,29/06/2021,65.26,R & B Transformation 2,Supplies & Services,G57002/D200008,Technical Services Depot,Payments to Contractors External
Ashfield District Council,37UB,J Tomlinson Ltd,V0970199,29/06/2021,65.26,R & B Transformation 2,Supplies & Services,G57002/D200008,Technical Services Depot,Payments to Contractors External
Ashfield District Council,37UB,J Tomlinson Ltd,V0970200,29/06/2021,65.26,R & B Transformation 2,Supplies & Services,G57002/D200008,Technical Services Depot,Payments to Contractors External
Ashfield District Council,37UB,J Tomlinson Ltd,V0970201,29/06/2021,65.26,R & B Transformation 2,Supplies & Services,G57002/D200008,Technical Services Depot,Payments to Contractors External
Ashfield District Council,37UB,J Tomlinson Ltd,V0970202,29/06/2021,65.26,R & B Transformation 2,Supplies & Services,G57002/D200008,Technical Services Depot,Payments to Contractors External
Ashfield District Council,37UB,J Tomlinson Ltd,V0970203,29/06/2021,65.26,R & B Transformation 2,Supplies & Services,G57002/D200008,Technical Services Depot,Payments to Contractors External
Ashfield District Council,37UB,J Tomlinson Ltd,V0970204,29/06/2021,65.26,R & B Transformation 2,Supplies & Services,G57002/D200008,Technical Services Depot,Payments to Contractors External
Ashfield District Council,37UB,J Tomlinson Ltd,V0970205,29/06/2021,65.26,R & B Transformation 2,Supplies & Services,G57002/D200008,Technical Services Depot,Payments to Contractors External
Ashfield District Council,37UB,J Tomlinson Ltd,V0970206,29/06/2021,65.26,R & B Transformation 2,Supplies & Services,G57002/D200008,Technical Services Depot,Payments to Contractors External
Ashfield District Council,37UB,J Tomlinson Ltd,V0970207,29/06/2021,65.26,R & B Transformation 2,Supplies & Services,G57002/D200008,Technical Services Depot,Payments to Contractors External
Ashfield District Council,37UB,J Tomlinson Ltd,V0970208,29/06/2021,65.26,R & B Transformation 2,Supplies & Services,G57002/D200008,Technical Services Depot,Payments to Contractors External
Ashfield District Council,37UB,J Tomlinson Ltd,V0970209,29/06/2021,65.26,R & B Transformation 2,Supplies & Services,G57002/D200008,Technical Services Depot,Payments to Contractors External
Ashfield District Council,37UB,J Tomlinson Ltd,V0970210,29/06/2021,65.26,R & B Transformation 2,Supplies & Services,G57002/D200008,Technical Services Depot,Payments to Contractors External
Ashfield District Council,37UB,J Tomlinson Ltd,V0970211,29/06/2021,65.26,R & B Transformation 2,Supplies & Services,G57002/D200008,Technical Services Depot,Payments to Contractors External
Ashfield District Council,37UB,J Tomlinson Ltd,V0970212,29/06/2021,65.26,R & B Transformation 2,Supplies & Services,G57002/D200008,Technical Services Depot,Payments to Contractors External
Ashfield District Council,37UB,J Tomlinson Ltd,V0970213,29/06/2021,65.26,R & B Transformation 2,Supplies & Services,G57002/D200008,Technical Services Depot,Payments to Contractors External
Ashfield District Council,37UB,J Tomlinson Ltd,V0970214,29/06/2021,65.26,R & B Transformation 2,Supplies & Services,G57002/D200008,Technical Services Depot,Payments to Contractors External
Ashfield District Council,37UB,J Tomlinson Ltd,V0970215,29/06/2021,65.26,R & B Transformation 2,Supplies & Services,G57002/D200008,Technical Services Depot,Payments to Contractors External
Ashfield District Council,37UB,J Tomlinson Ltd,V0970216,29/06/2021,65.26,R & B Transformation 2,Supplies & Services,G57002/D200008,Technical Services Depot,Payments to Contractors External
Ashfield District Council,37UB,J Tomlinson Ltd,V0970217,29/06/2021,65.26,R & B Transformation 2,Supplies & Services,G57002/D200008,Technical Services Depot,Payments to Contractors External
Ashfield District Council,37UB,J Tomlinson Ltd,V0970218,29/06/2021,65.26,R & B Transformation 2,Supplies & Services,G57002/D200008,Technical Services Depot,Payments to Contractors External
Ashfield District Council,37UB,J Tomlinson Ltd,V0970219,29/06/2021,65.26,R & B Transformation 2,Supplies & Services,G57002/D200008,Technical Services Depot,Payments to Contractors External
Ashfield District Council,37UB,J Tomlinson Ltd,V0970220,29/06/2021,65.26,R & B Transformation 2,Supplies & Services,G57002/D200008,Technical Services Depot,Payments to Contractors External
Ashfield District Council,37UB,J Tomlinson Ltd,V0970221,29/06/2021,65.26,R & B Transformation 2,Supplies & Services,G57002/D200008,Technical Services Depot,Payments to Contractors External
Ashfield District Council,37UB,J Tomlinson Ltd,V0970222,29/06/2021,65.26,R & B Transformation 2,Supplies & Services,G57002/D200008,Technical Services Depot,Payments to Contractors External
Ashfield District Council,37UB,J Tomlinson Ltd,V0970223,29/06/2021,65.26,R & B Transformation 2,Supplies & Services,G57002/D200008,Technical Services Depot,Payments to Contractors External
Ashfield District Council,37UB,J Tomlinson Ltd,V0970224,29/06/2021,65.26,R & B Transformation 2,Supplies & Services,G57002/D200008,Technical Services Depot,Payments to Contractors External
Ashfield District Council,37UB,J Tomlinson Ltd,V0970225,29/06/2021,65.26,R & B Transformation 2,Supplies & Services,G57002/D200008,Technical Services Depot,Payments to Contractors External
Ashfield District Council,37UB,J Tomlinson Ltd,V0970226,29/06/2021,65.26,R & B Transformation 2,Supplies & Services,G57002/D200008,Technical Services Depot,Payments to Contractors External
Ashfield District Council,37UB,J Tomlinson Ltd,V0970227,29/06/2021,65.26,R & B Transformation 2,Supplies & Services,G57002/D200008,Technical Services Depot,Payments to Contractors External
Ashfield District Council,37UB,J Tomlinson Ltd,V0970228,29/06/2021,65.26,R & B Transformation 2,Supplies & Services,G57002/D200008,Technical Services Depot,Payments to Contractors External
Ashfield District Council,37UB,J Tomlinson Ltd,V0970229,29/06/2021,65.26,R & B Transformation 2,Supplies & Services,G57002/D200008,Technical Services Depot,Payments to Contractors External
Ashfield District Council,37UB,J Tomlinson Ltd,V0970230,29/06/2021,65.26,R & B Transformation 2,Supplies & Services,G57002/D200008,Technical Services Depot,Payments to Contractors External
Ashfield District Council,37UB,J Tomlinson Ltd,V0970231,29/06/2021,60.82,R & B Transformation 2,Supplies & Services,G57002/D200008,Technical Services Depot,Payments to Contractors External
Ashfield District Council,37UB,J Tomlinson Ltd,V0970232,29/06/2021,65.26,R & B Transformation 2,Supplies & Services,G57002/D200008,Technical Services Depot,Payments to Contractors External
Ashfield District Council,37UB,J Tomlinson Ltd,V0970233,29/06/2021,65.26,R & B Transformation 2,Supplies & Services,G57002/D200008,Technical Services Depot,Payments to Contractors External
Ashfield District Council,37UB,J Tomlinson Ltd,V0970234,29/06/2021,65.26,R & B Transformation 2,Supplies & Services,G57002/D200008,Technical Services Depot,Payments to Contractors External
Ashfield District Council,37UB,J Tomlinson Ltd,V0970235,29/06/2021,65.26,R & B Transformation 2,Supplies & Services,G57002/D200008,Technical Services Depot,Payments to Contractors External
Ashfield District Council,37UB,J Tomlinson Ltd,V0970236,29/06/2021,65.26,R & B Transformation 2,Supplies & Services,G57002/D200008,Technical Services Depot,Payments to Contractors External
Ashfield District Council,37UB,J Tomlinson Ltd,V0970237,29/06/2021,65.26,R & B Transformation 2,Supplies & Services,G57002/D200008,Technical Services Depot,Payments to Contractors External
Ashfield District Council,37UB,J Tomlinson Ltd,V0970238,29/06/2021,65.26,R & B Transformation 2,Supplies & Services,G57002/D200008,Technical Services Depot,Payments to Contractors External
Ashfield District Council,37UB,J Tomlinson Ltd,V0970239,29/06/2021,65.26,R & B Transformation 2,Supplies & Services,G57002/D200008,Technical Services Depot,Payments to Contractors External
Ashfield District Council,37UB,J Tomlinson Ltd,V0970240,29/06/2021,65.26,R & B Transformation 2,Supplies & Services,G57002/D200008,Technical Services Depot,Payments to Contractors External
Ashfield District Council,37UB,J Tomlinson Ltd,V0970241,29/06/2021,65.26,R & B Transformation 2,Supplies & Services,G57002/D200008,Technical Services Depot,Payments to Contractors External
Ashfield District Council,37UB,J Tomlinson Ltd,V0970242,29/06/2021,65.26,R & B Transformation 2,Supplies & Services,G57002/D200008,Technical Services Depot,Payments to Contractors External
Ashfield District Council,37UB,J Tomlinson Ltd,V0970243,29/06/2021,65.26,R & B Transformation 2,Supplies & Services,G57002/D200008,Technical Services Depot,Payments to Contractors External
Ashfield District Council,37UB,J Tomlinson Ltd,V0970244,29/06/2021,65.26,R & B Transformation 2,Supplies & Services,G57002/D200008,Technical Services Depot,Payments to Contractors External
Ashfield District Council,37UB,J Tomlinson Ltd,V0970245,29/06/2021,65.26,R & B Transformation 2,Supplies & Services,G57002/D200008,Technical Services Depot,Payments to Contractors External
Ashfield District Council,37UB,J Tomlinson Ltd,V0970246,29/06/2021,65.26,R & B Transformation 2,Supplies & Services,G57002/D200008,Technical Services Depot,Payments to Contractors External
Ashfield District Council,37UB,J Tomlinson Ltd,V0970247,29/06/2021,60.82,R & B Transformation 2,Supplies & Services,G57002/D200008,Technical Services Depot,Payments to Contractors External
Ashfield District Council,37UB,J Tomlinson Ltd,V0970248,29/06/2021,60.82,R & B Transformation 2,Supplies & Services,G57002/D200008,Technical Services Depot,Payments to Contractors External
Ashfield District Council,37UB,J Tomlinson Ltd,V0970249,29/06/2021,60.82,R & B Transformation 2,Supplies & Services,G57002/D200008,Technical Services Depot,Payments to Contractors External
Ashfield District Council,37UB,J Tomlinson Ltd,V0970250,29/06/2021,60.82,R & B Transformation 2,Supplies & Services,G57002/D200008,Technical Services Depot,Payments to Contractors External
Ashfield District Council,37UB,J Tomlinson Ltd,V0970251,29/06/2021,60.82,R & B Transformation 2,Supplies & Services,G57002/D200008,Technical Services Depot,Payments to Contractors External
Ashfield District Council,37UB,J Tomlinson Ltd,V0970252,29/06/2021,60.82,R & B Transformation 2,Supplies & Services,G57002/D200008,Technical Services Depot,Payments to Contractors External
Ashfield District Council,37UB,J Tomlinson Ltd,V0970253,29/06/2021,65.26,R & B Transformation 2,Supplies & Services,G57002/D200008,Technical Services Depot,Payments to Contractors External
Ashfield District Council,37UB,J Tomlinson Ltd,V0970254,29/06/2021,65.26,R & B Transformation 2,Supplies & Services,G57002/D200008,Technical Services Depot,Payments to Contractors External
Ashfield District Council,37UB,J Tomlinson Ltd,V0970255,29/06/2021,65.26,R & B Transformation 2,Supplies & Services,G57002/D200008,Technical Services Depot,Payments to Contractors External
Ashfield District Council,37UB,J Tomlinson Ltd,V0970256,29/06/2021,65.26,R & B Transformation 2,Supplies & Services,G57002/D200008,Technical Services Depot,Payments to Contractors External
Ashfield District Council,37UB,J Tomlinson Ltd,V0970257,29/06/2021,65.26,R & B Transformation 2,Supplies & Services,G57002/D200008,Technical Services Depot,Payments to Contractors External
Ashfield District Council,37UB,J Tomlinson Ltd,V0970258,29/06/2021,65.26,R & B Transformation 2,Supplies & Services,G57002/D200008,Technical Services Depot,Payments to Contractors External
Ashfield District Council,37UB,J Tomlinson Ltd,V0970259,29/06/2021,65.26,R & B Transformation 2,Supplies & Services,G57002/D200008,Technical Services Depot,Payments to Contractors External
Ashfield District Council,37UB,Jackson Building Centres Ltd,V0968238,14/06/2021,66.22,R & B Transformation 2,Supplies & Services,G57000/D001004,Technical Services Depot,Chemicals and Materials Purchase
Ashfield District Council,37UB,Jackson Building Centres Ltd,V0968238,14/06/2021,20.70,R & B Transformation 2,Supplies & Services,G57000/D001004,Technical Services Depot,Chemicals and Materials Purchase
Ashfield District Council,37UB,Jackson Building Centres Ltd,V0968239,14/06/2021,18.08,R & B Transformation 2,Supplies & Services,G57000/D002004,Technical Services Depot,Equipment Maintenance
Ashfield District Council,37UB,Jackson Building Centres Ltd,V0968239,14/06/2021,4.05,R & B Transformation 2,Supplies & Services,G57000/D002004,Technical Services Depot,Equipment Maintenance
Ashfield District Council,37UB,Jackson Building Centres Ltd,V0968241,14/06/2021,9.96,R & B Transformation 2,Supplies & Services,G57000/D001004,Technical Services Depot,Chemicals and Materials Purchase
Ashfield District Council,37UB,Jackson Building Centres Ltd,V0968243,14/06/2021,16.60,R & B Transformation 2,Supplies & Services,G57000/D001004,Technical Services Depot,Chemicals and Materials Purchase
Ashfield District Council,37UB,Jackson Building Centres Ltd,V0968243,14/06/2021,2.06,R & B Transformation 2,Supplies & Services,G57000/D001004,Technical Services Depot,Chemicals and Materials Purchase
Ashfield District Council,37UB,Jackson Building Centres Ltd,V0968244,14/06/2021,25.30,R & B Transformation 2,Supplies & Services,G57000/D001004,Technical Services Depot,Chemicals and Materials Purchase
Ashfield District Council,37UB,Jackson Building Centres Ltd,V0968245,14/06/2021,8.88,R & B Transformation 2,Supplies & Services,G57000/D001004,Technical Services Depot,Chemicals and Materials Purchase
Ashfield District Council,37UB,Jackson Building Centres Ltd,V0968245,14/06/2021,5.99,R & B Transformation 2,Supplies & Services,G57000/D001004,Technical Services Depot,Chemicals and Materials Purchase
Ashfield District Council,37UB,Jackson Building Centres Ltd,V0968246,14/06/2021,8.88,R & B Transformation 2,Supplies & Services,G57000/D001004,Technical Services Depot,Chemicals and Materials Purchase
Ashfield District Council,37UB,Jackson Building Centres Ltd,V0968246,14/06/2021,5.99,R & B Transformation 2,Supplies & Services,G57000/D001004,Technical Services Depot,Chemicals and Materials Purchase
Ashfield District Council,37UB,Jackson Building Centres Ltd,V0968249,14/06/2021,5.82,R & B Transformation 2,Supplies & Services,G57000/D001004,Technical Services Depot,Chemicals and Materials Purchase
Ashfield District Council,37UB,Jackson Building Centres Ltd,V0968250,14/06/2021,6.99,R & B Transformation 2,Supplies & Services,G57000/D001004,Technical Services Depot,Chemicals and Materials Purchase
Ashfield District Council,37UB,Jackson Building Centres Ltd,V0968251,14/06/2021,9.50,R & B Transformation 2,Supplies & Services,G57000/D001004,Technical Services Depot,Chemicals and Materials Purchase
Ashfield District Council,37UB,Jackson Building Centres Ltd,V0968253,14/06/2021,16.49,R & B Transformation 2,Supplies & Services,G57000/D001004,Technical Services Depot,Chemicals and Materials Purchase
Ashfield District Council,37UB,Jackson Building Centres Ltd,V0968253,14/06/2021,6.27,R & B Transformation 2,Supplies & Services,G57000/D001004,Technical Services Depot,Chemicals and Materials Purchase
Ashfield District Council,37UB,Jackson Building Centres Ltd,V0968253,14/06/2021,3.99,R & B Transformation 2,Supplies & Services,G57000/D001004,Technical Services Depot,Chemicals and Materials Purchase
Ashfield District Council,37UB,Jackson Building Centres Ltd,V0968254,14/06/2021,50.00,R & B Transformation 2,Supplies & Services,G57000/D001004,Technical Services Depot,Chemicals and Materials Purchase
Ashfield District Council,37UB,Jackson Building Centres Ltd,V0968256,14/06/2021,9.96,R & B Transformation 2,Supplies & Services,G57000/D001004,Technical Services Depot,Chemicals and Materials Purchase
Ashfield District Council,37UB,Jackson Building Centres Ltd,V0968258,14/06/2021,32.79,R & B Transformation 2,Supplies & Services,G57000/D001004,Technical Services Depot,Chemicals and Materials Purchase
Ashfield District Council,37UB,Jackson Building Centres Ltd,V0969101,18/06/2021,29.05,R & B Transformation 2,Supplies & Services,G57000/D001004,Technical Services Depot,Chemicals and Materials Purchase
Ashfield District Council,37UB,Jackson Building Centres Ltd,V0969105,18/06/2021,5.99,R & B Transformation 2,Supplies & Services,G57000/D001004,Technical Services Depot,Chemicals and Materials Purchase
Ashfield District Council,37UB,Jackson Building Centres Ltd,V0969105,18/06/2021,6.93,R & B Transformation 2,Supplies & Services,G57000/D001004,Technical Services Depot,Chemicals and Materials Purchase
Ashfield District Council,37UB,Jackson Building Centres Ltd,V0969367,29/06/2021,16.34,R & B Transformation 2,Supplies & Services,G57000/D001004,Technical Services Depot,Chemicals and Materials Purchase
Ashfield District Council,37UB,Jackson Building Centres Ltd,V0969368,29/06/2021,20.49,R & B Transformation 2,Supplies & Services,G57000/D001004,Technical Services Depot,Chemicals and Materials Purchase
Ashfield District Council,37UB,Jackson Building Centres Ltd,V0969369,29/06/2021,23.79,R & B Transformation 2,Supplies & Services,G57000/D001004,Technical Services Depot,Chemicals and Materials Purchase
Ashfield District Council,37UB,Jackson Building Centres Ltd,V0969370,29/06/2021,5.46,R & B Transformation 2,Supplies & Services,G57000/D001004,Technical Services Depot,Chemicals and Materials Purchase
Ashfield District Council,37UB,Jackson Building Centres Ltd,V0969371,29/06/2021,72.00,R & B Transformation 2,Supplies & Services,G57000/D001004,Technical Services Depot,Chemicals and Materials Purchase
Ashfield District Council,37UB,Jackson Building Centres Ltd,V0969371,29/06/2021,8.76,R & B Transformation 2,Supplies & Services,G57000/D001004,Technical Services Depot,Chemicals and Materials Purchase
Ashfield District Council,37UB,Jackson Building Centres Ltd,V0969372,29/06/2021,5.46,R & B Transformation 2,Supplies & Services,G57000/D001004,Technical Services Depot,Chemicals and Materials Purchase
Ashfield District Council,37UB,Jackson Building Centres Ltd,V0969372,29/06/2021,4.40,R & B Transformation 2,Supplies & Services,G57000/D001004,Technical Services Depot,Chemicals and Materials Purchase
Ashfield District Council,37UB,Jackson Building Centres Ltd,V0969372,29/06/2021,8.22,R & B Transformation 2,Supplies & Services,G57000/D001004,Technical Services Depot,Chemicals and Materials Purchase
Ashfield District Council,37UB,Jackson Building Centres Ltd,V0969375,29/06/2021,9.12,R & B Transformation 2,Supplies & Services,G57000/D001004,Technical Services Depot,Chemicals and Materials Purchase
Ashfield District Council,37UB,Jackson Building Centres Ltd,V0969376,29/06/2021,44.16,R & B Transformation 2,Supplies & Services,G57000/D001004,Technical Services Depot,Chemicals and Materials Purchase
Ashfield District Council,37UB,Jackson Building Centres Ltd,V0969377,29/06/2021,18.08,R & B Transformation 2,Supplies & Services,G57000/D001004,Technical Services Depot,Chemicals and Materials Purchase
Ashfield District Council,37UB,Jackson Building Centres Ltd,V0969378,29/06/2021,14.52,R & B Transformation 2,Supplies & Services,G57000/D001004,Technical Services Depot,Chemicals and Materials Purchase
Ashfield District Council,37UB,Jackson Building Centres Ltd,V0969379,29/06/2021,121.60,R & B Transformation 2,Supplies & Services,G57000/D001004,Technical Services Depot,Chemicals and Materials Purchase
Ashfield District Council,37UB,Jackson Building Centres Ltd,V0969380,29/06/2021,52.50,R & B Transformation 2,Supplies & Services,G57000/D001004,Technical Services Depot,Chemicals and Materials Purchase
Ashfield District Council,37UB,Jackson Building Centres Ltd,V0969380,29/06/2021,18.55,R & B Transformation 2,Supplies & Services,G57000/D001004,Technical Services Depot,Chemicals and Materials Purchase
Ashfield District Council,37UB,Jackson Building Centres Ltd,V0969668,29/06/2021,6.40,R & B Transformation 2,Supplies & Services,G57000/D001004,Technical Services Depot,Chemicals and Materials Purchase
Ashfield District Council,37UB,Jackson Building Centres Ltd,V0969690,29/06/2021,91.65,R & B Transformation 2,Supplies & Services,G57000/D001004,Technical Services Depot,Chemicals and Materials Purchase
Ashfield District Council,37UB,Jackson Building Centres Ltd,V0969690,29/06/2021,91.65,R & B Transformation 2,Supplies & Services,G57000/D001004,Technical Services Depot,Chemicals and Materials Purchase
Ashfield District Council,37UB,Jackson Building Centres Ltd,V0969690,29/06/2021,91.65,R & B Transformation 2,Supplies & Services,G57000/D001004,Technical Services Depot,Chemicals and Materials Purchase
Ashfield District Council,37UB,Jackson Building Centres Ltd,V0970083,29/06/2021,9.79,R & B Transformation 2,Supplies & Services,G57000/D001004,Technical Services Depot,Chemicals and Materials Purchase
Ashfield District Council,37UB,Jackson Building Centres Ltd,V0970083,29/06/2021,9.79,R & B Transformation 2,Supplies & Services,G57000/D001004,Technical Services Depot,Chemicals and Materials Purchase
Ashfield District Council,37UB,Jackson Building Centres Ltd,V0970083,29/06/2021,9.67,R & B Transformation 2,Supplies & Services,G57000/D001004,Technical Services Depot,Chemicals and Materials Purchase
Ashfield District Council,37UB,Jackson Building Centres Ltd,V0970084,29/06/2021,8.82,R & B Transformation 2,Supplies & Services,G57000/D001004,Technical Services Depot,Chemicals and Materials Purchase
Ashfield District Council,37UB,Jackson Building Centres Ltd,V0970086,29/06/2021,11.98,R & B Transformation 2,Supplies & Services,G57000/D001004,Technical Services Depot,Chemicals and Materials Purchase
Ashfield District Council,37UB,Jackson Building Centres Ltd,V0970089,29/06/2021,30.55,R & B Transformation 2,Supplies & Services,G57000/D001004,Technical Services Depot,Chemicals and Materials Purchase
Ashfield District Council,37UB,Jackson Building Centres Ltd,V0970090,29/06/2021,4.38,R & B Transformation 2,Supplies & Services,G57000/D001004,Technical Services Depot,Chemicals and Materials Purchase
Ashfield District Council,37UB,Jackson Building Centres Ltd,V0970091,29/06/2021,22.34,R & B Transformation 2,Supplies & Services,G57000/D001004,Technical Services Depot,Chemicals and Materials Purchase
Ashfield District Council,37UB,Jackson Building Centres Ltd,V0970094,29/06/2021,7.36,R & B Transformation 2,Supplies & Services,G57000/D001004,Technical Services Depot,Chemicals and Materials Purchase
Ashfield District Council,37UB,Jackson Building Centres Ltd,V0970095,29/06/2021,148.55,R & B Transformation 2,Supplies & Services,G57000/D001004,Technical Services Depot,Chemicals and Materials Purchase
Ashfield District Council,37UB,Jackson Building Centres Ltd,V0970095,29/06/2021,10.45,R & B Transformation 2,Supplies & Services,G57000/D001004,Technical Services Depot,Chemicals and Materials Purchase
Ashfield District Council,37UB,Jackson Building Centres Ltd,V0970095,29/06/2021,30.23,R & B Transformation 2,Supplies & Services,G57000/D001004,Technical Services Depot,Chemicals and Materials Purchase
